{"text_format":"3","workbook":"xlsx","n_sheets":7,"sheets":["Anforderungsliste EN","Dropdown Quelle","Anforderung Antragsteller","ALT Prüfung Priorität","ALT Prüfer-Hinweis","ALT Prüfer","ALT 1.Prüfung"],"not_rendered":{"defined_names":9},"read":"whole","date_system":"1900"}

{"sheet":"Anforderungsliste EN","index":0,"n_rows":52,"n_cols":15,"rows_kept":52,"merged":[[0,1,0,5],[2,5,2,6],[2,8,2,10],[2,12,2,14],[3,0,3,1],[3,5,3,6],[4,5,4,6]]}
[null,"List of requirements for the EHPA-Qualtiy Label application"]
[null,"1. select application form:",null,"*Please select from list*",null,"3. fill in the fields:"]
[null,"2. select heat pump type:",null,"*Please select from list*",null,"Basic data (mandatory)",null,null,"Models (mandatory)",{"$nulls":3},"Comments (optional)"]
[{"$nulls":5},"*Company name*",null,null,"*Model 1*","*Model 2*","insert further columns for more models",null,"*Name*","*Name*","*Name*"]
[null,"Document V13.6 Basis: EHPA regulations version 2.3 dated 01.04.2026",null,"Requirement for the selected application form",null,"*model-range name*",{"$nulls":6},"*date*","*date*","*date*"]
[1,"Fundamentals",null,"-",null,"Name of document","Page",null,"ok ... submitted\nx ... not submitted / correct\n- ... not necessary"]
[null,"Accredited test reports in accordance with EN 12102-1 and -2 EN 14511-2 to 4 and EN 14825, or EN 16147 for drinking water\nNumber depends on the scope of the model-range\n",null,"-",null,"-","-",null,"-","-","-",null,"-","-","-"]
[null,"Signed detailed accredited performance test report according to EHPA regulations or HP Keymark regulations AND",null,{"$f":"IF(OR(Antragsform=\"\",$D$3=\"\",Antr=\"*Please select from list*\",$D$3=\"*Please select from list*\"),\"Please select application form and heat pump type\",HLOOKUP($D$2&\" \"&$D$3,'Anforderung Antragsteller'!$C$5:$AK$51,ROW()-5,))","v":"Please select application form and heat pump type"},null,"*document name*","-"]
[null,"Signed detailed accredited sound test report according to EHPA regulations or HP Keymark regulations AND",null,{"$f":"IF(OR(Antragsform=\"\",$D$3=\"\",Antr=\"*Please select from list*\",$D$3=\"*Please select from list*\"),\"Please select application form and heat pump type\",HLOOKUP($D$2&\" \"&$D$3,'Anforderung Antragsteller'!$C$5:$AK$51,ROW()-5,))","v":"Please select application form and heat pump type"},null,"*document name*","-"]
[null,"SCOP requirements for room-heating heat pumps",null,"-",null,"-","-",null,"-","-","-",null,"-","-","-"]
[null,"Low temperature application (35°C) and average climate:\n       SCOP Min : 3,70 (A/W)         SCOP Min : 4,70 (B/W, W/W)\n       SCOP Min : 4,10 (DX/W)       SCOP Min : 3,40 (A/A)",null,{"$f":"IF(OR(Antragsform=\"\",$D$3=\"\",Antr=\"*Please select from list*\",$D$3=\"*Please select from list*\"),\"Please select application form and heat pump type\",HLOOKUP($D$2&\" \"&$D$3,'Anforderung Antragsteller'!$C$5:$AK$51,ROW()-5,))","v":"Please select application form and heat pump type"},null,"*document name*","*page*"]
[null,"Medium temperature application (55°C) and average climate:\n       SCOP Min : 3,20 (A/W)       SCOP Min : 3,70 (B/W, W/W)\n       SCOP Min : 3,38 (DX/W)",null,{"$f":"IF(OR(Antragsform=\"\",$D$3=\"\",Antr=\"*Please select from list*\",$D$3=\"*Please select from list*\"),\"Please select application form and heat pump type\",HLOOKUP($D$2&\" \"&$D$3,'Anforderung Antragsteller'!$C$5:$AK$51,ROW()-5,))","v":"Please select application form and heat pump type"},null,"*document name*","*page*"]
[null,"Requirements for domestic hot water heat pumps",null,"-",null,"-","-",null,"-","-","-",null,"-","-","-"]
[null,"The heat pump must be able to produce at least 55°C hot water",null,{"$f":"IF(OR(Antragsform=\"\",$D$3=\"\",Antr=\"*Please select from list*\",$D$3=\"*Please select from list*\"),\"Please select application form and heat pump type\",HLOOKUP($D$2&\" \"&$D$3,'Anforderung Antragsteller'!$C$5:$AK$51,ROW()-5,))","v":"Please select application form and heat pump type"},null,"*document name*","*page*"]
[null,"Minimum “SCOP_domestic hot water” or “COP_domestic hot water” is complied with\nA7 ≥ 2.8 / A15 ≥ 2.9 / A20 ≥ 3.2 / B0 ≥ 2.8 / W10 ≥ 3.0",null,{"$f":"IF(OR(Antragsform=\"\",$D$3=\"\",Antr=\"*Please select from list*\",$D$3=\"*Please select from list*\"),\"Please select application form and heat pump type\",HLOOKUP($D$2&\" \"&$D$3,'Anforderung Antragsteller'!$C$5:$AK$51,ROW()-5,))","v":"Please select application form and heat pump type"},null,"*document name*","*page*"]
[null,"Signed approval of conformity from the manufacturer if the product designations on the test report/HP Keymark and on the EHPA label are not the same (see template at www.waermepumpe-austria.at/dienste/guetesiegel/dokumente-und-links)",null,{"$f":"IF(OR(Antragsform=\"\",$D$3=\"\",Antr=\"*Please select from list*\",$D$3=\"*Please select from list*\"),\"Please select application form and heat pump type\",HLOOKUP($D$2&\" \"&$D$3,'Anforderung Antragsteller'!$C$5:$AK$51,ROW()-5,))","v":"Please select application form and heat pump type"},null,"*document name*","*page*"]
[null,"Signed CE Declaration of Conformity",null,{"$f":"IF(OR(Antragsform=\"\",$D$3=\"\",Antr=\"*Please select from list*\",$D$3=\"*Please select from list*\"),\"Please select application form and heat pump type\",HLOOKUP($D$2&\" \"&$D$3,'Anforderung Antragsteller'!$C$5:$AK$51,ROW()-5,))","v":"Please select application form and heat pump type"},null,"*document name*","*page*"]
[null,"Formal approval from the holder of the parental Quality Label (see template at www.waermepumpe-austria.at/dienste/guetesiegel/dokumente-und-links)",null,{"$f":"IF(OR(Antragsform=\"\",$D$3=\"\",Antr=\"*Please select from list*\",$D$3=\"*Please select from list*\"),\"Please select application form and heat pump type\",HLOOKUP($D$2&\" \"&$D$3,'Anforderung Antragsteller'!$C$5:$AK$51,ROW()-5,))","v":"Please select application form and heat pump type"},null,"*document name*","*page*"]
[2,"Application",null,"-",null,"-","-","-","-","-","-",null,"-","-","-"]
[null,"Upload the list of main components (manufacturer, type designation, ) and fill in the online mask in the model including SCOP values.",null,{"$f":"IF(OR(Antragsform=\"\",$D$3=\"\",Antr=\"*Please select from list*\",$D$3=\"*Please select from list*\"),\"Please select application form and heat pump type\",HLOOKUP($D$2&\" \"&$D$3,'Anforderung Antragsteller'!$C$5:$AK$51,ROW()-5,))","v":"Please select application form and heat pump type"},null,"Please enter this information in the online portal for each model.","-"]
[null,"Enter the values for the individual products for EN 14511, EN 14825 and EN 12102-1 in the info mask.",null,{"$f":"IF(OR(Antragsform=\"\",$D$3=\"\",Antr=\"*Please select from list*\",$D$3=\"*Please select from list*\"),\"Please select application form and heat pump type\",HLOOKUP($D$2&\" \"&$D$3,'Anforderung Antragsteller'!$C$5:$AK$51,ROW()-5,))","v":"Please select application form and heat pump type"},null,"Please enter this information in the online portal for each model.","-"]
[3,"Customer service (German version)",null,"-",null,"-","-",null,"-","-","-",null,"-","-","-"]
[null,"Form template for the commissioning and maintenance technician",null,{"$f":"IF(OR(Antragsform=\"\",$D$3=\"\",Antr=\"*Please select from list*\",$D$3=\"*Please select from list*\"),\"Please select application form and heat pump type\",HLOOKUP($D$2&\" \"&$D$3,'Anforderung Antragsteller'!$C$5:$AK$51,ROW()-5,))","v":"Please select application form and heat pump type"},null,"*document name*","*page*"]
[null,"Warranty for at least 2 years",null,{"$f":"IF(OR(Antragsform=\"\",$D$3=\"\",Antr=\"*Please select from list*\",$D$3=\"*Please select from list*\"),\"Please select application form and heat pump type\",HLOOKUP($D$2&\" \"&$D$3,'Anforderung Antragsteller'!$C$5:$AK$51,ROW()-5,))","v":"Please select application form and heat pump type"},null,"*document name*","*page*"]
[null,"Spare parts warranty for at least 10 years",null,{"$f":"IF(OR(Antragsform=\"\",$D$3=\"\",Antr=\"*Please select from list*\",$D$3=\"*Please select from list*\"),\"Please select application form and heat pump type\",HLOOKUP($D$2&\" \"&$D$3,'Anforderung Antragsteller'!$C$5:$AK$51,ROW()-5,))","v":"Please select application form and heat pump type"},null,"*document name*","*page*"]
[null,"Customer service response time in the sales territory within 24 hours and hours and contact details for customer service in the sales area (see template at www.waermepumpe-austria.at/dienste/guetesiegel/dokumente-und-links)",null,{"$f":"IF(OR(Antragsform=\"\",$D$3=\"\",Antr=\"*Please select from list*\",$D$3=\"*Please select from list*\"),\"Please select application form and heat pump type\",HLOOKUP($D$2&\" \"&$D$3,'Anforderung Antragsteller'!$C$5:$AK$51,ROW()-5,))","v":"Please select application form and heat pump type"},null,"*document name*","*page*"]
[4,"Operating instructions (German version)",null,"-",null,"-","-",null,"-","-","-",null,"-","-","-"]
[null,"Information and safety instructions for proper use",null,{"$f":"IF(OR(Antragsform=\"\",$D$3=\"\",Antr=\"*Please select from list*\",$D$3=\"*Please select from list*\"),\"Please select application form and heat pump type\",HLOOKUP($D$2&\" \"&$D$3,'Anforderung Antragsteller'!$C$5:$AK$51,ROW()-5,))","v":"Please select application form and heat pump type"},null,"*document name*","*page*"]
[null,"Instructions for operating the heat pump",null,{"$f":"IF(OR(Antragsform=\"\",$D$3=\"\",Antr=\"*Please select from list*\",$D$3=\"*Please select from list*\"),\"Please select application form and heat pump type\",HLOOKUP($D$2&\" \"&$D$3,'Anforderung Antragsteller'!$C$5:$AK$51,ROW()-5,))","v":"Please select application form and heat pump type"},null,"*document name*","*page*"]
[null,"Spare parts list",null,{"$f":"IF(OR(Antragsform=\"\",$D$3=\"\",Antr=\"*Please select from list*\",$D$3=\"*Please select from list*\"),\"Please select application form and heat pump type\",HLOOKUP($D$2&\" \"&$D$3,'Anforderung Antragsteller'!$C$5:$AK$51,ROW()-5,))","v":"Please select application form and heat pump type"},null,"*document name*","*page*"]
[5,"Installation instructions (German version)",null,"-",null,"-","-",null,"-","-","-",null,"-","-","-"]
[null,"Installation instructions",null,{"$f":"IF(OR(Antragsform=\"\",$D$3=\"\",Antr=\"*Please select from list*\",$D$3=\"*Please select from list*\"),\"Please select application form and heat pump type\",HLOOKUP($D$2&\" \"&$D$3,'Anforderung Antragsteller'!$C$5:$AK$51,ROW()-5,))","v":"Please select application form and heat pump type"},null,"*document name*","*page*"]
[null,"Safety instructions",null,{"$f":"IF(OR(Antragsform=\"\",$D$3=\"\",Antr=\"*Please select from list*\",$D$3=\"*Please select from list*\"),\"Please select application form and heat pump type\",HLOOKUP($D$2&\" \"&$D$3,'Anforderung Antragsteller'!$C$5:$AK$51,ROW()-5,))","v":"Please select application form and heat pump type"},null,"*document name*","*page*"]
[null,"Commissioning instructions",null,{"$f":"IF(OR(Antragsform=\"\",$D$3=\"\",Antr=\"*Please select from list*\",$D$3=\"*Please select from list*\"),\"Please select application form and heat pump type\",HLOOKUP($D$2&\" \"&$D$3,'Anforderung Antragsteller'!$C$5:$AK$51,ROW()-5,))","v":"Please select application form and heat pump type"},null,"*document name*","*page*"]
[null,"Fluid diagrams for refrigerent circuit and water circuit",null,{"$f":"IF(OR(Antragsform=\"\",$D$3=\"\",Antr=\"*Please select from list*\",$D$3=\"*Please select from list*\"),\"Please select application form and heat pump type\",HLOOKUP($D$2&\" \"&$D$3,'Anforderung Antragsteller'!$C$5:$AK$51,ROW()-5,))","v":"Please select application form and heat pump type"},null,"*document name*","*page*"]
[null,"Electrical diagram for connecting the heat pump",null,{"$f":"IF(OR(Antragsform=\"\",$D$3=\"\",Antr=\"*Please select from list*\",$D$3=\"*Please select from list*\"),\"Please select application form and heat pump type\",HLOOKUP($D$2&\" \"&$D$3,'Anforderung Antragsteller'!$C$5:$AK$51,ROW()-5,))","v":"Please select application form and heat pump type"},null,"*document name*","*page*"]
[null,"“Energy label and energy label data sheet in accordance with 811/2013 (heating and combi heat pumps) and 812/2013 (hot water heat pumps)\n(only for appliances with a maximum rated output of 70 kW)”",null,{"$f":"IF(OR(Antragsform=\"\",$D$3=\"\",Antr=\"*Please select from list*\",$D$3=\"*Please select from list*\"),\"Please select application form and heat pump type\",HLOOKUP($D$2&\" \"&$D$3,'Anforderung Antragsteller'!$C$5:$AK$51,ROW()-5,))","v":"Please select application form and heat pump type"},null,"*document name*","*page*"]
[6,"Technical data (German version)",null,"-",null,"-","-",null,"-","-","-",null,"-","-","-"]
[null,"Performance data (thermal output, electrical power consumption and COP over the entire output range)",null,{"$f":"IF(OR(Antragsform=\"\",$D$3=\"\",Antr=\"*Please select from list*\",$D$3=\"*Please select from list*\"),\"Please select application form and heat pump type\",HLOOKUP($D$2&\" \"&$D$3,'Anforderung Antragsteller'!$C$5:$AK$51,ROW()-5,))","v":"Please select application form and heat pump type"},null,"*document name*","*page*"]
[null,"Performance data in accordance with EN 14511 for A7/W35 (heat output, electrical power consumption and COP)",null,{"$f":"IF(OR(Antragsform=\"\",$D$3=\"\",Antr=\"*Please select from list*\",$D$3=\"*Please select from list*\"),\"Please select application form and heat pump type\",HLOOKUP($D$2&\" \"&$D$3,'Anforderung Antragsteller'!$C$5:$AK$51,ROW()-5,))","v":"Please select application form and heat pump type"},null,"*document name*","*page*"]
[null,"Dimensional drawing",null,{"$f":"IF(OR(Antragsform=\"\",$D$3=\"\",Antr=\"*Please select from list*\",$D$3=\"*Please select from list*\"),\"Please select application form and heat pump type\",HLOOKUP($D$2&\" \"&$D$3,'Anforderung Antragsteller'!$C$5:$AK$51,ROW()-5,))","v":"Please select application form and heat pump type"},null,"*document name*","*page*"]
[null,"Minimum distances",null,{"$f":"IF(OR(Antragsform=\"\",$D$3=\"\",Antr=\"*Please select from list*\",$D$3=\"*Please select from list*\"),\"Please select application form and heat pump type\",HLOOKUP($D$2&\" \"&$D$3,'Anforderung Antragsteller'!$C$5:$AK$51,ROW()-5,))","v":"Please select application form and heat pump type"},null,"*document name*","*page*"]
[null,"Refrigerant: type and filling quantity",null,{"$f":"IF(OR(Antragsform=\"\",$D$3=\"\",Antr=\"*Please select from list*\",$D$3=\"*Please select from list*\"),\"Please select application form and heat pump type\",HLOOKUP($D$2&\" \"&$D$3,'Anforderung Antragsteller'!$C$5:$AK$51,ROW()-5,))","v":"Please select application form and heat pump type"},null,"*document name*","*page*"]
[null,"Starting current / maximum operating current in A",null,{"$f":"IF(OR(Antragsform=\"\",$D$3=\"\",Antr=\"*Please select from list*\",$D$3=\"*Please select from list*\"),\"Please select application form and heat pump type\",HLOOKUP($D$2&\" \"&$D$3,'Anforderung Antragsteller'!$C$5:$AK$51,ROW()-5,))","v":"Please select application form and heat pump type"},null,"*document name*","*page*"]
[null,"Application range / application limits",null,{"$f":"IF(OR(Antragsform=\"\",$D$3=\"\",Antr=\"*Please select from list*\",$D$3=\"*Please select from list*\"),\"Please select application form and heat pump type\",HLOOKUP($D$2&\" \"&$D$3,'Anforderung Antragsteller'!$C$5:$AK$51,ROW()-5,))","v":"Please select application form and heat pump type"},null,"*document name*","*page*"]
[null,"Volume flow on source and sink side in m³/h, l/min",null,{"$f":"IF(OR(Antragsform=\"\",$D$3=\"\",Antr=\"*Please select from list*\",$D$3=\"*Please select from list*\"),\"Please select application form and heat pump type\",HLOOKUP($D$2&\" \"&$D$3,'Anforderung Antragsteller'!$C$5:$AK$51,ROW()-5,))","v":"Please select application form and heat pump type"},null,"*document name*","*page*"]
[null,"Volume of the hot water tank in liters",null,{"$f":"IF(OR(Antragsform=\"\",$D$3=\"\",Antr=\"*Please select from list*\",$D$3=\"*Please select from list*\"),\"Please select application form and heat pump type\",HLOOKUP($D$2&\" \"&$D$3,'Anforderung Antragsteller'!$C$5:$AK$51,ROW()-5,))","v":"Please select application form and heat pump type"},null,"*document name*","*page*"]
[null,"Weight in kg",null,{"$f":"IF(OR(Antragsform=\"\",$D$3=\"\",Antr=\"*Please select from list*\",$D$3=\"*Please select from list*\"),\"Please select application form and heat pump type\",HLOOKUP($D$2&\" \"&$D$3,'Anforderung Antragsteller'!$C$5:$AK$51,ROW()-5,))","v":"Please select application form and heat pump type"},null,"*document name*","*page*"]
[null,"Sound power according to EN 12102 / Energy label in [dB(A)]",null,{"$f":"IF(OR(Antragsform=\"\",$D$3=\"\",Antr=\"*Please select from list*\",$D$3=\"*Please select from list*\"),\"Please select application form and heat pump type\",HLOOKUP($D$2&\" \"&$D$3,'Anforderung Antragsteller'!$C$5:$AK$51,ROW()-5,))","v":"Please select application form and heat pump type"},null,"*document name*","*page*"]
[null,"Sound power according to EN 14825 testingpoint B (A2) in [dB(A)]",null,{"$f":"IF(OR(Antragsform=\"\",$D$3=\"\",Antr=\"*Please select from list*\",$D$3=\"*Please select from list*\"),\"Please select application form and heat pump type\",HLOOKUP($D$2&\" \"&$D$3,'Anforderung Antragsteller'!$C$5:$AK$51,ROW()-5,))","v":"Please select application form and heat pump type"},null,"*document name*","*page*"]
[null,"Maximum sound power level in dB(A) and corresponding heat output in kW",null,{"$f":"IF(OR(Antragsform=\"\",$D$3=\"\",Antr=\"*Please select from list*\",$D$3=\"*Please select from list*\"),\"Please select application form and heat pump type\",HLOOKUP($D$2&\" \"&$D$3,'Anforderung Antragsteller'!$C$5:$AK$51,ROW()-5,))","v":"Please select application form and heat pump type"},null,"*document name*","*page*"]
[null,"Maximum sound power level “Silent mode” in dB(A) and corresponding heat output in kW",null,{"$f":"IF(OR(Antragsform=\"\",$D$3=\"\",Antr=\"*Please select from list*\",$D$3=\"*Please select from list*\"),\"Please select application form and heat pump type\",HLOOKUP($D$2&\" \"&$D$3,'Anforderung Antragsteller'!$C$5:$AK$51,ROW()-5,))","v":"Please select application form and heat pump type"},null,"*document name*","*page*"]

{"sheet":"Dropdown Quelle","index":1,"n_rows":7,"n_cols":9,"rows_kept":7,"hidden":true}
[]
[]
[]
[]
["Select application form:","*Please select from list*","Initial application","Transfer from another country or another company","1st and 2nd renewal (valid for max. 9 years)","from 3rd renewal (validity over 9 years)","Extension of an existing quality label","Change of product names","Technical changes to the product"]
[]
["Heat pump type:","*Please select from list*","Air/water","Water/water","Brine/water","Air/air","Domestic hot water heat pump"]

{"sheet":"Anforderung Antragsteller","index":2,"n_rows":51,"n_cols":37,"rows_kept":51,"hidden":true,"merged":[[2,2,2,6],[2,7,2,11],[2,12,2,16],[2,17,2,21],[2,22,2,26],[2,27,2,31],[2,32,2,36],[3,2,3,6],[3,7,3,11],[3,12,3,16],[3,17,3,21],[3,22,3,26],[3,27,3,31],[3,32,3,36]]}
["Liste Anforderungen an den Antragsteller je Antrag"]
[]
[null,null,{"$f":"'Dropdown Quelle'!C5","v":"Initial application"},{"$nulls":4},{"$f":"'Dropdown Quelle'!D5","v":"Transfer from another country or another company"},{"$nulls":4},{"$f":"'Dropdown Quelle'!E5","v":"1st and 2nd renewal (valid for max. 9 years)"},{"$nulls":4},{"$f":"'Dropdown Quelle'!F5","v":"from 3rd renewal (validity over 9 years)"},{"$nulls":4},{"$f":"'Dropdown Quelle'!G5","v":"Extension of an existing quality label"},{"$nulls":4},{"$f":"'Dropdown Quelle'!H5","v":"Change of product names"},{"$nulls":4},{"$f":"'Dropdown Quelle'!I5","v":"Technical changes to the product"}]
[null,null,"Erstantrag (Elterngütesiegel);  Einzelprodukt oder Baureihe",{"$nulls":4},"Übertragung auf Basis eines Elterngütesiegel (Followup-Gütesiegel);   Übertragung zwischen zwei Ländern oder Unternehmen, mit gleicher oder nicht gleicher Produktbezeichnung",{"$nulls":4},"Verlängerung von Elterngütesiegel oder Followup; 1. und 2. Verlängerung des Elterngütesiegels",{"$nulls":4},"Verlängerung von Elterngütesiegel oder Followup; jede weitere Verlängerung",{"$nulls":4},"Erweiterung von Elterngütesiegel oder Followup;  Erweiterung des Gütesiegels um ein oder mehrere Modelle",{"$nulls":4},"Änderung von Elterngütesiegel oder Followup;  Änderung der Produktbezeichnungen",{"$nulls":4},"Technische Änderungen am Produkt"]
[1,"Grundlegendes",{"$f":"$C$3&\" \"&'Dropdown Quelle'!C7","v":"Initial application Air/water"},{"$f":"$C$3&\" \"&'Dropdown Quelle'!D7","v":"Initial application Water/water"},{"$f":"$C$3&\" \"&'Dropdown Quelle'!E7","v":"Initial application Brine/water"},{"$f":"$C$3&\" \"&'Dropdown Quelle'!F7","v":"Initial application Air/air"},{"$f":"$C$3&\" \"&'Dropdown Quelle'!G7","v":"Initial application Domestic hot water heat pump"},{"$f":"$H$3&\" \"&'Dropdown Quelle'!C7","v":"Transfer from another country or another company Air/water"},{"$f":"$H$3&\" \"&'Dropdown Quelle'!D7","v":"Transfer from another country or another company Water/water"},{"$f":"$H$3&\" \"&'Dropdown Quelle'!E7","v":"Transfer from another country or another company Brine/water"},{"$f":"$H$3&\" \"&'Dropdown Quelle'!F7","v":"Transfer from another country or another company Air/air"},{"$f":"$H$3&\" \"&'Dropdown Quelle'!G7","v":"Transfer from another country or another company Domestic hot water heat pump"},{"$f":"$M$3&\" \"&'Dropdown Quelle'!C7","v":"1st and 2nd renewal (valid for max. 9 years) Air/water"},{"$f":"$M$3&\" \"&'Dropdown Quelle'!D7","v":"1st and 2nd renewal (valid for max. 9 years) Water/water"},{"$f":"$M$3&\" \"&'Dropdown Quelle'!E7","v":"1st and 2nd renewal (valid for max. 9 years) Brine/water"},{"$f":"$M$3&\" \"&'Dropdown Quelle'!F7","v":"1st and 2nd renewal (valid for max. 9 years) Air/air"},{"$f":"$M$3&\" \"&'Dropdown Quelle'!G7","v":"1st and 2nd renewal (valid for max. 9 years) Domestic hot water heat pump"},{"$f":"$R$3&\" \"&'Dropdown Quelle'!C7","v":"from 3rd renewal (validity over 9 years) Air/water"},{"$f":"$R$3&\" \"&'Dropdown Quelle'!D7","v":"from 3rd renewal (validity over 9 years) Water/water"},{"$f":"$R$3&\" \"&'Dropdown Quelle'!E7","v":"from 3rd renewal (validity over 9 years) Brine/water"},{"$f":"$R$3&\" \"&'Dropdown Quelle'!F7","v":"from 3rd renewal (validity over 9 years) Air/air"},{"$f":"$R$3&\" \"&'Dropdown Quelle'!G7","v":"from 3rd renewal (validity over 9 years) Domestic hot water heat pump"},{"$f":"$W$3&\" \"&'Dropdown Quelle'!C7","v":"Extension of an existing quality label Air/water"},{"$f":"$W$3&\" \"&'Dropdown Quelle'!D7","v":"Extension of an existing quality label Water/water"},{"$f":"$W$3&\" \"&'Dropdown Quelle'!E7","v":"Extension of an existing quality label Brine/water"},{"$f":"$W$3&\" \"&'Dropdown Quelle'!F7","v":"Extension of an existing quality label Air/air"},{"$f":"$W$3&\" \"&'Dropdown Quelle'!G7","v":"Extension of an existing quality label Domestic hot water heat pump"},{"$f":"$AB$3&\" \"&'Dropdown Quelle'!C7","v":"Change of product names Air/water"},{"$f":"$AB$3&\" \"&'Dropdown Quelle'!D7","v":"Change of product names Water/water"},{"$f":"$AB$3&\" \"&'Dropdown Quelle'!E7","v":"Change of product names Brine/water"},{"$f":"$AB$3&\" \"&'Dropdown Quelle'!F7","v":"Change of product names Air/air"},{"$f":"$AB$3&\" \"&'Dropdown Quelle'!G7","v":"Change of product names Domestic hot water heat pump"},{"$f":"$AG$3&\" \"&'Dropdown Quelle'!C7","v":"Technical changes to the product Air/water"},{"$f":"$AG$3&\" \"&'Dropdown Quelle'!D7","v":"Technical changes to the product Water/water"},{"$f":"$AG$3&\" \"&'Dropdown Quelle'!E7","v":"Technical changes to the product Brine/water"},{"$f":"$AG$3&\" \"&'Dropdown Quelle'!F7","v":"Technical changes to the product Air/air"},{"$f":"$AG$3&\" \"&'Dropdown Quelle'!G7","v":"Technical changes to the product Domestic hot water heat pump"}]
[null,"akkreditierte Prüfberichte nach EN 12102-1 und -2, EN 14511-2 bis 4 und EN 14825, bzw. EN 16147 bei Trinkwasser\nAnzahl hängt vom Umfang der Modelreihe ab","-","-","-","-","-","-","-","-","-","-","-","-","-","-","-","-","-","-","-","-","-","-","-","-","-","-","-","-","-","-","-","-","-","-","-"]
[null,"- Unterschriebener detaillierter akkreditierter Leistungs-Prüfbericht nach EHPA Regularien oder HP-Keymark Regularien UND","required",{"$f":"$C7","v":"required"},"required","required","required","required",{"$f":"$H7","v":"required"},"required","required","required","not required",{"$f":"$M7","v":"not required"},{"$f":"$M7","v":"not required"},{"$f":"$M7","v":"not required"},{"$f":"$M7","v":"not required"},"required if subsequently requested by the EHPA Quality Seal Commission",{"$f":"$R7","v":"required if subsequently requested by the EHPA Quality Seal Commission"},"required if subsequently requested by the EHPA Quality Seal Commission","required if subsequently requested by the EHPA Quality Seal Commission","required if subsequently requested by the EHPA Quality Seal Commission","required if the minimum number of tested devices changes due to the expansion of the building marriage",{"$f":"$W7","v":"required if the minimum number of tested devices changes due to the expansion of the building marriage"},{"$f":"$W7","v":"required if the minimum number of tested devices changes due to the expansion of the building marriage"},"required if the minimum number of tested devices changes due to the expansion of the building marriage","required if the minimum number of tested devices changes due to the expansion of the building marriage","not required",{"$f":"$AB7","v":"not required"},{"$f":"$AB7","v":"not required"},"not required","not required","required if subsequently requested by the EHPA Quality Seal Commission",{"$f":"$AG7","v":"required if subsequently requested by the EHPA Quality Seal Commission"},{"$f":"$AG7","v":"required if subsequently requested by the EHPA Quality Seal Commission"},"required if subsequently requested by the EHPA Quality Seal Commission","required if subsequently requested by the EHPA Quality Seal Commission"]
[null,"- Unterschriebener detaillierter akkreditierter Schall-Prüfbericht  nach EHPA Regularien oder HP-Keymark Regularien UND","required","required","required","required","required","required","required","required","required","required","not required",{"$f":"$M8","v":"not required"},"not required","not required","not required","required if subsequently requested by the EHPA Quality Seal Commission","required if subsequently requested by the EHPA Quality Seal Commission","required if subsequently requested by the EHPA Quality Seal Commission","required if subsequently requested by the EHPA Quality Seal Commission","required if subsequently requested by the EHPA Quality Seal Commission","required if the minimum number of tested devices changes due to the expansion of the building marriage",{"$f":"$W8","v":"required if the minimum number of tested devices changes due to the expansion of the building marriage"},"required if the minimum number of tested devices changes due to the expansion of the building marriage","required if the minimum number of tested devices changes due to the expansion of the building marriage","required if the minimum number of tested devices changes due to the expansion of the building marriage","not required",{"$f":"$AB8","v":"not required"},"not required","not required","not required","required if subsequently requested by the EHPA Quality Seal Commission",{"$f":"$AG8","v":"required if subsequently requested by the EHPA Quality Seal Commission"},"required if subsequently requested by the EHPA Quality Seal Commission","required if subsequently requested by the EHPA Quality Seal Commission","required if subsequently requested by the EHPA Quality Seal Commission"]
[null,"SCOP Anforderungen für Heizungs-Wärmepumpen","-","-","-","-","-","-","-","-","-","-","-","-","-","-","-","-","-","-","-","-","-","-","-","-","-","-","-","-","-","-","-","-","-","-","-"]
[null,"- Niedertemperaturanwendung (35°C) und durchschnittliches Klima:\n       SCOP Min : 3,70 (A/W)         SCOP Min : 4,70 (B/W, W/W)\n       SCOP Min : 4,10 (DX/W)       SCOP Min : 3,40 (A/A)","required",{"$f":"$C10","v":"required"},"required","required","not required","does not need to be resubmitted",{"$f":"$H10","v":"does not need to be resubmitted"},"does not need to be resubmitted","does not need to be resubmitted","not required","not required",{"$f":"$M10","v":"not required"},"not required","not required","not required","required",{"$f":"$R10","v":"required"},"required","required","nicht erforderlich","required",{"$f":"$W10","v":"required"},"required","required","not required","not required","not required","not required","not required","not required","required if subsequently requested by the EHPA Quality Seal Commission",{"$f":"$AG10","v":"required if subsequently requested by the EHPA Quality Seal Commission"},"required if subsequently requested by the EHPA Quality Seal Commission","required if subsequently requested by the EHPA Quality Seal Commission","required if subsequently requested by the EHPA Quality Seal Commission"]
[null,"- Mitteltemperaturanwendung (55°C) und durchschnittliches Klima:\n       SCOP Min : 3,20 (A/W)       SCOP Min : 3,70 (B/W, W/W)\n       SCOP Min : 3,38 (DX/W)","required","required","required","required","not required","does not need to be resubmitted","does not need to be resubmitted","does not need to be resubmitted","does not need to be resubmitted","not required","not required","not required","not required","not required","not required","required","required","required","required","nicht erforderlich","required",{"$f":"$W11","v":"required"},"required","required","not required","not required","not required","not required","not required","not required","required if subsequently requested by the EHPA Quality Seal Commission","required if subsequently requested by the EHPA Quality Seal Commission","required if subsequently requested by the EHPA Quality Seal Commission","required if subsequently requested by the EHPA Quality Seal Commission","required if subsequently requested by the EHPA Quality Seal Commission"]
[null,"Anforderungen für Brauchwasser-Wärmepumpen","-","-","-","-","-","-","-","-","-","-","-","-","-","-","-","-","-","-","-","-","-","-","-","-","-","-","-","-","-","-","-","-","-","-","-"]
[null,"- Die Wärmpumpe muss mindestens 52°C Warmwasser erzeugen können","not required",{"$f":"$C13","v":"not required"},"not required","not required","required","not required",{"$f":"$H13","v":"not required"},{"$f":"$H13","v":"not required"},{"$f":"$H13","v":"not required"},"required","not required","not required","not required","not required","not required","not required",{"$f":"$R13","v":"not required"},"not required","not required","erforderlich","not required",{"$f":"$W13","v":"not required"},"not required","not required","not required","not required","not required","not required","not required","not required","required if subsequently requested by the EHPA Quality Seal Commission",{"$f":"$AG13","v":"required if subsequently requested by the EHPA Quality Seal Commission"},"required if subsequently requested by the EHPA Quality Seal Commission","required if subsequently requested by the EHPA Quality Seal Commission","required if subsequently requested by the EHPA Quality Seal Commission"]
[null,"- Minmaler \"SCOP_domestic hot water\", bzw. \"COP_domestic hot water\" wird eingehalten\nA7 ≥ 2,8 / A15 ≥ 2,9 / A20 ≥ 3,2 / B0 ≥ 2,8 / W10 ≥ 3,0","not required","not required","not required","not required","required","not required",{"$f":"$H14","v":"not required"},"not required","not required","required","not required","not required","not required","not required","not required","not required","not required","not required","not required","erforderlich","not required",{"$f":"$W14","v":"not required"},"not required","not required","not required","not required","not required","not required","not required","not required","required if subsequently requested by the EHPA Quality Seal Commission","required if subsequently requested by the EHPA Quality Seal Commission","required if subsequently requested by the EHPA Quality Seal Commission","required if subsequently requested by the EHPA Quality Seal Commission","required if subsequently requested by the EHPA Quality Seal Commission"]
[null,"Unterfertigte Baugleicheitsbescheinigung des Herstellers, falls die Produktbezeichnungen am Prüfbericht/HP Keymark und am EHPA Label nicht gleich sind (siehe Vorlage unter www.waermepumpe-austria.at/dienste/guetesiegel/dokumente-und-links)","required if the product designations on the accredited test report are different from those in the EHPA quality seal application","required if the product designations on the accredited test report are different from those in the EHPA quality seal application","required if the product designations on the accredited test report are different from those in the EHPA quality seal application","required if the product designations on the accredited test report are different from those in the EHPA quality seal application",{"$f":"$C15","v":"required if the product designations on the accredited test report are different from those in the EHPA quality seal application"},"required if the products are to be named differently than on the parental quality label or the testreport","required if the products are to be named differently than on the parental quality label or the testreport","required if the products are to be named differently than on the parental quality label or the testreport","required if the products are to be named differently than on the parental quality label or the testreport","required if the products are to be named differently than on the parental quality label or the testreport","not required","not required","not required","not required","not required","required if subsequently requested by the EHPA Quality Seal Commission",{"$f":"$R15","v":"required if subsequently requested by the EHPA Quality Seal Commission"},"required if subsequently requested by the EHPA Quality Seal Commission","required if subsequently requested by the EHPA Quality Seal Commission","required if subsequently requested by the EHPA Quality Seal Commission","required if the product designations on the accredited test report are different from those in the EHPA quality seal application",{"$f":"$W15","v":"required if the product designations on the accredited test report are different from those in the EHPA quality seal application"},"required if the product designations on the accredited test report are different from those in the EHPA quality seal application","required if the product designations on the accredited test report are different from those in the EHPA quality seal application","required if the product designations on the accredited test report are different from those in the EHPA quality seal application","required","required","required","required","required","required if subsequently requested by the EHPA Quality Seal Commission","required if subsequently requested by the EHPA Quality Seal Commission","required if subsequently requested by the EHPA Quality Seal Commission","required if subsequently requested by the EHPA Quality Seal Commission","required if subsequently requested by the EHPA Quality Seal Commission"]
[null,"Unterfertigte CE-Konformitäts-Erklärung","required","required","required","required",{"$f":"$C16","v":"required"},"required if the products are to be labeled differently than on the Parental Seal of Quality or the Parental Seal of Quality was issued in a non-German-speaking country","required if the products are to be labeled differently than on the Parental Seal of Quality or the Parental Seal of Quality was issued in a non-German-speaking country","required if the products are to be labeled differently than on the Parental Seal of Quality or the Parental Seal of Quality was issued in a non-German-speaking country","required if the products are to be labeled differently than on the Parental Seal of Quality or the Parental Seal of Quality was issued in a non-German-speaking country","required if the products are to be labeled differently than on the Parental Seal of Quality or the Parental Seal of Quality was issued in a non-German-speaking country","not required","not required","not required","not required","not required","required if subsequently requested by the EHPA Quality Seal Commission","required if subsequently requested by the EHPA Quality Seal Commission","required if subsequently requested by the EHPA Quality Seal Commission","required if subsequently requested by the EHPA Quality Seal Commission","required if subsequently requested by the EHPA Quality Seal Commission","required",{"$f":"$W16","v":"required"},"required","required","required","required","required","required","required","required","required if subsequently requested by the EHPA Quality Seal Commission","required if subsequently requested by the EHPA Quality Seal Commission","required if subsequently requested by the EHPA Quality Seal Commission","required if subsequently requested by the EHPA Quality Seal Commission","required if subsequently requested by the EHPA Quality Seal Commission"]
[null,"Formelle Zustimmung vom Elterngütesiegel-Halter (siehe Vorlage unter www.waermepumpe-austria.at/dienste/guetesiegel/dokumente-und-links)","not required","not required","not required","not required",{"$f":"$C17","v":"not required"},"required if the name on the parent seal of approval is different from that on the transfer seal of approval (follow-up)","required if the name on the parent seal of approval is different from that on the transfer seal of approval (follow-up)","required if the name on the parent seal of approval is different from that on the transfer seal of approval (follow-up)","required if the name on the parent seal of approval is different from that on the transfer seal of approval (follow-up)","required if the name on the parent seal of approval is different from that on the transfer seal of approval (follow-up)","not required","not required","not required","not required","not required","not required",{"$f":"$R17","v":"not required"},"not required","not required","not required","not required","not required","not required","not required","not required","not required","not required","not required","not required","not required",{"$f":"$M17","v":"not required"},"not required","not required","not required","not required"]
[2,"Antrag","-","-","-","-","-","-","-","-","-","-","-","-","-","-","-","-","-","-","-","-","-","-","-","-","-","-","-","-","-","-","-","-","-","-","-"]
[null,"Hauptkomponenten Liste hochladen (Hersteller, Typenbezeichnung) und in der Online-Maske im Model inkl. SCOP Werte ausfüllen.","required",{"$f":"$C19","v":"required"},"required","required","required","does not need to be resubmitted",{"$f":"$H19","v":"does not need to be resubmitted"},"does not need to be resubmitted","does not need to be resubmitted","does not need to be resubmitted","not required",{"$f":"$M19","v":"not required"},"not required","not required","not required","required if subsequently requested by the EHPA Quality Seal Commission",{"$f":"$R19","v":"required if subsequently requested by the EHPA Quality Seal Commission"},"required if subsequently requested by the EHPA Quality Seal Commission","required if subsequently requested by the EHPA Quality Seal Commission","required if subsequently requested by the EHPA Quality Seal Commission","required",{"$f":"$W19","v":"required"},"required","required","required","not required","not required","not required","not required","not required","required if subsequently requested by the EHPA Quality Seal Commission",{"$f":"$AG19","v":"required if subsequently requested by the EHPA Quality Seal Commission"},"required if subsequently requested by the EHPA Quality Seal Commission","required if subsequently requested by the EHPA Quality Seal Commission","required if subsequently requested by the EHPA Quality Seal Commission"]
[null,"Eintragen der Daten nach EN 14511, EN 14825 und EN 12102-1 in der Online-Maske bei den einzelnen Modellen ausfüllen.","required","required","required","required","required","does not need to be resubmitted","does not need to be resubmitted","does not need to be resubmitted","does not need to be resubmitted","does not need to be resubmitted","not required","not required","not required","not required","not required","required","required","required","required","required","required","required","required","required","required","required","required","required","required","required","required",{"$f":"$AG20","v":"required"},"required","required","required"]
[3,"Kundenservice  (deutschsprachig)","-","-","-","-","-","-","-","-","-","-","-","-","-","-","-","-","-","-","-","-","-","-","-","-","-","-","-","-","-","-","-","-","-","-","-"]
[null,"Formular-Vorlage für den Inbetriebnahme- und Wartungs-Techniker","required",{"$f":"$C22","v":"required"},"required","required","required","required if the parental seal of approval was issued in a non-German-speaking country",{"$f":"$H22","v":"required if the parental seal of approval was issued in a non-German-speaking country"},"required if the parental seal of approval was issued in a non-German-speaking country","required if the parental seal of approval was issued in a non-German-speaking country","required if the parental seal of approval was issued in a non-German-speaking country","not required",{"$f":"$M22","v":"not required"},"not required","not required","not required","required if subsequently requested by the EHPA Quality Seal Commission",{"$f":"$R22","v":"required if subsequently requested by the EHPA Quality Seal Commission"},"required if subsequently requested by the EHPA Quality Seal Commission","required if subsequently requested by the EHPA Quality Seal Commission","required if subsequently requested by the EHPA Quality Seal Commission","muss nicht erneut eingereicht werden",{"$f":"$W22","v":"muss nicht erneut eingereicht werden"},"muss nicht erneut eingereicht werden","muss nicht erneut eingereicht werden","muss nicht erneut eingereicht werden","not required","not required","not required","not required","not required",{"$f":"$M22","v":"not required"},{"$f":"$AG22","v":"not required"},"not required","not required","not required"]
[null,"Garantie für mindestens 2 Jahre","required","required","required","required","required","required if the company and/or product names on the parent label are different from those on the transfer label (follow-up)","required if the company and/or product names on the parent label are different from those on the transfer label (follow-up)","required if the company and/or product names on the parent label are different from those on the transfer label (follow-up)","required if the company and/or product names on the parent label are different from those on the transfer label (follow-up)","required if the company and/or product names on the parent label are different from those on the transfer label (follow-up)","not required","not required","not required","not required","not required","required if subsequently requested by the EHPA Quality Seal Commission","required if subsequently requested by the EHPA Quality Seal Commission","required if subsequently requested by the EHPA Quality Seal Commission","required if subsequently requested by the EHPA Quality Seal Commission","required if subsequently requested by the EHPA Quality Seal Commission","muss nicht erneut eingereicht werden","muss nicht erneut eingereicht werden","muss nicht erneut eingereicht werden","muss nicht erneut eingereicht werden","muss nicht erneut eingereicht werden","not required","not required","not required","not required","not required","not required","not required","not required","not required","not required"]
[null,"Ersatzteilgarantie für mindestens 10 Jahre","required","required","required","required","required","required if the company and/or product names on the parent label are different from those on the transfer label (follow-up)","required if the company and/or product names on the parent label are different from those on the transfer label (follow-up)","required if the company and/or product names on the parent label are different from those on the transfer label (follow-up)","required if the company and/or product names on the parent label are different from those on the transfer label (follow-up)","required if the company and/or product names on the parent label are different from those on the transfer label (follow-up)","not required","not required","not required","not required","not required","required if subsequently requested by the EHPA Quality Seal Commission","required if subsequently requested by the EHPA Quality Seal Commission","required if subsequently requested by the EHPA Quality Seal Commission","required if subsequently requested by the EHPA Quality Seal Commission","required if subsequently requested by the EHPA Quality Seal Commission","muss nicht erneut eingereicht werden","muss nicht erneut eingereicht werden","muss nicht erneut eingereicht werden","muss nicht erneut eingereicht werden","muss nicht erneut eingereicht werden","not required",{"$f":"$AB24","v":"not required"},"not required","not required","not required","not required","not required","not required","not required","not required"]
[null,"Reaktionszeit des Kundendienstes im Vertriebsgebiet innerhalb von 24\nStunden und Kontaktdaten zum Kundendienst im Vertriebsgebiet   (siehe Vorlage unter www.waermepumpe-austria.at/dienste/guetesiegel/dokumente-und-links)","required","required","required","required","required","required","required","required","required","required","not required","not required","not required","not required","not required","required if subsequently requested by the EHPA Quality Seal Commission","required if subsequently requested by the EHPA Quality Seal Commission","required if subsequently requested by the EHPA Quality Seal Commission","required if subsequently requested by the EHPA Quality Seal Commission","required if subsequently requested by the EHPA Quality Seal Commission","muss nicht erneut eingereicht werden","muss nicht erneut eingereicht werden","muss nicht erneut eingereicht werden","muss nicht erneut eingereicht werden","muss nicht erneut eingereicht werden","not required","not required","not required","not required","not required","not required","not required","not required","not required","not required"]
[4,"Bedienungsanleitungen  (deutschsprachig)","-","-","-","-","-","-","-","-","-","-","-","-","-","-","-","-","-","-","-","-","-","-","-","-","-","-","-","-","-","-","-","-","-","-","-"]
[null,"Informationen und Sicherheitshinweise für eine ordnungsgemäße\nNutzung","required",{"$f":"$C27","v":"required"},"required","required","required","required if the products are to be labeled differently than on the Parental Seal of Quality or the Parental Seal of Quality was issued in a non-German-speaking country",{"$f":"$H27","v":"required if the products are to be labeled differently than on the Parental Seal of Quality or the Parental Seal of Quality was issued in a non-German-speaking country"},"required if the products are to be labeled differently than on the Parental Seal of Quality or the Parental Seal of Quality was issued in a non-German-speaking country","required if the products are to be labeled differently than on the Parental Seal of Quality or the Parental Seal of Quality was issued in a non-German-speaking country","required if the products are to be labeled differently than on the Parental Seal of Quality or the Parental Seal of Quality was issued in a non-German-speaking country","not required",{"$f":"$M27","v":"not required"},"not required","not required","not required","required if subsequently requested by the EHPA Quality Seal Commission",{"$f":"$R27","v":"required if subsequently requested by the EHPA Quality Seal Commission"},"required if subsequently requested by the EHPA Quality Seal Commission","required if subsequently requested by the EHPA Quality Seal Commission","required if subsequently requested by the EHPA Quality Seal Commission","required",{"$f":"$W27","v":"required"},"required","required","required","required for new product names",{"$f":"$AB27","v":"required for new product names"},"required for new product names","required for new product names","required for new product names","required if subsequently requested by the EHPA Quality Seal Commission",{"$f":"$AG27","v":"required if subsequently requested by the EHPA Quality Seal Commission"},"required if subsequently requested by the EHPA Quality Seal Commission","required if subsequently requested by the EHPA Quality Seal Commission","required if subsequently requested by the EHPA Quality Seal Commission"]
[null,"Anleitung zur Bedienung der Wärmepumpe","required","required","required","required","required","required if the products are to be labeled differently than on the Parental Seal of Quality or the Parental Seal of Quality was issued in a non-German-speaking country","required if the products are to be labeled differently than on the Parental Seal of Quality or the Parental Seal of Quality was issued in a non-German-speaking country","required if the products are to be labeled differently than on the Parental Seal of Quality or the Parental Seal of Quality was issued in a non-German-speaking country","required if the products are to be labeled differently than on the Parental Seal of Quality or the Parental Seal of Quality was issued in a non-German-speaking country","required if the products are to be labeled differently than on the Parental Seal of Quality or the Parental Seal of Quality was issued in a non-German-speaking country","not required","not required","not required","not required","not required","required if subsequently requested by the EHPA Quality Seal Commission","required if subsequently requested by the EHPA Quality Seal Commission","required if subsequently requested by the EHPA Quality Seal Commission","required if subsequently requested by the EHPA Quality Seal Commission","required if subsequently requested by the EHPA Quality Seal Commission","required","required","required","required","required","required for new product names","required for new product names","required for new product names","required for new product names","required for new product names","required if subsequently requested by the EHPA Quality Seal Commission","required if subsequently requested by the EHPA Quality Seal Commission","required if subsequently requested by the EHPA Quality Seal Commission","required if subsequently requested by the EHPA Quality Seal Commission","required if subsequently requested by the EHPA Quality Seal Commission"]
[null,"Ersatzteilliste","required","required","required","required","required","required if the products are to be labeled differently than on the Parental Seal of Quality or the Parental Seal of Quality was issued in a non-German-speaking country","required if the products are to be labeled differently than on the Parental Seal of Quality or the Parental Seal of Quality was issued in a non-German-speaking country","required if the products are to be labeled differently than on the Parental Seal of Quality or the Parental Seal of Quality was issued in a non-German-speaking country","required if the products are to be labeled differently than on the Parental Seal of Quality or the Parental Seal of Quality was issued in a non-German-speaking country","required if the products are to be labeled differently than on the Parental Seal of Quality or the Parental Seal of Quality was issued in a non-German-speaking country","not required","not required","not required","not required","not required","required if subsequently requested by the EHPA Quality Seal Commission","required if subsequently requested by the EHPA Quality Seal Commission","required if subsequently requested by the EHPA Quality Seal Commission","required if subsequently requested by the EHPA Quality Seal Commission","required if subsequently requested by the EHPA Quality Seal Commission","required","required","required","required","required","required for new product names","required for new product names","required for new product names","required for new product names","required for new product names","required if subsequently requested by the EHPA Quality Seal Commission","required if subsequently requested by the EHPA Quality Seal Commission","required if subsequently requested by the EHPA Quality Seal Commission","required if subsequently requested by the EHPA Quality Seal Commission","required if subsequently requested by the EHPA Quality Seal Commission"]
[5,"Installationsanleitungen  (deutschsprachig)","-","-","-","-","-","-","-","-","-","-","-","-","-","-","-","-","-","-","-","-","-","-","-","-","-","-","-","-","-","-","-","-","-","-","-"]
[null,"Installationsanleitung","required",{"$f":"$C31","v":"required"},"required","required","required","required if the products are to be labeled differently than on the Parental Seal of Quality or the Parental Seal of Quality was issued in a non-German-speaking country",{"$f":"$H31","v":"required if the products are to be labeled differently than on the Parental Seal of Quality or the Parental Seal of Quality was issued in a non-German-speaking country"},"required if the products are to be labeled differently than on the Parental Seal of Quality or the Parental Seal of Quality was issued in a non-German-speaking country","required if the products are to be labeled differently than on the Parental Seal of Quality or the Parental Seal of Quality was issued in a non-German-speaking country","required if the products are to be labeled differently than on the Parental Seal of Quality or the Parental Seal of Quality was issued in a non-German-speaking country","not required",{"$f":"$M31","v":"not required"},"not required","not required","not required","required if subsequently requested by the EHPA Quality Seal Commission",{"$f":"$R31","v":"required if subsequently requested by the EHPA Quality Seal Commission"},"required if subsequently requested by the EHPA Quality Seal Commission","required if subsequently requested by the EHPA Quality Seal Commission","required if subsequently requested by the EHPA Quality Seal Commission","required",{"$f":"$W31","v":"required"},"required","required","required","required for new product names",{"$f":"$AB31","v":"required for new product names"},"required for new product names","required for new product names","required for new product names","required if subsequently requested by the EHPA Quality Seal Commission",{"$f":"$AG31","v":"required if subsequently requested by the EHPA Quality Seal Commission"},"required if subsequently requested by the EHPA Quality Seal Commission","required if subsequently requested by the EHPA Quality Seal Commission","required if subsequently requested by the EHPA Quality Seal Commission"]
[null,"Sicherheitshinweise","required","required","required","required","required","required if the products are to be labeled differently than on the Parental Seal of Quality or the Parental Seal of Quality was issued in a non-German-speaking country","required if the products are to be labeled differently than on the Parental Seal of Quality or the Parental Seal of Quality was issued in a non-German-speaking country","required if the products are to be labeled differently than on the Parental Seal of Quality or the Parental Seal of Quality was issued in a non-German-speaking country","required if the products are to be labeled differently than on the Parental Seal of Quality or the Parental Seal of Quality was issued in a non-German-speaking country","required if the products are to be labeled differently than on the Parental Seal of Quality or the Parental Seal of Quality was issued in a non-German-speaking country","not required","not required","not required","not required","not required","required if subsequently requested by the EHPA Quality Seal Commission","required if subsequently requested by the EHPA Quality Seal Commission","required if subsequently requested by the EHPA Quality Seal Commission","required if subsequently requested by the EHPA Quality Seal Commission","required if subsequently requested by the EHPA Quality Seal Commission","required","required","required","required","required","required for new product names","required for new product names","required for new product names","required for new product names","required for new product names","required if subsequently requested by the EHPA Quality Seal Commission","required if subsequently requested by the EHPA Quality Seal Commission","required if subsequently requested by the EHPA Quality Seal Commission","required if subsequently requested by the EHPA Quality Seal Commission","required if subsequently requested by the EHPA Quality Seal Commission"]
[null,"Inbetriebnahmehinweise","required","required","required","required","required","required if the products are to be labeled differently than on the Parental Seal of Quality or the Parental Seal of Quality was issued in a non-German-speaking country","required if the products are to be labeled differently than on the Parental Seal of Quality or the Parental Seal of Quality was issued in a non-German-speaking country","required if the products are to be labeled differently than on the Parental Seal of Quality or the Parental Seal of Quality was issued in a non-German-speaking country","required if the products are to be labeled differently than on the Parental Seal of Quality or the Parental Seal of Quality was issued in a non-German-speaking country","required if the products are to be labeled differently than on the Parental Seal of Quality or the Parental Seal of Quality was issued in a non-German-speaking country","not required","not required","not required","not required","not required","required if subsequently requested by the EHPA Quality Seal Commission","required if subsequently requested by the EHPA Quality Seal Commission","required if subsequently requested by the EHPA Quality Seal Commission","required if subsequently requested by the EHPA Quality Seal Commission","required if subsequently requested by the EHPA Quality Seal Commission","required","required","required","required","required","required for new product names","required for new product names","required for new product names","required for new product names","required for new product names","required if subsequently requested by the EHPA Quality Seal Commission","required if subsequently requested by the EHPA Quality Seal Commission","required if subsequently requested by the EHPA Quality Seal Commission","required if subsequently requested by the EHPA Quality Seal Commission","required if subsequently requested by the EHPA Quality Seal Commission"]
[null,"Fluidschemata Kältekreis und Wasserkreis","required","required","required","required","required","required if the products are to be labeled differently than on the Parental Seal of Quality or the Parental Seal of Quality was issued in a non-German-speaking country","required if the products are to be labeled differently than on the Parental Seal of Quality or the Parental Seal of Quality was issued in a non-German-speaking country","required if the products are to be labeled differently than on the Parental Seal of Quality or the Parental Seal of Quality was issued in a non-German-speaking country","required if the products are to be labeled differently than on the Parental Seal of Quality or the Parental Seal of Quality was issued in a non-German-speaking country","required if the products are to be labeled differently than on the Parental Seal of Quality or the Parental Seal of Quality was issued in a non-German-speaking country","not required","not required","not required","not required","not required","required if subsequently requested by the EHPA Quality Seal Commission","required if subsequently requested by the EHPA Quality Seal Commission","required if subsequently requested by the EHPA Quality Seal Commission","required if subsequently requested by the EHPA Quality Seal Commission","required if subsequently requested by the EHPA Quality Seal Commission","required","required","required","required","required","required for new product names","required for new product names","required for new product names","required for new product names","required for new product names","required if subsequently requested by the EHPA Quality Seal Commission","required if subsequently requested by the EHPA Quality Seal Commission","required if subsequently requested by the EHPA Quality Seal Commission","required if subsequently requested by the EHPA Quality Seal Commission","required if subsequently requested by the EHPA Quality Seal Commission"]
[null,"Elektroschema zum Anschluss der Wärmepumpe","required","required","required","required","required","required if the products are to be labeled differently than on the Parental Seal of Quality or the Parental Seal of Quality was issued in a non-German-speaking country","required if the products are to be labeled differently than on the Parental Seal of Quality or the Parental Seal of Quality was issued in a non-German-speaking country","required if the products are to be labeled differently than on the Parental Seal of Quality or the Parental Seal of Quality was issued in a non-German-speaking country","required if the products are to be labeled differently than on the Parental Seal of Quality or the Parental Seal of Quality was issued in a non-German-speaking country","required if the products are to be labeled differently than on the Parental Seal of Quality or the Parental Seal of Quality was issued in a non-German-speaking country","not required","not required","not required","not required","not required","required if subsequently requested by the EHPA Quality Seal Commission","required if subsequently requested by the EHPA Quality Seal Commission","required if subsequently requested by the EHPA Quality Seal Commission","required if subsequently requested by the EHPA Quality Seal Commission","required if subsequently requested by the EHPA Quality Seal Commission","required","required","required","required","required","required for new product names","required for new product names","required for new product names","required for new product names","required for new product names","required if subsequently requested by the EHPA Quality Seal Commission","required if subsequently requested by the EHPA Quality Seal Commission","required if subsequently requested by the EHPA Quality Seal Commission","required if subsequently requested by the EHPA Quality Seal Commission","required if subsequently requested by the EHPA Quality Seal Commission"]
[null,"Energy-Label und Energy-Label-Datenblatt nach 811/2013 (Heizungs- und Kombiwärmepumpen), bzw 812/2013 (Warmwasserwärmepumpe)\n(nur bei Geräten mit höchstens 70kW Nennleistung)","required",{"$f":"$C36","v":"required"},"required","required","required","required if the products are to be labeled differently than on the Parental Seal of Quality or the Parental Seal of Quality was issued in a non-German-speaking country","required if the products are to be labeled differently than on the Parental Seal of Quality or the Parental Seal of Quality was issued in a non-German-speaking country","required if the products are to be labeled differently than on the Parental Seal of Quality or the Parental Seal of Quality was issued in a non-German-speaking country","required if the products are to be labeled differently than on the Parental Seal of Quality or the Parental Seal of Quality was issued in a non-German-speaking country","required if the products are to be labeled differently than on the Parental Seal of Quality or the Parental Seal of Quality was issued in a non-German-speaking country","not required","not required","not required","not required","not required","required if subsequently requested by the EHPA Quality Seal Commission","required if subsequently requested by the EHPA Quality Seal Commission","required if subsequently requested by the EHPA Quality Seal Commission","required if subsequently requested by the EHPA Quality Seal Commission","required if subsequently requested by the EHPA Quality Seal Commission","required","required","required","required","required","required for new product names","required for new product names","required for new product names","required for new product names","required for new product names","required if subsequently requested by the EHPA Quality Seal Commission","required if subsequently requested by the EHPA Quality Seal Commission","required if subsequently requested by the EHPA Quality Seal Commission","required if subsequently requested by the EHPA Quality Seal Commission","required if subsequently requested by the EHPA Quality Seal Commission"]
[6,"Technische Daten  (deutschsprachig)","-","-","-","-","-","-","-","-","-","-","-","-","-","-","-","-","-","-","-","-","-","-","-","-","-","-","-","-","-","-","-","-","-","-","-"]
[null,"Leistungsdaten (Wärmeleistung, elektrische Leistungsaufnahme und COP über den gesamten Leistungsbereich)","required","required","required","required","required","required if the products are to be labeled differently than on the Parental Seal of Quality or the Parental Seal of Quality was issued in a non-German-speaking country",{"$f":"$H38","v":"required if the products are to be labeled differently than on the Parental Seal of Quality or the Parental Seal of Quality was issued in a non-German-speaking country"},"required if the products are to be labeled differently than on the Parental Seal of Quality or the Parental Seal of Quality was issued in a non-German-speaking country","required if the products are to be labeled differently than on the Parental Seal of Quality or the Parental Seal of Quality was issued in a non-German-speaking country","required if the products are to be labeled differently than on the Parental Seal of Quality or the Parental Seal of Quality was issued in a non-German-speaking country","not required",{"$f":"$M38","v":"not required"},"not required","not required","not required","required","required","required","required","required","required",{"$f":"$W38","v":"required"},"required","required","required","required for new product names",{"$f":"$AB38","v":"required for new product names"},"required for new product names","required for new product names","required for new product names","required if subsequently requested by the EHPA Quality Seal Commission",{"$f":"$AG38","v":"required if subsequently requested by the EHPA Quality Seal Commission"},"required if subsequently requested by the EHPA Quality Seal Commission","required if subsequently requested by the EHPA Quality Seal Commission","required if subsequently requested by the EHPA Quality Seal Commission"]
[null,"Leistungsdaten nach EN 14511 bei A7/W35 (Wärmeleistung, elektrische Leistungsaufnahme und COP)","required","not required","not required","not required","not required","required","not required","not required","not required","not required","not required","not required","not required","not required","not required","required if subsequently requested by the EHPA Quality Seal Commission",{"$f":"$R39","v":"required if subsequently requested by the EHPA Quality Seal Commission"},"required if subsequently requested by the EHPA Quality Seal Commission","required if subsequently requested by the EHPA Quality Seal Commission","required if subsequently requested by the EHPA Quality Seal Commission","required","not required","not required","not required","not required","required for new product names","nicht erforderlich","nicht erforderlich","nicht erforderlich","nicht erforderlich","required if subsequently requested by the EHPA Quality Seal Commission","required if subsequently requested by the EHPA Quality Seal Commission","required if subsequently requested by the EHPA Quality Seal Commission","required if subsequently requested by the EHPA Quality Seal Commission","required if subsequently requested by the EHPA Quality Seal Commission"]
[null,"Maßzeichnung","required","required","required","required","required","required if the products are to be labeled differently than on the Parental Seal of Quality or the Parental Seal of Quality was issued in a non-German-speaking country","required if the products are to be labeled differently than on the Parental Seal of Quality or the Parental Seal of Quality was issued in a non-German-speaking country","required if the products are to be labeled differently than on the Parental Seal of Quality or the Parental Seal of Quality was issued in a non-German-speaking country","required if the products are to be labeled differently than on the Parental Seal of Quality or the Parental Seal of Quality was issued in a non-German-speaking country","required if the products are to be labeled differently than on the Parental Seal of Quality or the Parental Seal of Quality was issued in a non-German-speaking country","not required","not required","not required","not required","not required","required if subsequently requested by the EHPA Quality Seal Commission","required if subsequently requested by the EHPA Quality Seal Commission","required if subsequently requested by the EHPA Quality Seal Commission","required if subsequently requested by the EHPA Quality Seal Commission","required if subsequently requested by the EHPA Quality Seal Commission","required","required","required","required","required","required for new product names","required for new product names","required for new product names","required for new product names","required for new product names","required if subsequently requested by the EHPA Quality Seal Commission","required if subsequently requested by the EHPA Quality Seal Commission","required if subsequently requested by the EHPA Quality Seal Commission","required if subsequently requested by the EHPA Quality Seal Commission","required if subsequently requested by the EHPA Quality Seal Commission"]
[null,"Mindestabstände","required","required","required","required","required","required if the products are to be labeled differently than on the Parental Seal of Quality or the Parental Seal of Quality was issued in a non-German-speaking country","required if the products are to be labeled differently than on the Parental Seal of Quality or the Parental Seal of Quality was issued in a non-German-speaking country","required if the products are to be labeled differently than on the Parental Seal of Quality or the Parental Seal of Quality was issued in a non-German-speaking country","required if the products are to be labeled differently than on the Parental Seal of Quality or the Parental Seal of Quality was issued in a non-German-speaking country","required if the products are to be labeled differently than on the Parental Seal of Quality or the Parental Seal of Quality was issued in a non-German-speaking country","not required","not required","not required","not required","not required","required if subsequently requested by the EHPA Quality Seal Commission","required if subsequently requested by the EHPA Quality Seal Commission","required if subsequently requested by the EHPA Quality Seal Commission","required if subsequently requested by the EHPA Quality Seal Commission","required if subsequently requested by the EHPA Quality Seal Commission","required","required","required","required","required","required for new product names","required for new product names","required for new product names","required for new product names","required for new product names","required if subsequently requested by the EHPA Quality Seal Commission","required if subsequently requested by the EHPA Quality Seal Commission","required if subsequently requested by the EHPA Quality Seal Commission","required if subsequently requested by the EHPA Quality Seal Commission","required if subsequently requested by the EHPA Quality Seal Commission"]
[null,"Kältemittel: Art und Füllmenge","required","required","required","required","required","required if the products are to be labeled differently than on the Parental Seal of Quality or the Parental Seal of Quality was issued in a non-German-speaking country","required if the products are to be labeled differently than on the Parental Seal of Quality or the Parental Seal of Quality was issued in a non-German-speaking country","required if the products are to be labeled differently than on the Parental Seal of Quality or the Parental Seal of Quality was issued in a non-German-speaking country","required if the products are to be labeled differently than on the Parental Seal of Quality or the Parental Seal of Quality was issued in a non-German-speaking country","required if the products are to be labeled differently than on the Parental Seal of Quality or the Parental Seal of Quality was issued in a non-German-speaking country","not required","not required","not required","not required","not required","required if subsequently requested by the EHPA Quality Seal Commission","required if subsequently requested by the EHPA Quality Seal Commission","required if subsequently requested by the EHPA Quality Seal Commission","required if subsequently requested by the EHPA Quality Seal Commission","required if subsequently requested by the EHPA Quality Seal Commission","required","required","required","required","required","required for new product names","required for new product names","required for new product names","required for new product names","required for new product names","required if subsequently requested by the EHPA Quality Seal Commission","required if subsequently requested by the EHPA Quality Seal Commission","required if subsequently requested by the EHPA Quality Seal Commission","required if subsequently requested by the EHPA Quality Seal Commission","required if subsequently requested by the EHPA Quality Seal Commission"]
[null,"Anlaufstrom / maximaler Betriebsstrom in A","required","required","required","required","required","required if the products are to be labeled differently than on the Parental Seal of Quality or the Parental Seal of Quality was issued in a non-German-speaking country","required if the products are to be labeled differently than on the Parental Seal of Quality or the Parental Seal of Quality was issued in a non-German-speaking country","required if the products are to be labeled differently than on the Parental Seal of Quality or the Parental Seal of Quality was issued in a non-German-speaking country","required if the products are to be labeled differently than on the Parental Seal of Quality or the Parental Seal of Quality was issued in a non-German-speaking country","required if the products are to be labeled differently than on the Parental Seal of Quality or the Parental Seal of Quality was issued in a non-German-speaking country","not required","not required","not required","not required","not required","required if subsequently requested by the EHPA Quality Seal Commission","required if subsequently requested by the EHPA Quality Seal Commission","required if subsequently requested by the EHPA Quality Seal Commission","required if subsequently requested by the EHPA Quality Seal Commission","required if subsequently requested by the EHPA Quality Seal Commission","required","required","required","required","required","required for new product names","required for new product names","required for new product names","required for new product names","required for new product names","required if subsequently requested by the EHPA Quality Seal Commission","required if subsequently requested by the EHPA Quality Seal Commission","required if subsequently requested by the EHPA Quality Seal Commission","required if subsequently requested by the EHPA Quality Seal Commission","required if subsequently requested by the EHPA Quality Seal Commission"]
[null,"Einsatzbereich / Einsatzgrenzen","required",{"$f":"$C44","v":"required"},"required","required","required","required if the products are to be labeled differently than on the Parental Seal of Quality or the Parental Seal of Quality was issued in a non-German-speaking country","required if the products are to be labeled differently than on the Parental Seal of Quality or the Parental Seal of Quality was issued in a non-German-speaking country","required if the products are to be labeled differently than on the Parental Seal of Quality or the Parental Seal of Quality was issued in a non-German-speaking country","required if the products are to be labeled differently than on the Parental Seal of Quality or the Parental Seal of Quality was issued in a non-German-speaking country","required if the products are to be labeled differently than on the Parental Seal of Quality or the Parental Seal of Quality was issued in a non-German-speaking country","not required","not required","not required","not required","not required","required if subsequently requested by the EHPA Quality Seal Commission","required if subsequently requested by the EHPA Quality Seal Commission","required if subsequently requested by the EHPA Quality Seal Commission","required if subsequently requested by the EHPA Quality Seal Commission","required if subsequently requested by the EHPA Quality Seal Commission","required","required","required","required","required","required for new product names","required for new product names","required for new product names","required for new product names","required for new product names","required if subsequently requested by the EHPA Quality Seal Commission","required if subsequently requested by the EHPA Quality Seal Commission","required if subsequently requested by the EHPA Quality Seal Commission","required if subsequently requested by the EHPA Quality Seal Commission","required if subsequently requested by the EHPA Quality Seal Commission"]
[null,"Volumenstrom Quelle- und Senkenseite in m³/h, l/min","required","required","required","required","required","required if the products are to be labeled differently than on the Parental Seal of Quality or the Parental Seal of Quality was issued in a non-German-speaking country","required if the products are to be labeled differently than on the Parental Seal of Quality or the Parental Seal of Quality was issued in a non-German-speaking country","required if the products are to be labeled differently than on the Parental Seal of Quality or the Parental Seal of Quality was issued in a non-German-speaking country","required if the products are to be labeled differently than on the Parental Seal of Quality or the Parental Seal of Quality was issued in a non-German-speaking country","required if the products are to be labeled differently than on the Parental Seal of Quality or the Parental Seal of Quality was issued in a non-German-speaking country","not required","not required","not required","not required","not required","required if subsequently requested by the EHPA Quality Seal Commission","required if subsequently requested by the EHPA Quality Seal Commission","required if subsequently requested by the EHPA Quality Seal Commission","required if subsequently requested by the EHPA Quality Seal Commission","required if subsequently requested by the EHPA Quality Seal Commission","required","required","required","required","required","required for new product names","required for new product names","required for new product names","required for new product names","required for new product names","required if subsequently requested by the EHPA Quality Seal Commission","required if subsequently requested by the EHPA Quality Seal Commission","required if subsequently requested by the EHPA Quality Seal Commission","required if subsequently requested by the EHPA Quality Seal Commission","required if subsequently requested by the EHPA Quality Seal Commission"]
[null,"Volumen des WW-Speichers in Liter","not required",{"$f":"$C46","v":"not required"},"not required","not required","required","not required","not required","not required","not required","required if the products are to be labeled differently than on the Parental Seal of Quality or the Parental Seal of Quality was issued in a non-German-speaking country","not required","not required","not required","not required","not required","not required","not required","not required","not required","not required","not required","not required","not required","not required","erforderlich","not required","not required","not required","not required","required for new product names","required if subsequently requested by the EHPA Quality Seal Commission","required if subsequently requested by the EHPA Quality Seal Commission","required if subsequently requested by the EHPA Quality Seal Commission","required if subsequently requested by the EHPA Quality Seal Commission","required if subsequently requested by the EHPA Quality Seal Commission"]
[null,"Gewicht in kg","required","required","required","required",{"$f":"$C47","v":"required"},"required if the products are to be labeled differently than on the Parental Seal of Quality or the Parental Seal of Quality was issued in a non-German-speaking country","required if the products are to be labeled differently than on the Parental Seal of Quality or the Parental Seal of Quality was issued in a non-German-speaking country","required if the products are to be labeled differently than on the Parental Seal of Quality or the Parental Seal of Quality was issued in a non-German-speaking country","required if the products are to be labeled differently than on the Parental Seal of Quality or the Parental Seal of Quality was issued in a non-German-speaking country","required if the products are to be labeled differently than on the Parental Seal of Quality or the Parental Seal of Quality was issued in a non-German-speaking country","not required","not required","not required","not required","not required","required if subsequently requested by the EHPA Quality Seal Commission","required if subsequently requested by the EHPA Quality Seal Commission","required if subsequently requested by the EHPA Quality Seal Commission","required if subsequently requested by the EHPA Quality Seal Commission","required if subsequently requested by the EHPA Quality Seal Commission","required","required","required","required","required","required for new product names","required for new product names","required for new product names","required for new product names","required for new product names","required if subsequently requested by the EHPA Quality Seal Commission","required if subsequently requested by the EHPA Quality Seal Commission","required if subsequently requested by the EHPA Quality Seal Commission","required if subsequently requested by the EHPA Quality Seal Commission","required if subsequently requested by the EHPA Quality Seal Commission"]
[null,"Schallleistung nach EN 12102 / Energy-Label in [dB(A)]","required","required","required","required",{"$f":"$C48","v":"required"},"required if the products are to be labeled differently than on the Parental Seal of Quality or the Parental Seal of Quality was issued in a non-German-speaking country","required if the products are to be labeled differently than on the Parental Seal of Quality or the Parental Seal of Quality was issued in a non-German-speaking country","required if the products are to be labeled differently than on the Parental Seal of Quality or the Parental Seal of Quality was issued in a non-German-speaking country","required if the products are to be labeled differently than on the Parental Seal of Quality or the Parental Seal of Quality was issued in a non-German-speaking country","required if the products are to be labeled differently than on the Parental Seal of Quality or the Parental Seal of Quality was issued in a non-German-speaking country","not required","not required","not required","not required","not required","required","required","required","required","required","required","required","required","required","required","required for new product names","required for new product names","required for new product names","required for new product names","required for new product names","required if subsequently requested by the EHPA Quality Seal Commission","required if subsequently requested by the EHPA Quality Seal Commission","required if subsequently requested by the EHPA Quality Seal Commission","required if subsequently requested by the EHPA Quality Seal Commission","required if subsequently requested by the EHPA Quality Seal Commission"]
[null,"Schallleistung im EN 14825 Prüfpunkt B (A2) in [dB(A)]","required","required","required","required",{"$f":"$C49","v":"required"},"required if the products are to be labeled differently than on the Parental Seal of Quality or the Parental Seal of Quality was issued in a non-German-speaking country","required if the products are to be labeled differently than on the Parental Seal of Quality or the Parental Seal of Quality was issued in a non-German-speaking country","required if the products are to be labeled differently than on the Parental Seal of Quality or the Parental Seal of Quality was issued in a non-German-speaking country","required if the products are to be labeled differently than on the Parental Seal of Quality or the Parental Seal of Quality was issued in a non-German-speaking country","required if the products are to be labeled differently than on the Parental Seal of Quality or the Parental Seal of Quality was issued in a non-German-speaking country","not required","not required","not required","not required","not required","required","required","required","required","required","required","required","required","required","required","required for new product names","required for new product names","required for new product names","required for new product names","required for new product names","required if subsequently requested by the EHPA Quality Seal Commission","required if subsequently requested by the EHPA Quality Seal Commission","required if subsequently requested by the EHPA Quality Seal Commission","required if subsequently requested by the EHPA Quality Seal Commission","required if subsequently requested by the EHPA Quality Seal Commission"]
[null,"maximaler Schallleistungspegel in dB(A) und dazugehörige Heizleistung in kW","required","not required","not required","required","not required","required if the products are to be labeled differently than on the Parental Seal of Quality or the Parental Seal of Quality was issued in a non-German-speaking country","not required","not required",{"$f":"$H50","v":"required if the products are to be labeled differently than on the Parental Seal of Quality or the Parental Seal of Quality was issued in a non-German-speaking country"},"not required","not required","not required","not required","not required","not required","required","not required","not required","required","not required","required","not required","not required","required","not required","required for new product names","not required","not required","required for new product names","not required","required if subsequently requested by the EHPA Quality Seal Commission","required if subsequently requested by the EHPA Quality Seal Commission","required if subsequently requested by the EHPA Quality Seal Commission","required if subsequently requested by the EHPA Quality Seal Commission","required if subsequently requested by the EHPA Quality Seal Commission"]
[null,"maximaler Schallleistungspegel \"Silent-Mode\" in dB(A) und dazugehörige Heizleistung in kW","required","not required","not required","required","not required","required if the products are to be labeled differently than on the Parental Seal of Quality or the Parental Seal of Quality was issued in a non-German-speaking country","not required","not required",{"$f":"$H51","v":"required if the products are to be labeled differently than on the Parental Seal of Quality or the Parental Seal of Quality was issued in a non-German-speaking country"},"not required","not required","not required","not required","not required","not required","required","not required","not required","required","not required","required","not required","not required","required","not required","required for new product names","not required","not required","required for new product names","not required","required if subsequently requested by the EHPA Quality Seal Commission","required if subsequently requested by the EHPA Quality Seal Commission","required if subsequently requested by the EHPA Quality Seal Commission","required if subsequently requested by the EHPA Quality Seal Commission","required if subsequently requested by the EHPA Quality Seal Commission"]

{"sheet":"ALT Prüfung Priorität","index":3,"n_rows":49,"n_cols":9,"rows_kept":49,"hidden":true}
["2. Prüfung Priorität - verpflichtende Anforderung zum Ausstellen"]
[]
[null,null,{"$f":"'Anforderung Antragsteller'!C3","v":"Initial application"},{"$f":"'Anforderung Antragsteller'!H3","v":"Transfer from another country or another company"},{"$f":"'Anforderung Antragsteller'!M3","v":"1st and 2nd renewal (valid for max. 9 years)"},{"$f":"'Anforderung Antragsteller'!R3","v":"from 3rd renewal (validity over 9 years)"},{"$f":"'Anforderung Antragsteller'!W3","v":"Extension of an existing quality label"},{"$f":"'Anforderung Antragsteller'!AB3","v":"Change of product names"},{"$f":"'Anforderung Antragsteller'!AG3","v":"Technical changes to the product"}]
[1,"Grundlegendes"]
[null,"akkreditierte Prüfberichte nach EN 14511-1 bis 4 und EN 14825, bzw. EN 16147 und EN 12102-1 \nAnzahl hängt vom Umfang der Modelreihe ab","-","-","-","-","-","-","-"]
[null,"- Unterschriebener akkreditierter Leistungs-Prüfbericht UND","ja, egal welches Prüfschema (HP-Keymark, EHPA, …)",{"$f":"IF(OR('Anforderung Antragsteller'!H7=\"muss nicht erneut eingereicht werden\",'Anforderung Antragsteller'!H7=\"nicht erforderlich\"),\"-\",$C6)","v":"ja, egal welches Prüfschema (HP-Keymark, EHPA, …)"},{"$f":"IF(OR('Anforderung Antragsteller'!M7=\"muss nicht erneut eingereicht werden\",'Anforderung Antragsteller'!M7=\"nicht erforderlich\"),\"-\",$C6)","v":"ja, egal welches Prüfschema (HP-Keymark, EHPA, …)"},{"$f":"IF(OR('Anforderung Antragsteller'!R7=\"muss nicht erneut eingereicht werden\",'Anforderung Antragsteller'!R7=\"nicht erforderlich\"),\"-\",$C6)","v":"ja, egal welches Prüfschema (HP-Keymark, EHPA, …)"},{"$f":"IF(OR('Anforderung Antragsteller'!W7=\"muss nicht erneut eingereicht werden\",'Anforderung Antragsteller'!W7=\"nicht erforderlich\"),\"-\",$C6)","v":"ja, egal welches Prüfschema (HP-Keymark, EHPA, …)"},{"$f":"IF(OR('Anforderung Antragsteller'!AB7=\"muss nicht erneut eingereicht werden\",'Anforderung Antragsteller'!AB7=\"nicht erforderlich\"),\"-\",$C6)","v":"ja, egal welches Prüfschema (HP-Keymark, EHPA, …)"},{"$f":"IF(OR('Anforderung Antragsteller'!AG7=\"muss nicht erneut eingereicht werden\",'Anforderung Antragsteller'!AG7=\"nicht erforderlich\"),\"-\",$C6)","v":"ja, egal welches Prüfschema (HP-Keymark, EHPA, …)"}]
[null,"- Unterschriebener akkreditierter Schall-Prüfbericht UND","ja, egal welches Prüfschema (HP-Keymark, EHPA, …)",{"$f":"IF(OR('Anforderung Antragsteller'!H8=\"muss nicht erneut eingereicht werden\",'Anforderung Antragsteller'!H8=\"nicht erforderlich\"),\"-\",$C7)","v":"ja, egal welches Prüfschema (HP-Keymark, EHPA, …)"},{"$f":"IF(OR('Anforderung Antragsteller'!M8=\"muss nicht erneut eingereicht werden\",'Anforderung Antragsteller'!M8=\"nicht erforderlich\"),\"-\",$C7)","v":"ja, egal welches Prüfschema (HP-Keymark, EHPA, …)"},{"$f":"IF(OR('Anforderung Antragsteller'!R8=\"muss nicht erneut eingereicht werden\",'Anforderung Antragsteller'!R8=\"nicht erforderlich\"),\"-\",$C7)","v":"ja, egal welches Prüfschema (HP-Keymark, EHPA, …)"},{"$f":"IF(OR('Anforderung Antragsteller'!W8=\"muss nicht erneut eingereicht werden\",'Anforderung Antragsteller'!W8=\"nicht erforderlich\"),\"-\",$C7)","v":"ja, egal welches Prüfschema (HP-Keymark, EHPA, …)"},{"$f":"IF(OR('Anforderung Antragsteller'!AB8=\"muss nicht erneut eingereicht werden\",'Anforderung Antragsteller'!AB8=\"nicht erforderlich\"),\"-\",$C7)","v":"ja, egal welches Prüfschema (HP-Keymark, EHPA, …)"},{"$f":"IF(OR('Anforderung Antragsteller'!AG8=\"muss nicht erneut eingereicht werden\",'Anforderung Antragsteller'!AG8=\"nicht erforderlich\"),\"-\",$C7)","v":"ja, egal welches Prüfschema (HP-Keymark, EHPA, …)"}]
[null,"- Wenn auf Basis einer HP-Keymark Zertifizierung eingereicht wurde:   gültige HP-Keymarkzertifizierung jedes einzelnes Produktes","lt. Freimüller derzeit nicht, lt. EHPA Regualarien schon",{"$f":"IF(OR('Anforderung Antragsteller'!#REF!=\"muss nicht erneut eingereicht werden\",'Anforderung Antragsteller'!#REF!=\"nicht erforderlich\"),\"-\",$C8)","v":{"$error":"#REF!"}},{"$f":"IF(OR('Anforderung Antragsteller'!#REF!=\"muss nicht erneut eingereicht werden\",'Anforderung Antragsteller'!#REF!=\"nicht erforderlich\"),\"-\",$C8)","v":{"$error":"#REF!"}},{"$f":"IF(OR('Anforderung Antragsteller'!#REF!=\"muss nicht erneut eingereicht werden\",'Anforderung Antragsteller'!#REF!=\"nicht erforderlich\"),\"-\",$C8)","v":{"$error":"#REF!"}},{"$f":"IF(OR('Anforderung Antragsteller'!#REF!=\"muss nicht erneut eingereicht werden\",'Anforderung Antragsteller'!#REF!=\"nicht erforderlich\"),\"-\",$C8)","v":{"$error":"#REF!"}},{"$f":"IF(OR('Anforderung Antragsteller'!#REF!=\"muss nicht erneut eingereicht werden\",'Anforderung Antragsteller'!#REF!=\"nicht erforderlich\"),\"-\",$C8)","v":{"$error":"#REF!"}},{"$f":"IF(OR('Anforderung Antragsteller'!#REF!=\"muss nicht erneut eingereicht werden\",'Anforderung Antragsteller'!#REF!=\"nicht erforderlich\"),\"-\",$C8)","v":{"$error":"#REF!"}}]
[null,"SCOP Anforderungen für Heizungs-Wärmepumpen\n(nicht notwendig bei reinen Brauchwasser-Wärmepumpen)","-",{"$f":"IF(OR('Anforderung Antragsteller'!H9=\"muss nicht erneut eingereicht werden\",'Anforderung Antragsteller'!H9=\"nicht erforderlich\"),\"-\",$C9)","v":"-"},{"$f":"IF(OR('Anforderung Antragsteller'!M9=\"muss nicht erneut eingereicht werden\",'Anforderung Antragsteller'!M9=\"nicht erforderlich\"),\"-\",$C9)","v":"-"},{"$f":"IF(OR('Anforderung Antragsteller'!R9=\"muss nicht erneut eingereicht werden\",'Anforderung Antragsteller'!R9=\"nicht erforderlich\"),\"-\",$C9)","v":"-"},{"$f":"IF(OR('Anforderung Antragsteller'!W9=\"muss nicht erneut eingereicht werden\",'Anforderung Antragsteller'!W9=\"nicht erforderlich\"),\"-\",$C9)","v":"-"},{"$f":"IF(OR('Anforderung Antragsteller'!AB9=\"muss nicht erneut eingereicht werden\",'Anforderung Antragsteller'!AB9=\"nicht erforderlich\"),\"-\",$C9)","v":"-"},{"$f":"IF(OR('Anforderung Antragsteller'!AG9=\"muss nicht erneut eingereicht werden\",'Anforderung Antragsteller'!AG9=\"nicht erforderlich\"),\"-\",$C9)","v":"-"}]
[null,"- Niedertemperaturanwendung (35°C) und durchschnittliches Klima:\n       SCOP Min : 4,3 (B/W, W/W, DX/W);\n       SCOP Min : 3,5 (A/W); SCOP Min : 3,4 (A/A);","ja, bei Heizungs-WP",{"$f":"IF(OR('Anforderung Antragsteller'!H10=\"muss nicht erneut eingereicht werden\",'Anforderung Antragsteller'!H10=\"nicht erforderlich\"),\"-\",$C10)","v":"ja, bei Heizungs-WP"},{"$f":"IF(OR('Anforderung Antragsteller'!M10=\"muss nicht erneut eingereicht werden\",'Anforderung Antragsteller'!M10=\"nicht erforderlich\"),\"-\",$C10)","v":"ja, bei Heizungs-WP"},{"$f":"IF(OR('Anforderung Antragsteller'!R10=\"muss nicht erneut eingereicht werden\",'Anforderung Antragsteller'!R10=\"nicht erforderlich\"),\"-\",$C10)","v":"ja, bei Heizungs-WP"},{"$f":"IF(OR('Anforderung Antragsteller'!W10=\"muss nicht erneut eingereicht werden\",'Anforderung Antragsteller'!W10=\"nicht erforderlich\"),\"-\",$C10)","v":"ja, bei Heizungs-WP"},{"$f":"IF(OR('Anforderung Antragsteller'!AB10=\"muss nicht erneut eingereicht werden\",'Anforderung Antragsteller'!AB10=\"nicht erforderlich\"),\"-\",$C10)","v":"ja, bei Heizungs-WP"},{"$f":"IF(OR('Anforderung Antragsteller'!AG10=\"muss nicht erneut eingereicht werden\",'Anforderung Antragsteller'!AG10=\"nicht erforderlich\"),\"-\",$C10)","v":"ja, bei Heizungs-WP"}]
[null,"- Mitteltemperaturanwendung (55°C) und durchschnittliches Klima:\n       SCOP Min : 3,38 (B/W, W/W, DX/W);\n       SCOP Min : 3 (A/W)","ja, bei Heizungs-WP",{"$f":"IF(OR('Anforderung Antragsteller'!H11=\"muss nicht erneut eingereicht werden\",'Anforderung Antragsteller'!H11=\"nicht erforderlich\"),\"-\",$C11)","v":"ja, bei Heizungs-WP"},{"$f":"IF(OR('Anforderung Antragsteller'!M11=\"muss nicht erneut eingereicht werden\",'Anforderung Antragsteller'!M11=\"nicht erforderlich\"),\"-\",$C11)","v":"ja, bei Heizungs-WP"},{"$f":"IF(OR('Anforderung Antragsteller'!R11=\"muss nicht erneut eingereicht werden\",'Anforderung Antragsteller'!R11=\"nicht erforderlich\"),\"-\",$C11)","v":"ja, bei Heizungs-WP"},{"$f":"IF(OR('Anforderung Antragsteller'!W11=\"muss nicht erneut eingereicht werden\",'Anforderung Antragsteller'!W11=\"nicht erforderlich\"),\"-\",$C11)","v":"ja, bei Heizungs-WP"},{"$f":"IF(OR('Anforderung Antragsteller'!AB11=\"muss nicht erneut eingereicht werden\",'Anforderung Antragsteller'!AB11=\"nicht erforderlich\"),\"-\",$C11)","v":"ja, bei Heizungs-WP"},{"$f":"IF(OR('Anforderung Antragsteller'!AG11=\"muss nicht erneut eingereicht werden\",'Anforderung Antragsteller'!AG11=\"nicht erforderlich\"),\"-\",$C11)","v":"ja, bei Heizungs-WP"}]
[null,"Anforderungen für Brauchwasser-Wärmepumpen\n(nur bei Brauchwasser-Wärmepumpen)","-",{"$f":"IF(OR('Anforderung Antragsteller'!H12=\"muss nicht erneut eingereicht werden\",'Anforderung Antragsteller'!H12=\"nicht erforderlich\"),\"-\",$C12)","v":"-"},{"$f":"IF(OR('Anforderung Antragsteller'!M12=\"muss nicht erneut eingereicht werden\",'Anforderung Antragsteller'!M12=\"nicht erforderlich\"),\"-\",$C12)","v":"-"},{"$f":"IF(OR('Anforderung Antragsteller'!R12=\"muss nicht erneut eingereicht werden\",'Anforderung Antragsteller'!R12=\"nicht erforderlich\"),\"-\",$C12)","v":"-"},{"$f":"IF(OR('Anforderung Antragsteller'!W12=\"muss nicht erneut eingereicht werden\",'Anforderung Antragsteller'!W12=\"nicht erforderlich\"),\"-\",$C12)","v":"-"},{"$f":"IF(OR('Anforderung Antragsteller'!AB12=\"muss nicht erneut eingereicht werden\",'Anforderung Antragsteller'!AB12=\"nicht erforderlich\"),\"-\",$C12)","v":"-"},{"$f":"IF(OR('Anforderung Antragsteller'!AG12=\"muss nicht erneut eingereicht werden\",'Anforderung Antragsteller'!AG12=\"nicht erforderlich\"),\"-\",$C12)","v":"-"}]
[null,"- Die Wärmpumpe muss mindestens 52°C Warmwasser erzeugen können","ja, bei Brauchwasser-WP",{"$f":"IF(OR('Anforderung Antragsteller'!H13=\"muss nicht erneut eingereicht werden\",'Anforderung Antragsteller'!H13=\"nicht erforderlich\"),\"-\",$C13)","v":"ja, bei Brauchwasser-WP"},{"$f":"IF(OR('Anforderung Antragsteller'!M13=\"muss nicht erneut eingereicht werden\",'Anforderung Antragsteller'!M13=\"nicht erforderlich\"),\"-\",$C13)","v":"ja, bei Brauchwasser-WP"},{"$f":"IF(OR('Anforderung Antragsteller'!R13=\"muss nicht erneut eingereicht werden\",'Anforderung Antragsteller'!R13=\"nicht erforderlich\"),\"-\",$C13)","v":"ja, bei Brauchwasser-WP"},{"$f":"IF(OR('Anforderung Antragsteller'!W13=\"muss nicht erneut eingereicht werden\",'Anforderung Antragsteller'!W13=\"nicht erforderlich\"),\"-\",$C13)","v":"ja, bei Brauchwasser-WP"},{"$f":"IF(OR('Anforderung Antragsteller'!AB13=\"muss nicht erneut eingereicht werden\",'Anforderung Antragsteller'!AB13=\"nicht erforderlich\"),\"-\",$C13)","v":"ja, bei Brauchwasser-WP"},{"$f":"IF(OR('Anforderung Antragsteller'!AG13=\"muss nicht erneut eingereicht werden\",'Anforderung Antragsteller'!AG13=\"nicht erforderlich\"),\"-\",$C13)","v":"ja, bei Brauchwasser-WP"}]
[null,"- Minmaler \"SCOP_domestic hot water\", bzw. \"COP_domestic hot water\" wird eingehalten\nA7 ≥ 2,8 / A15 ≥ 2,9 / A20 ≥ 3,2 / B0 ≥ 2,8 / W10 ≥ 3,0","ja, bei Brauchwasser-WP",{"$f":"IF(OR('Anforderung Antragsteller'!H14=\"muss nicht erneut eingereicht werden\",'Anforderung Antragsteller'!H14=\"nicht erforderlich\"),\"-\",$C14)","v":"ja, bei Brauchwasser-WP"},{"$f":"IF(OR('Anforderung Antragsteller'!M14=\"muss nicht erneut eingereicht werden\",'Anforderung Antragsteller'!M14=\"nicht erforderlich\"),\"-\",$C14)","v":"ja, bei Brauchwasser-WP"},{"$f":"IF(OR('Anforderung Antragsteller'!R14=\"muss nicht erneut eingereicht werden\",'Anforderung Antragsteller'!R14=\"nicht erforderlich\"),\"-\",$C14)","v":"ja, bei Brauchwasser-WP"},{"$f":"IF(OR('Anforderung Antragsteller'!W14=\"muss nicht erneut eingereicht werden\",'Anforderung Antragsteller'!W14=\"nicht erforderlich\"),\"-\",$C14)","v":"ja, bei Brauchwasser-WP"},{"$f":"IF(OR('Anforderung Antragsteller'!AB14=\"muss nicht erneut eingereicht werden\",'Anforderung Antragsteller'!AB14=\"nicht erforderlich\"),\"-\",$C14)","v":"ja, bei Brauchwasser-WP"},{"$f":"IF(OR('Anforderung Antragsteller'!AG14=\"muss nicht erneut eingereicht werden\",'Anforderung Antragsteller'!AG14=\"nicht erforderlich\"),\"-\",$C14)","v":"ja, bei Brauchwasser-WP"}]
[null,"Unterfertigte Baugleicheitsbescheinigung des Herstellers, falls die Produktbezeichnungen am Prüfbericht/HP Keymark und am EHPA Label nicht gleich sind (siehe Vorlage unter www.waermepumpe-austria.at/dienste/guetesiegel/dokumente-und-links)","ja, wenn notwendig",{"$f":"IF(OR('Anforderung Antragsteller'!H15=\"muss nicht erneut eingereicht werden\",'Anforderung Antragsteller'!H15=\"nicht erforderlich\"),\"-\",$C15)","v":"ja, wenn notwendig"},{"$f":"IF(OR('Anforderung Antragsteller'!M15=\"muss nicht erneut eingereicht werden\",'Anforderung Antragsteller'!M15=\"nicht erforderlich\"),\"-\",$C15)","v":"ja, wenn notwendig"},{"$f":"IF(OR('Anforderung Antragsteller'!R15=\"muss nicht erneut eingereicht werden\",'Anforderung Antragsteller'!R15=\"nicht erforderlich\"),\"-\",$C15)","v":"ja, wenn notwendig"},{"$f":"IF(OR('Anforderung Antragsteller'!W15=\"muss nicht erneut eingereicht werden\",'Anforderung Antragsteller'!W15=\"nicht erforderlich\"),\"-\",$C15)","v":"ja, wenn notwendig"},{"$f":"IF(OR('Anforderung Antragsteller'!AB15=\"muss nicht erneut eingereicht werden\",'Anforderung Antragsteller'!AB15=\"nicht erforderlich\"),\"-\",$C15)","v":"ja, wenn notwendig"},{"$f":"IF(OR('Anforderung Antragsteller'!AG15=\"muss nicht erneut eingereicht werden\",'Anforderung Antragsteller'!AG15=\"nicht erforderlich\"),\"-\",$C15)","v":"ja, wenn notwendig"}]
[null,"Unterfertigte CE-Konformitäts-Erklärung","ja",{"$f":"IF(OR('Anforderung Antragsteller'!H16=\"muss nicht erneut eingereicht werden\",'Anforderung Antragsteller'!H16=\"nicht erforderlich\"),\"-\",$C16)","v":"ja"},{"$f":"IF(OR('Anforderung Antragsteller'!M16=\"muss nicht erneut eingereicht werden\",'Anforderung Antragsteller'!M16=\"nicht erforderlich\"),\"-\",$C16)","v":"ja"},{"$f":"IF(OR('Anforderung Antragsteller'!R16=\"muss nicht erneut eingereicht werden\",'Anforderung Antragsteller'!R16=\"nicht erforderlich\"),\"-\",$C16)","v":"ja"},{"$f":"IF(OR('Anforderung Antragsteller'!W16=\"muss nicht erneut eingereicht werden\",'Anforderung Antragsteller'!W16=\"nicht erforderlich\"),\"-\",$C16)","v":"ja"},{"$f":"IF(OR('Anforderung Antragsteller'!AB16=\"muss nicht erneut eingereicht werden\",'Anforderung Antragsteller'!AB16=\"nicht erforderlich\"),\"-\",$C16)","v":"ja"},{"$f":"IF(OR('Anforderung Antragsteller'!AG16=\"muss nicht erneut eingereicht werden\",'Anforderung Antragsteller'!AG16=\"nicht erforderlich\"),\"-\",$C16)","v":"ja"}]
[null,"Formelle Zustimmung vom Elterngütesiegel-Halter (siehe Vorlage unter www.waermepumpe-austria.at/dienste/guetesiegel/dokumente-und-links)","ja, wenn Übertragung",{"$f":"IF(OR('Anforderung Antragsteller'!H17=\"muss nicht erneut eingereicht werden\",'Anforderung Antragsteller'!H17=\"nicht erforderlich\"),\"-\",$C17)","v":"ja, wenn Übertragung"},{"$f":"IF(OR('Anforderung Antragsteller'!M17=\"muss nicht erneut eingereicht werden\",'Anforderung Antragsteller'!M17=\"nicht erforderlich\"),\"-\",$C17)","v":"ja, wenn Übertragung"},{"$f":"IF(OR('Anforderung Antragsteller'!R17=\"muss nicht erneut eingereicht werden\",'Anforderung Antragsteller'!R17=\"nicht erforderlich\"),\"-\",$C17)","v":"ja, wenn Übertragung"},{"$f":"IF(OR('Anforderung Antragsteller'!W17=\"muss nicht erneut eingereicht werden\",'Anforderung Antragsteller'!W17=\"nicht erforderlich\"),\"-\",$C17)","v":"ja, wenn Übertragung"},{"$f":"IF(OR('Anforderung Antragsteller'!AB17=\"muss nicht erneut eingereicht werden\",'Anforderung Antragsteller'!AB17=\"nicht erforderlich\"),\"-\",$C17)","v":"ja, wenn Übertragung"},{"$f":"IF(OR('Anforderung Antragsteller'!AG17=\"muss nicht erneut eingereicht werden\",'Anforderung Antragsteller'!AG17=\"nicht erforderlich\"),\"-\",$C17)","v":"ja, wenn Übertragung"}]
[2,"Antrag","-",{"$f":"IF(OR('Anforderung Antragsteller'!H18=\"muss nicht erneut eingereicht werden\",'Anforderung Antragsteller'!H18=\"nicht erforderlich\"),\"-\",$C18)","v":"-"},{"$f":"IF(OR('Anforderung Antragsteller'!M18=\"muss nicht erneut eingereicht werden\",'Anforderung Antragsteller'!M18=\"nicht erforderlich\"),\"-\",$C18)","v":"-"},{"$f":"IF(OR('Anforderung Antragsteller'!R18=\"muss nicht erneut eingereicht werden\",'Anforderung Antragsteller'!R18=\"nicht erforderlich\"),\"-\",$C18)","v":"-"},{"$f":"IF(OR('Anforderung Antragsteller'!W18=\"muss nicht erneut eingereicht werden\",'Anforderung Antragsteller'!W18=\"nicht erforderlich\"),\"-\",$C18)","v":"-"},{"$f":"IF(OR('Anforderung Antragsteller'!AB18=\"muss nicht erneut eingereicht werden\",'Anforderung Antragsteller'!AB18=\"nicht erforderlich\"),\"-\",$C18)","v":"-"},{"$f":"IF(OR('Anforderung Antragsteller'!AG18=\"muss nicht erneut eingereicht werden\",'Anforderung Antragsteller'!AG18=\"nicht erforderlich\"),\"-\",$C18)","v":"-"}]
[null,"Hauptkomponenten (Hersteller, Typenbezeichnung) und technische Werte in der Online-Maske ausfüllen","ja, beim geprüften Produkt mit dem Prüfbericht vergleichen",{"$f":"IF(OR('Anforderung Antragsteller'!H19=\"muss nicht erneut eingereicht werden\",'Anforderung Antragsteller'!H19=\"nicht erforderlich\"),\"-\",$C19)","v":"ja, beim geprüften Produkt mit dem Prüfbericht vergleichen"},{"$f":"IF(OR('Anforderung Antragsteller'!M19=\"muss nicht erneut eingereicht werden\",'Anforderung Antragsteller'!M19=\"nicht erforderlich\"),\"-\",$C19)","v":"ja, beim geprüften Produkt mit dem Prüfbericht vergleichen"},{"$f":"IF(OR('Anforderung Antragsteller'!R19=\"muss nicht erneut eingereicht werden\",'Anforderung Antragsteller'!R19=\"nicht erforderlich\"),\"-\",$C19)","v":"ja, beim geprüften Produkt mit dem Prüfbericht vergleichen"},{"$f":"IF(OR('Anforderung Antragsteller'!W19=\"muss nicht erneut eingereicht werden\",'Anforderung Antragsteller'!W19=\"nicht erforderlich\"),\"-\",$C19)","v":"ja, beim geprüften Produkt mit dem Prüfbericht vergleichen"},{"$f":"IF(OR('Anforderung Antragsteller'!AB19=\"muss nicht erneut eingereicht werden\",'Anforderung Antragsteller'!AB19=\"nicht erforderlich\"),\"-\",$C19)","v":"ja, beim geprüften Produkt mit dem Prüfbericht vergleichen"},{"$f":"IF(OR('Anforderung Antragsteller'!AG19=\"muss nicht erneut eingereicht werden\",'Anforderung Antragsteller'!AG19=\"nicht erforderlich\"),\"-\",$C19)","v":"ja, beim geprüften Produkt mit dem Prüfbericht vergleichen"}]
[3,"Kundenservice  (deutschsprachig)","-",{"$f":"IF(OR('Anforderung Antragsteller'!H21=\"muss nicht erneut eingereicht werden\",'Anforderung Antragsteller'!H21=\"nicht erforderlich\"),\"-\",$C20)","v":"-"},{"$f":"IF(OR('Anforderung Antragsteller'!M21=\"muss nicht erneut eingereicht werden\",'Anforderung Antragsteller'!M21=\"nicht erforderlich\"),\"-\",$C20)","v":"-"},{"$f":"IF(OR('Anforderung Antragsteller'!R21=\"muss nicht erneut eingereicht werden\",'Anforderung Antragsteller'!R21=\"nicht erforderlich\"),\"-\",$C20)","v":"-"},{"$f":"IF(OR('Anforderung Antragsteller'!W21=\"muss nicht erneut eingereicht werden\",'Anforderung Antragsteller'!W21=\"nicht erforderlich\"),\"-\",$C20)","v":"-"},{"$f":"IF(OR('Anforderung Antragsteller'!AB21=\"muss nicht erneut eingereicht werden\",'Anforderung Antragsteller'!AB21=\"nicht erforderlich\"),\"-\",$C20)","v":"-"},{"$f":"IF(OR('Anforderung Antragsteller'!AG21=\"muss nicht erneut eingereicht werden\",'Anforderung Antragsteller'!AG21=\"nicht erforderlich\"),\"-\",$C20)","v":"-"}]
[null,"Formular-Vorlage für den Inbetriebnahme- und Wartungs-Techniker","nein",{"$f":"IF(OR('Anforderung Antragsteller'!H22=\"muss nicht erneut eingereicht werden\",'Anforderung Antragsteller'!H22=\"nicht erforderlich\"),\"-\",$C21)","v":"nein"},{"$f":"IF(OR('Anforderung Antragsteller'!M22=\"muss nicht erneut eingereicht werden\",'Anforderung Antragsteller'!M22=\"nicht erforderlich\"),\"-\",$C21)","v":"nein"},{"$f":"IF(OR('Anforderung Antragsteller'!R22=\"muss nicht erneut eingereicht werden\",'Anforderung Antragsteller'!R22=\"nicht erforderlich\"),\"-\",$C21)","v":"nein"},{"$f":"IF(OR('Anforderung Antragsteller'!W22=\"muss nicht erneut eingereicht werden\",'Anforderung Antragsteller'!W22=\"nicht erforderlich\"),\"-\",$C21)","v":"-"},{"$f":"IF(OR('Anforderung Antragsteller'!AB22=\"muss nicht erneut eingereicht werden\",'Anforderung Antragsteller'!AB22=\"nicht erforderlich\"),\"-\",$C21)","v":"nein"},{"$f":"IF(OR('Anforderung Antragsteller'!AG22=\"muss nicht erneut eingereicht werden\",'Anforderung Antragsteller'!AG22=\"nicht erforderlich\"),\"-\",$C21)","v":"nein"}]
[null,"Garantie für mindestens 2 Jahre","ja",{"$f":"IF(OR('Anforderung Antragsteller'!H23=\"muss nicht erneut eingereicht werden\",'Anforderung Antragsteller'!H23=\"nicht erforderlich\"),\"-\",$C22)","v":"ja"},{"$f":"IF(OR('Anforderung Antragsteller'!M23=\"muss nicht erneut eingereicht werden\",'Anforderung Antragsteller'!M23=\"nicht erforderlich\"),\"-\",$C22)","v":"ja"},{"$f":"IF(OR('Anforderung Antragsteller'!R23=\"muss nicht erneut eingereicht werden\",'Anforderung Antragsteller'!R23=\"nicht erforderlich\"),\"-\",$C22)","v":"ja"},{"$f":"IF(OR('Anforderung Antragsteller'!W23=\"muss nicht erneut eingereicht werden\",'Anforderung Antragsteller'!W23=\"nicht erforderlich\"),\"-\",$C22)","v":"-"},{"$f":"IF(OR('Anforderung Antragsteller'!AB23=\"muss nicht erneut eingereicht werden\",'Anforderung Antragsteller'!AB23=\"nicht erforderlich\"),\"-\",$C22)","v":"ja"},{"$f":"IF(OR('Anforderung Antragsteller'!AG23=\"muss nicht erneut eingereicht werden\",'Anforderung Antragsteller'!AG23=\"nicht erforderlich\"),\"-\",$C22)","v":"ja"}]
[null,"Ersatzteilgarantie für mindestens 10 Jahre","ja",{"$f":"IF(OR('Anforderung Antragsteller'!H24=\"muss nicht erneut eingereicht werden\",'Anforderung Antragsteller'!H24=\"nicht erforderlich\"),\"-\",$C23)","v":"ja"},{"$f":"IF(OR('Anforderung Antragsteller'!M24=\"muss nicht erneut eingereicht werden\",'Anforderung Antragsteller'!M24=\"nicht erforderlich\"),\"-\",$C23)","v":"ja"},{"$f":"IF(OR('Anforderung Antragsteller'!R24=\"muss nicht erneut eingereicht werden\",'Anforderung Antragsteller'!R24=\"nicht erforderlich\"),\"-\",$C23)","v":"ja"},{"$f":"IF(OR('Anforderung Antragsteller'!W24=\"muss nicht erneut eingereicht werden\",'Anforderung Antragsteller'!W24=\"nicht erforderlich\"),\"-\",$C23)","v":"-"},{"$f":"IF(OR('Anforderung Antragsteller'!AB24=\"muss nicht erneut eingereicht werden\",'Anforderung Antragsteller'!AB24=\"nicht erforderlich\"),\"-\",$C23)","v":"ja"},{"$f":"IF(OR('Anforderung Antragsteller'!AG24=\"muss nicht erneut eingereicht werden\",'Anforderung Antragsteller'!AG24=\"nicht erforderlich\"),\"-\",$C23)","v":"ja"}]
[null,"Reaktionszeit des Kundendienstes im Vertriebsgebiet innerhalb von 24\nStunden und Kontaktdaten zum Kundendienst im Vertriebsgebiet   (siehe Vorlage unter www.waermepumpe-austria.at/dienste/guetesiegel/dokumente-und-links)","ja",{"$f":"IF(OR('Anforderung Antragsteller'!H25=\"muss nicht erneut eingereicht werden\",'Anforderung Antragsteller'!H25=\"nicht erforderlich\"),\"-\",$C24)","v":"ja"},{"$f":"IF(OR('Anforderung Antragsteller'!M25=\"muss nicht erneut eingereicht werden\",'Anforderung Antragsteller'!M25=\"nicht erforderlich\"),\"-\",$C24)","v":"ja"},{"$f":"IF(OR('Anforderung Antragsteller'!R25=\"muss nicht erneut eingereicht werden\",'Anforderung Antragsteller'!R25=\"nicht erforderlich\"),\"-\",$C24)","v":"ja"},{"$f":"IF(OR('Anforderung Antragsteller'!W25=\"muss nicht erneut eingereicht werden\",'Anforderung Antragsteller'!W25=\"nicht erforderlich\"),\"-\",$C24)","v":"-"},{"$f":"IF(OR('Anforderung Antragsteller'!AB25=\"muss nicht erneut eingereicht werden\",'Anforderung Antragsteller'!AB25=\"nicht erforderlich\"),\"-\",$C24)","v":"ja"},{"$f":"IF(OR('Anforderung Antragsteller'!AG25=\"muss nicht erneut eingereicht werden\",'Anforderung Antragsteller'!AG25=\"nicht erforderlich\"),\"-\",$C24)","v":"ja"}]
[4,"Bedienungsanleitungen  (deutschsprachig)","-",{"$f":"IF(OR('Anforderung Antragsteller'!H26=\"muss nicht erneut eingereicht werden\",'Anforderung Antragsteller'!H26=\"nicht erforderlich\"),\"-\",$C25)","v":"-"},{"$f":"IF(OR('Anforderung Antragsteller'!M26=\"muss nicht erneut eingereicht werden\",'Anforderung Antragsteller'!M26=\"nicht erforderlich\"),\"-\",$C25)","v":"-"},{"$f":"IF(OR('Anforderung Antragsteller'!R26=\"muss nicht erneut eingereicht werden\",'Anforderung Antragsteller'!R26=\"nicht erforderlich\"),\"-\",$C25)","v":"-"},{"$f":"IF(OR('Anforderung Antragsteller'!W26=\"muss nicht erneut eingereicht werden\",'Anforderung Antragsteller'!W26=\"nicht erforderlich\"),\"-\",$C25)","v":"-"},{"$f":"IF(OR('Anforderung Antragsteller'!AB26=\"muss nicht erneut eingereicht werden\",'Anforderung Antragsteller'!AB26=\"nicht erforderlich\"),\"-\",$C25)","v":"-"},{"$f":"IF(OR('Anforderung Antragsteller'!AG26=\"muss nicht erneut eingereicht werden\",'Anforderung Antragsteller'!AG26=\"nicht erforderlich\"),\"-\",$C25)","v":"-"}]
[null,"Informationen und Sicherheitshinweise für eine ordnungsgemäße\nNutzung","ja",{"$f":"IF(OR('Anforderung Antragsteller'!H27=\"muss nicht erneut eingereicht werden\",'Anforderung Antragsteller'!H27=\"nicht erforderlich\"),\"-\",$C26)","v":"ja"},{"$f":"IF(OR('Anforderung Antragsteller'!M27=\"muss nicht erneut eingereicht werden\",'Anforderung Antragsteller'!M27=\"nicht erforderlich\"),\"-\",$C26)","v":"ja"},{"$f":"IF(OR('Anforderung Antragsteller'!R27=\"muss nicht erneut eingereicht werden\",'Anforderung Antragsteller'!R27=\"nicht erforderlich\"),\"-\",$C26)","v":"ja"},{"$f":"IF(OR('Anforderung Antragsteller'!W27=\"muss nicht erneut eingereicht werden\",'Anforderung Antragsteller'!W27=\"nicht erforderlich\"),\"-\",$C26)","v":"ja"},{"$f":"IF(OR('Anforderung Antragsteller'!AB27=\"muss nicht erneut eingereicht werden\",'Anforderung Antragsteller'!AB27=\"nicht erforderlich\"),\"-\",$C26)","v":"ja"},{"$f":"IF(OR('Anforderung Antragsteller'!AG27=\"muss nicht erneut eingereicht werden\",'Anforderung Antragsteller'!AG27=\"nicht erforderlich\"),\"-\",$C26)","v":"ja"}]
[null,"Anleitung zur Bedienung der Wärmepumpe","ja",{"$f":"IF(OR('Anforderung Antragsteller'!H28=\"muss nicht erneut eingereicht werden\",'Anforderung Antragsteller'!H28=\"nicht erforderlich\"),\"-\",$C27)","v":"ja"},{"$f":"IF(OR('Anforderung Antragsteller'!M28=\"muss nicht erneut eingereicht werden\",'Anforderung Antragsteller'!M28=\"nicht erforderlich\"),\"-\",$C27)","v":"ja"},{"$f":"IF(OR('Anforderung Antragsteller'!R28=\"muss nicht erneut eingereicht werden\",'Anforderung Antragsteller'!R28=\"nicht erforderlich\"),\"-\",$C27)","v":"ja"},{"$f":"IF(OR('Anforderung Antragsteller'!W28=\"muss nicht erneut eingereicht werden\",'Anforderung Antragsteller'!W28=\"nicht erforderlich\"),\"-\",$C27)","v":"ja"},{"$f":"IF(OR('Anforderung Antragsteller'!AB28=\"muss nicht erneut eingereicht werden\",'Anforderung Antragsteller'!AB28=\"nicht erforderlich\"),\"-\",$C27)","v":"ja"},{"$f":"IF(OR('Anforderung Antragsteller'!AG28=\"muss nicht erneut eingereicht werden\",'Anforderung Antragsteller'!AG28=\"nicht erforderlich\"),\"-\",$C27)","v":"ja"}]
[null,"Ersatzteilliste","nein",{"$f":"IF(OR('Anforderung Antragsteller'!H29=\"muss nicht erneut eingereicht werden\",'Anforderung Antragsteller'!H29=\"nicht erforderlich\"),\"-\",$C28)","v":"nein"},{"$f":"IF(OR('Anforderung Antragsteller'!M29=\"muss nicht erneut eingereicht werden\",'Anforderung Antragsteller'!M29=\"nicht erforderlich\"),\"-\",$C28)","v":"nein"},{"$f":"IF(OR('Anforderung Antragsteller'!R29=\"muss nicht erneut eingereicht werden\",'Anforderung Antragsteller'!R29=\"nicht erforderlich\"),\"-\",$C28)","v":"nein"},{"$f":"IF(OR('Anforderung Antragsteller'!W29=\"muss nicht erneut eingereicht werden\",'Anforderung Antragsteller'!W29=\"nicht erforderlich\"),\"-\",$C28)","v":"nein"},{"$f":"IF(OR('Anforderung Antragsteller'!AB29=\"muss nicht erneut eingereicht werden\",'Anforderung Antragsteller'!AB29=\"nicht erforderlich\"),\"-\",$C28)","v":"nein"},{"$f":"IF(OR('Anforderung Antragsteller'!AG29=\"muss nicht erneut eingereicht werden\",'Anforderung Antragsteller'!AG29=\"nicht erforderlich\"),\"-\",$C28)","v":"nein"}]
[5,"Installationsanleitungen  (deutschsprachig)","-",{"$f":"IF(OR('Anforderung Antragsteller'!H30=\"muss nicht erneut eingereicht werden\",'Anforderung Antragsteller'!H30=\"nicht erforderlich\"),\"-\",$C29)","v":"-"},{"$f":"IF(OR('Anforderung Antragsteller'!M30=\"muss nicht erneut eingereicht werden\",'Anforderung Antragsteller'!M30=\"nicht erforderlich\"),\"-\",$C29)","v":"-"},{"$f":"IF(OR('Anforderung Antragsteller'!R30=\"muss nicht erneut eingereicht werden\",'Anforderung Antragsteller'!R30=\"nicht erforderlich\"),\"-\",$C29)","v":"-"},{"$f":"IF(OR('Anforderung Antragsteller'!W30=\"muss nicht erneut eingereicht werden\",'Anforderung Antragsteller'!W30=\"nicht erforderlich\"),\"-\",$C29)","v":"-"},{"$f":"IF(OR('Anforderung Antragsteller'!AB30=\"muss nicht erneut eingereicht werden\",'Anforderung Antragsteller'!AB30=\"nicht erforderlich\"),\"-\",$C29)","v":"-"},{"$f":"IF(OR('Anforderung Antragsteller'!AG30=\"muss nicht erneut eingereicht werden\",'Anforderung Antragsteller'!AG30=\"nicht erforderlich\"),\"-\",$C29)","v":"-"}]
[null,"Installationsanleitung","nein",{"$f":"IF(OR('Anforderung Antragsteller'!H31=\"muss nicht erneut eingereicht werden\",'Anforderung Antragsteller'!H31=\"nicht erforderlich\"),\"-\",$C30)","v":"nein"},{"$f":"IF(OR('Anforderung Antragsteller'!M31=\"muss nicht erneut eingereicht werden\",'Anforderung Antragsteller'!M31=\"nicht erforderlich\"),\"-\",$C30)","v":"nein"},{"$f":"IF(OR('Anforderung Antragsteller'!R31=\"muss nicht erneut eingereicht werden\",'Anforderung Antragsteller'!R31=\"nicht erforderlich\"),\"-\",$C30)","v":"nein"},{"$f":"IF(OR('Anforderung Antragsteller'!W31=\"muss nicht erneut eingereicht werden\",'Anforderung Antragsteller'!W31=\"nicht erforderlich\"),\"-\",$C30)","v":"nein"},{"$f":"IF(OR('Anforderung Antragsteller'!AB31=\"muss nicht erneut eingereicht werden\",'Anforderung Antragsteller'!AB31=\"nicht erforderlich\"),\"-\",$C30)","v":"nein"},{"$f":"IF(OR('Anforderung Antragsteller'!AG31=\"muss nicht erneut eingereicht werden\",'Anforderung Antragsteller'!AG31=\"nicht erforderlich\"),\"-\",$C30)","v":"nein"}]
[null,"Sicherheitshinweise","nein",{"$f":"IF(OR('Anforderung Antragsteller'!H32=\"muss nicht erneut eingereicht werden\",'Anforderung Antragsteller'!H32=\"nicht erforderlich\"),\"-\",$C31)","v":"nein"},{"$f":"IF(OR('Anforderung Antragsteller'!M32=\"muss nicht erneut eingereicht werden\",'Anforderung Antragsteller'!M32=\"nicht erforderlich\"),\"-\",$C31)","v":"nein"},{"$f":"IF(OR('Anforderung Antragsteller'!R32=\"muss nicht erneut eingereicht werden\",'Anforderung Antragsteller'!R32=\"nicht erforderlich\"),\"-\",$C31)","v":"nein"},{"$f":"IF(OR('Anforderung Antragsteller'!W32=\"muss nicht erneut eingereicht werden\",'Anforderung Antragsteller'!W32=\"nicht erforderlich\"),\"-\",$C31)","v":"nein"},{"$f":"IF(OR('Anforderung Antragsteller'!AB32=\"muss nicht erneut eingereicht werden\",'Anforderung Antragsteller'!AB32=\"nicht erforderlich\"),\"-\",$C31)","v":"nein"},{"$f":"IF(OR('Anforderung Antragsteller'!AG32=\"muss nicht erneut eingereicht werden\",'Anforderung Antragsteller'!AG32=\"nicht erforderlich\"),\"-\",$C31)","v":"nein"}]
[null,"Inbetriebnahmehinweise","nein",{"$f":"IF(OR('Anforderung Antragsteller'!H33=\"muss nicht erneut eingereicht werden\",'Anforderung Antragsteller'!H33=\"nicht erforderlich\"),\"-\",$C32)","v":"nein"},{"$f":"IF(OR('Anforderung Antragsteller'!M33=\"muss nicht erneut eingereicht werden\",'Anforderung Antragsteller'!M33=\"nicht erforderlich\"),\"-\",$C32)","v":"nein"},{"$f":"IF(OR('Anforderung Antragsteller'!R33=\"muss nicht erneut eingereicht werden\",'Anforderung Antragsteller'!R33=\"nicht erforderlich\"),\"-\",$C32)","v":"nein"},{"$f":"IF(OR('Anforderung Antragsteller'!W33=\"muss nicht erneut eingereicht werden\",'Anforderung Antragsteller'!W33=\"nicht erforderlich\"),\"-\",$C32)","v":"nein"},{"$f":"IF(OR('Anforderung Antragsteller'!AB33=\"muss nicht erneut eingereicht werden\",'Anforderung Antragsteller'!AB33=\"nicht erforderlich\"),\"-\",$C32)","v":"nein"},{"$f":"IF(OR('Anforderung Antragsteller'!AG33=\"muss nicht erneut eingereicht werden\",'Anforderung Antragsteller'!AG33=\"nicht erforderlich\"),\"-\",$C32)","v":"nein"}]
[null,"Fluidschemata Kältekreis und Wasserkreis","nein",{"$f":"IF(OR('Anforderung Antragsteller'!H34=\"muss nicht erneut eingereicht werden\",'Anforderung Antragsteller'!H34=\"nicht erforderlich\"),\"-\",$C33)","v":"nein"},{"$f":"IF(OR('Anforderung Antragsteller'!M34=\"muss nicht erneut eingereicht werden\",'Anforderung Antragsteller'!M34=\"nicht erforderlich\"),\"-\",$C33)","v":"nein"},{"$f":"IF(OR('Anforderung Antragsteller'!R34=\"muss nicht erneut eingereicht werden\",'Anforderung Antragsteller'!R34=\"nicht erforderlich\"),\"-\",$C33)","v":"nein"},{"$f":"IF(OR('Anforderung Antragsteller'!W34=\"muss nicht erneut eingereicht werden\",'Anforderung Antragsteller'!W34=\"nicht erforderlich\"),\"-\",$C33)","v":"nein"},{"$f":"IF(OR('Anforderung Antragsteller'!AB34=\"muss nicht erneut eingereicht werden\",'Anforderung Antragsteller'!AB34=\"nicht erforderlich\"),\"-\",$C33)","v":"nein"},{"$f":"IF(OR('Anforderung Antragsteller'!AG34=\"muss nicht erneut eingereicht werden\",'Anforderung Antragsteller'!AG34=\"nicht erforderlich\"),\"-\",$C33)","v":"nein"}]
[null,"Elektroschema zum Anschluss der Wärmepumpe","nein",{"$f":"IF(OR('Anforderung Antragsteller'!H35=\"muss nicht erneut eingereicht werden\",'Anforderung Antragsteller'!H35=\"nicht erforderlich\"),\"-\",$C34)","v":"nein"},{"$f":"IF(OR('Anforderung Antragsteller'!M35=\"muss nicht erneut eingereicht werden\",'Anforderung Antragsteller'!M35=\"nicht erforderlich\"),\"-\",$C34)","v":"nein"},{"$f":"IF(OR('Anforderung Antragsteller'!R35=\"muss nicht erneut eingereicht werden\",'Anforderung Antragsteller'!R35=\"nicht erforderlich\"),\"-\",$C34)","v":"nein"},{"$f":"IF(OR('Anforderung Antragsteller'!W35=\"muss nicht erneut eingereicht werden\",'Anforderung Antragsteller'!W35=\"nicht erforderlich\"),\"-\",$C34)","v":"nein"},{"$f":"IF(OR('Anforderung Antragsteller'!AB35=\"muss nicht erneut eingereicht werden\",'Anforderung Antragsteller'!AB35=\"nicht erforderlich\"),\"-\",$C34)","v":"nein"},{"$f":"IF(OR('Anforderung Antragsteller'!AG35=\"muss nicht erneut eingereicht werden\",'Anforderung Antragsteller'!AG35=\"nicht erforderlich\"),\"-\",$C34)","v":"nein"}]
[null,"Energy-Label und Energy-Label-Datenblatt nach 811/2013 (Heizungs- und Kombiwärmepumpen), bzw 812/2013 (Warmwasserwärmepumpe)\n(nur bei Geräten mit höchstens 70kW Nennleistung)","nein",{"$f":"IF(OR('Anforderung Antragsteller'!H36=\"muss nicht erneut eingereicht werden\",'Anforderung Antragsteller'!H36=\"nicht erforderlich\"),\"-\",$C35)","v":"nein"},{"$f":"IF(OR('Anforderung Antragsteller'!M36=\"muss nicht erneut eingereicht werden\",'Anforderung Antragsteller'!M36=\"nicht erforderlich\"),\"-\",$C35)","v":"nein"},{"$f":"IF(OR('Anforderung Antragsteller'!R36=\"muss nicht erneut eingereicht werden\",'Anforderung Antragsteller'!R36=\"nicht erforderlich\"),\"-\",$C35)","v":"nein"},{"$f":"IF(OR('Anforderung Antragsteller'!W36=\"muss nicht erneut eingereicht werden\",'Anforderung Antragsteller'!W36=\"nicht erforderlich\"),\"-\",$C35)","v":"nein"},{"$f":"IF(OR('Anforderung Antragsteller'!AB36=\"muss nicht erneut eingereicht werden\",'Anforderung Antragsteller'!AB36=\"nicht erforderlich\"),\"-\",$C35)","v":"nein"},{"$f":"IF(OR('Anforderung Antragsteller'!AG36=\"muss nicht erneut eingereicht werden\",'Anforderung Antragsteller'!AG36=\"nicht erforderlich\"),\"-\",$C35)","v":"nein"}]
[6,"Technische Daten  (deutschsprachig)","-",{"$f":"IF(OR('Anforderung Antragsteller'!H37=\"muss nicht erneut eingereicht werden\",'Anforderung Antragsteller'!H37=\"nicht erforderlich\"),\"-\",$C36)","v":"-"},{"$f":"IF(OR('Anforderung Antragsteller'!M37=\"muss nicht erneut eingereicht werden\",'Anforderung Antragsteller'!M37=\"nicht erforderlich\"),\"-\",$C36)","v":"-"},{"$f":"IF(OR('Anforderung Antragsteller'!R37=\"muss nicht erneut eingereicht werden\",'Anforderung Antragsteller'!R37=\"nicht erforderlich\"),\"-\",$C36)","v":"-"},{"$f":"IF(OR('Anforderung Antragsteller'!W37=\"muss nicht erneut eingereicht werden\",'Anforderung Antragsteller'!W37=\"nicht erforderlich\"),\"-\",$C36)","v":"-"},{"$f":"IF(OR('Anforderung Antragsteller'!AB37=\"muss nicht erneut eingereicht werden\",'Anforderung Antragsteller'!AB37=\"nicht erforderlich\"),\"-\",$C36)","v":"-"},{"$f":"IF(OR('Anforderung Antragsteller'!AG37=\"muss nicht erneut eingereicht werden\",'Anforderung Antragsteller'!AG37=\"nicht erforderlich\"),\"-\",$C36)","v":"-"}]
[null,"Leistungsdaten (Wärmeleistung, elektrische Leistungsaufnahme und COP über den gesamten Leistungsbereich)","nein",{"$f":"IF(OR('Anforderung Antragsteller'!H38=\"muss nicht erneut eingereicht werden\",'Anforderung Antragsteller'!H38=\"nicht erforderlich\"),\"-\",$C37)","v":"nein"},{"$f":"IF(OR('Anforderung Antragsteller'!M38=\"muss nicht erneut eingereicht werden\",'Anforderung Antragsteller'!M38=\"nicht erforderlich\"),\"-\",$C37)","v":"nein"},{"$f":"IF(OR('Anforderung Antragsteller'!R38=\"muss nicht erneut eingereicht werden\",'Anforderung Antragsteller'!R38=\"nicht erforderlich\"),\"-\",$C37)","v":"nein"},{"$f":"IF(OR('Anforderung Antragsteller'!W38=\"muss nicht erneut eingereicht werden\",'Anforderung Antragsteller'!W38=\"nicht erforderlich\"),\"-\",$C37)","v":"nein"},{"$f":"IF(OR('Anforderung Antragsteller'!AB38=\"muss nicht erneut eingereicht werden\",'Anforderung Antragsteller'!AB38=\"nicht erforderlich\"),\"-\",$C37)","v":"nein"},{"$f":"IF(OR('Anforderung Antragsteller'!AG38=\"muss nicht erneut eingereicht werden\",'Anforderung Antragsteller'!AG38=\"nicht erforderlich\"),\"-\",$C37)","v":"nein"}]
[null,"Leistungsdaten nach EN 14511 bei A7/W35 (Wärmeleistung, elektrische Leistungsaufnahme und COP)","ja","ja","-","nein","ja","ja","nein"]
[null,"Maßzeichnung","nein",{"$f":"IF(OR('Anforderung Antragsteller'!H40=\"muss nicht erneut eingereicht werden\",'Anforderung Antragsteller'!H40=\"nicht erforderlich\"),\"-\",$C39)","v":"nein"},{"$f":"IF(OR('Anforderung Antragsteller'!M40=\"muss nicht erneut eingereicht werden\",'Anforderung Antragsteller'!M40=\"nicht erforderlich\"),\"-\",$C39)","v":"nein"},{"$f":"IF(OR('Anforderung Antragsteller'!R40=\"muss nicht erneut eingereicht werden\",'Anforderung Antragsteller'!R40=\"nicht erforderlich\"),\"-\",$C39)","v":"nein"},{"$f":"IF(OR('Anforderung Antragsteller'!W40=\"muss nicht erneut eingereicht werden\",'Anforderung Antragsteller'!W40=\"nicht erforderlich\"),\"-\",$C39)","v":"nein"},{"$f":"IF(OR('Anforderung Antragsteller'!AB40=\"muss nicht erneut eingereicht werden\",'Anforderung Antragsteller'!AB40=\"nicht erforderlich\"),\"-\",$C39)","v":"nein"},{"$f":"IF(OR('Anforderung Antragsteller'!AG40=\"muss nicht erneut eingereicht werden\",'Anforderung Antragsteller'!AG40=\"nicht erforderlich\"),\"-\",$C39)","v":"nein"}]
[null,"Mindestabstände","nein",{"$f":"IF(OR('Anforderung Antragsteller'!H41=\"muss nicht erneut eingereicht werden\",'Anforderung Antragsteller'!H41=\"nicht erforderlich\"),\"-\",$C40)","v":"nein"},{"$f":"IF(OR('Anforderung Antragsteller'!M41=\"muss nicht erneut eingereicht werden\",'Anforderung Antragsteller'!M41=\"nicht erforderlich\"),\"-\",$C40)","v":"nein"},{"$f":"IF(OR('Anforderung Antragsteller'!R41=\"muss nicht erneut eingereicht werden\",'Anforderung Antragsteller'!R41=\"nicht erforderlich\"),\"-\",$C40)","v":"nein"},{"$f":"IF(OR('Anforderung Antragsteller'!W41=\"muss nicht erneut eingereicht werden\",'Anforderung Antragsteller'!W41=\"nicht erforderlich\"),\"-\",$C40)","v":"nein"},{"$f":"IF(OR('Anforderung Antragsteller'!AB41=\"muss nicht erneut eingereicht werden\",'Anforderung Antragsteller'!AB41=\"nicht erforderlich\"),\"-\",$C40)","v":"nein"},{"$f":"IF(OR('Anforderung Antragsteller'!AG41=\"muss nicht erneut eingereicht werden\",'Anforderung Antragsteller'!AG41=\"nicht erforderlich\"),\"-\",$C40)","v":"nein"}]
[null,"Kältemittel: Art und Füllmenge","ja",{"$f":"IF(OR('Anforderung Antragsteller'!H42=\"muss nicht erneut eingereicht werden\",'Anforderung Antragsteller'!H42=\"nicht erforderlich\"),\"-\",$C41)","v":"ja"},{"$f":"IF(OR('Anforderung Antragsteller'!M42=\"muss nicht erneut eingereicht werden\",'Anforderung Antragsteller'!M42=\"nicht erforderlich\"),\"-\",$C41)","v":"ja"},{"$f":"IF(OR('Anforderung Antragsteller'!R42=\"muss nicht erneut eingereicht werden\",'Anforderung Antragsteller'!R42=\"nicht erforderlich\"),\"-\",$C41)","v":"ja"},{"$f":"IF(OR('Anforderung Antragsteller'!W42=\"muss nicht erneut eingereicht werden\",'Anforderung Antragsteller'!W42=\"nicht erforderlich\"),\"-\",$C41)","v":"ja"},{"$f":"IF(OR('Anforderung Antragsteller'!AB42=\"muss nicht erneut eingereicht werden\",'Anforderung Antragsteller'!AB42=\"nicht erforderlich\"),\"-\",$C41)","v":"ja"},{"$f":"IF(OR('Anforderung Antragsteller'!AG42=\"muss nicht erneut eingereicht werden\",'Anforderung Antragsteller'!AG42=\"nicht erforderlich\"),\"-\",$C41)","v":"ja"}]
[null,"Anlaufstrom / maximaler Betriebsstrom in A","nein",{"$f":"IF(OR('Anforderung Antragsteller'!H43=\"muss nicht erneut eingereicht werden\",'Anforderung Antragsteller'!H43=\"nicht erforderlich\"),\"-\",$C42)","v":"nein"},{"$f":"IF(OR('Anforderung Antragsteller'!M43=\"muss nicht erneut eingereicht werden\",'Anforderung Antragsteller'!M43=\"nicht erforderlich\"),\"-\",$C42)","v":"nein"},{"$f":"IF(OR('Anforderung Antragsteller'!R43=\"muss nicht erneut eingereicht werden\",'Anforderung Antragsteller'!R43=\"nicht erforderlich\"),\"-\",$C42)","v":"nein"},{"$f":"IF(OR('Anforderung Antragsteller'!W43=\"muss nicht erneut eingereicht werden\",'Anforderung Antragsteller'!W43=\"nicht erforderlich\"),\"-\",$C42)","v":"nein"},{"$f":"IF(OR('Anforderung Antragsteller'!AB43=\"muss nicht erneut eingereicht werden\",'Anforderung Antragsteller'!AB43=\"nicht erforderlich\"),\"-\",$C42)","v":"nein"},{"$f":"IF(OR('Anforderung Antragsteller'!AG43=\"muss nicht erneut eingereicht werden\",'Anforderung Antragsteller'!AG43=\"nicht erforderlich\"),\"-\",$C42)","v":"nein"}]
[null,"Einsatzbereich / Einsatzgrenzen","nein",{"$f":"IF(OR('Anforderung Antragsteller'!H44=\"muss nicht erneut eingereicht werden\",'Anforderung Antragsteller'!H44=\"nicht erforderlich\"),\"-\",$C43)","v":"nein"},{"$f":"IF(OR('Anforderung Antragsteller'!M44=\"muss nicht erneut eingereicht werden\",'Anforderung Antragsteller'!M44=\"nicht erforderlich\"),\"-\",$C43)","v":"nein"},{"$f":"IF(OR('Anforderung Antragsteller'!R44=\"muss nicht erneut eingereicht werden\",'Anforderung Antragsteller'!R44=\"nicht erforderlich\"),\"-\",$C43)","v":"nein"},{"$f":"IF(OR('Anforderung Antragsteller'!W44=\"muss nicht erneut eingereicht werden\",'Anforderung Antragsteller'!W44=\"nicht erforderlich\"),\"-\",$C43)","v":"nein"},{"$f":"IF(OR('Anforderung Antragsteller'!AB44=\"muss nicht erneut eingereicht werden\",'Anforderung Antragsteller'!AB44=\"nicht erforderlich\"),\"-\",$C43)","v":"nein"},{"$f":"IF(OR('Anforderung Antragsteller'!AG44=\"muss nicht erneut eingereicht werden\",'Anforderung Antragsteller'!AG44=\"nicht erforderlich\"),\"-\",$C43)","v":"nein"}]
[null,"Volumenstrom Quelle- und Senkenseite in m³/h, l/min","nein",{"$f":"IF(OR('Anforderung Antragsteller'!H45=\"muss nicht erneut eingereicht werden\",'Anforderung Antragsteller'!H45=\"nicht erforderlich\"),\"-\",$C44)","v":"nein"},{"$f":"IF(OR('Anforderung Antragsteller'!M45=\"muss nicht erneut eingereicht werden\",'Anforderung Antragsteller'!M45=\"nicht erforderlich\"),\"-\",$C44)","v":"nein"},{"$f":"IF(OR('Anforderung Antragsteller'!R45=\"muss nicht erneut eingereicht werden\",'Anforderung Antragsteller'!R45=\"nicht erforderlich\"),\"-\",$C44)","v":"nein"},{"$f":"IF(OR('Anforderung Antragsteller'!W45=\"muss nicht erneut eingereicht werden\",'Anforderung Antragsteller'!W45=\"nicht erforderlich\"),\"-\",$C44)","v":"nein"},{"$f":"IF(OR('Anforderung Antragsteller'!AB45=\"muss nicht erneut eingereicht werden\",'Anforderung Antragsteller'!AB45=\"nicht erforderlich\"),\"-\",$C44)","v":"nein"},{"$f":"IF(OR('Anforderung Antragsteller'!AG45=\"muss nicht erneut eingereicht werden\",'Anforderung Antragsteller'!AG45=\"nicht erforderlich\"),\"-\",$C44)","v":"nein"}]
[null,"Volumen des WW-Speichers in Liter","nein",{"$f":"IF(OR('Anforderung Antragsteller'!H46=\"muss nicht erneut eingereicht werden\",'Anforderung Antragsteller'!H46=\"nicht erforderlich\"),\"-\",$C45)","v":"nein"},{"$f":"IF(OR('Anforderung Antragsteller'!M46=\"muss nicht erneut eingereicht werden\",'Anforderung Antragsteller'!M46=\"nicht erforderlich\"),\"-\",$C45)","v":"nein"},{"$f":"IF(OR('Anforderung Antragsteller'!R46=\"muss nicht erneut eingereicht werden\",'Anforderung Antragsteller'!R46=\"nicht erforderlich\"),\"-\",$C45)","v":"nein"},{"$f":"IF(OR('Anforderung Antragsteller'!W46=\"muss nicht erneut eingereicht werden\",'Anforderung Antragsteller'!W46=\"nicht erforderlich\"),\"-\",$C45)","v":"nein"},{"$f":"IF(OR('Anforderung Antragsteller'!AB46=\"muss nicht erneut eingereicht werden\",'Anforderung Antragsteller'!AB46=\"nicht erforderlich\"),\"-\",$C45)","v":"nein"},{"$f":"IF(OR('Anforderung Antragsteller'!AG46=\"muss nicht erneut eingereicht werden\",'Anforderung Antragsteller'!AG46=\"nicht erforderlich\"),\"-\",$C45)","v":"nein"}]
[null,"Gewicht in kg","nein",{"$f":"IF(OR('Anforderung Antragsteller'!H47=\"muss nicht erneut eingereicht werden\",'Anforderung Antragsteller'!H47=\"nicht erforderlich\"),\"-\",$C46)","v":"nein"},{"$f":"IF(OR('Anforderung Antragsteller'!M47=\"muss nicht erneut eingereicht werden\",'Anforderung Antragsteller'!M47=\"nicht erforderlich\"),\"-\",$C46)","v":"nein"},{"$f":"IF(OR('Anforderung Antragsteller'!R47=\"muss nicht erneut eingereicht werden\",'Anforderung Antragsteller'!R47=\"nicht erforderlich\"),\"-\",$C46)","v":"nein"},{"$f":"IF(OR('Anforderung Antragsteller'!W47=\"muss nicht erneut eingereicht werden\",'Anforderung Antragsteller'!W47=\"nicht erforderlich\"),\"-\",$C46)","v":"nein"},{"$f":"IF(OR('Anforderung Antragsteller'!AB47=\"muss nicht erneut eingereicht werden\",'Anforderung Antragsteller'!AB47=\"nicht erforderlich\"),\"-\",$C46)","v":"nein"},{"$f":"IF(OR('Anforderung Antragsteller'!AG47=\"muss nicht erneut eingereicht werden\",'Anforderung Antragsteller'!AG47=\"nicht erforderlich\"),\"-\",$C46)","v":"nein"}]
[null,"Schallleistung (ErP-Anforderungen) in[dB(A)","ja",{"$f":"IF(OR('Anforderung Antragsteller'!H48=\"muss nicht erneut eingereicht werden\",'Anforderung Antragsteller'!H48=\"nicht erforderlich\"),\"-\",$C47)","v":"ja"},{"$f":"IF(OR('Anforderung Antragsteller'!M48=\"muss nicht erneut eingereicht werden\",'Anforderung Antragsteller'!M48=\"nicht erforderlich\"),\"-\",$C47)","v":"ja"},{"$f":"IF(OR('Anforderung Antragsteller'!R48=\"muss nicht erneut eingereicht werden\",'Anforderung Antragsteller'!R48=\"nicht erforderlich\"),\"-\",$C47)","v":"ja"},{"$f":"IF(OR('Anforderung Antragsteller'!W48=\"muss nicht erneut eingereicht werden\",'Anforderung Antragsteller'!W48=\"nicht erforderlich\"),\"-\",$C47)","v":"ja"},{"$f":"IF(OR('Anforderung Antragsteller'!AB48=\"muss nicht erneut eingereicht werden\",'Anforderung Antragsteller'!AB48=\"nicht erforderlich\"),\"-\",$C47)","v":"ja"},{"$f":"IF(OR('Anforderung Antragsteller'!AG48=\"muss nicht erneut eingereicht werden\",'Anforderung Antragsteller'!AG48=\"nicht erforderlich\"),\"-\",$C47)","v":"ja"}]
[null,"maximaler Schallleistungspegel in dB(A) und dazugehörige Heizleistung in kW","nein",{"$f":"IF(OR('Anforderung Antragsteller'!H50=\"muss nicht erneut eingereicht werden\",'Anforderung Antragsteller'!H50=\"nicht erforderlich\"),\"-\",$C48)","v":"nein"},{"$f":"IF(OR('Anforderung Antragsteller'!M50=\"muss nicht erneut eingereicht werden\",'Anforderung Antragsteller'!M50=\"nicht erforderlich\"),\"-\",$C48)","v":"nein"},{"$f":"IF(OR('Anforderung Antragsteller'!R50=\"muss nicht erneut eingereicht werden\",'Anforderung Antragsteller'!R50=\"nicht erforderlich\"),\"-\",$C48)","v":"nein"},{"$f":"IF(OR('Anforderung Antragsteller'!W50=\"muss nicht erneut eingereicht werden\",'Anforderung Antragsteller'!W50=\"nicht erforderlich\"),\"-\",$C48)","v":"nein"},{"$f":"IF(OR('Anforderung Antragsteller'!AB50=\"muss nicht erneut eingereicht werden\",'Anforderung Antragsteller'!AB50=\"nicht erforderlich\"),\"-\",$C48)","v":"nein"},{"$f":"IF(OR('Anforderung Antragsteller'!AG50=\"muss nicht erneut eingereicht werden\",'Anforderung Antragsteller'!AG50=\"nicht erforderlich\"),\"-\",$C48)","v":"nein"}]
[null,"maximaler Schallleistungspegel \"Silent-Mode\" in dB(A) und dazugehörige Heizleistung in kW","nein",{"$f":"IF(OR('Anforderung Antragsteller'!H51=\"muss nicht erneut eingereicht werden\",'Anforderung Antragsteller'!H51=\"nicht erforderlich\"),\"-\",$C49)","v":"nein"},{"$f":"IF(OR('Anforderung Antragsteller'!M51=\"muss nicht erneut eingereicht werden\",'Anforderung Antragsteller'!M51=\"nicht erforderlich\"),\"-\",$C49)","v":"nein"},{"$f":"IF(OR('Anforderung Antragsteller'!R51=\"muss nicht erneut eingereicht werden\",'Anforderung Antragsteller'!R51=\"nicht erforderlich\"),\"-\",$C49)","v":"nein"},{"$f":"IF(OR('Anforderung Antragsteller'!W51=\"muss nicht erneut eingereicht werden\",'Anforderung Antragsteller'!W51=\"nicht erforderlich\"),\"-\",$C49)","v":"nein"},{"$f":"IF(OR('Anforderung Antragsteller'!AB51=\"muss nicht erneut eingereicht werden\",'Anforderung Antragsteller'!AB51=\"nicht erforderlich\"),\"-\",$C49)","v":"nein"},{"$f":"IF(OR('Anforderung Antragsteller'!AG51=\"muss nicht erneut eingereicht werden\",'Anforderung Antragsteller'!AG51=\"nicht erforderlich\"),\"-\",$C49)","v":"nein"}]

{"sheet":"ALT Prüfer-Hinweis","index":4,"n_rows":50,"n_cols":9,"rows_kept":50,"hidden":true}
["2. Prüfung Prüferhinweis"]
[]
[null,null,{"$f":"'Anforderung Antragsteller'!C3","v":"Initial application"},{"$f":"'Anforderung Antragsteller'!H3","v":"Transfer from another country or another company"},{"$f":"'Anforderung Antragsteller'!M3","v":"1st and 2nd renewal (valid for max. 9 years)"},{"$f":"'Anforderung Antragsteller'!R3","v":"from 3rd renewal (validity over 9 years)"},{"$f":"'Anforderung Antragsteller'!W3","v":"Extension of an existing quality label"},{"$f":"'Anforderung Antragsteller'!AB3","v":"Change of product names"},{"$f":"'Anforderung Antragsteller'!AG3","v":"Technical changes to the product"}]
[1,"Grundlegendes"]
[null,"akkreditierte Prüfberichte nach EN 12102-1 und -2, EN 14511-2 bis 4 und EN 14825, bzw. EN 16147 bei Trinkwasser\nAnzahl hängt vom Umfang der Modelreihe ab","-","-","-","-","-","-","-"]
[null,"- Unterschriebener detaillierter akkreditierter Leistungs-Prüfbericht nach EHPA Regularien oder HP-Keymark Regularien UND","Ist die Prüfung nach EHPA Regularien oder HP-Keymark-Schema und unter der Akkreditierung des Prüfinsitutes durchgeführt worden (Logo eines nationalen oder Internationalen Akkreditierungs-Institiutes oder schriftlicher Verweis auf die Akkreditierung); ist der Prüfbericht unterschrieben oder gültig digital signiert; stimmen Leistungswerte mit den technischen Unterlagen überein (SCOP +- 0,1 lt. Freimüller); wurden die erforderliche Anzahl an Prüfberichten eingereicht; Wird das Gerät als LT und MT verkauft müssen auch im Prüfbericht SCOP Werte für beide Temperaturanwendungen enthalten sein.",{"$f":"IF(OR('Anforderung Antragsteller'!H7=\"does not need to be resubmitted\",'Anforderung Antragsteller'!H7=\"not required\"),\"-\",$C6)","v":"Ist die Prüfung nach EHPA Regularien oder HP-Keymark-Schema und unter der Akkreditierung des Prüfinsitutes durchgeführt worden (Logo eines nationalen oder Internationalen Akkreditierungs-Institiutes oder schriftlicher Verweis auf die Akkreditierung); ist der Prüfbericht unterschrieben oder gültig digital signiert; stimmen Leistungswerte mit den technischen Unterlagen überein (SCOP +- 0,1 lt. Freimüller); wurden die erforderliche Anzahl an Prüfberichten eingereicht; Wird das Gerät als LT und MT verkauft müssen auch im Prüfbericht SCOP Werte für beide Temperaturanwendungen enthalten sein."},{"$f":"IF(OR('Anforderung Antragsteller'!M7=\"does not need to be resubmitted\",'Anforderung Antragsteller'!M7=\"not required\"),\"-\",$C6)","v":"-"},{"$f":"IF(OR('Anforderung Antragsteller'!R7=\"does not need to be resubmitted\",'Anforderung Antragsteller'!R7=\"not required\"),\"-\",$C6)","v":"Ist die Prüfung nach EHPA Regularien oder HP-Keymark-Schema und unter der Akkreditierung des Prüfinsitutes durchgeführt worden (Logo eines nationalen oder Internationalen Akkreditierungs-Institiutes oder schriftlicher Verweis auf die Akkreditierung); ist der Prüfbericht unterschrieben oder gültig digital signiert; stimmen Leistungswerte mit den technischen Unterlagen überein (SCOP +- 0,1 lt. Freimüller); wurden die erforderliche Anzahl an Prüfberichten eingereicht; Wird das Gerät als LT und MT verkauft müssen auch im Prüfbericht SCOP Werte für beide Temperaturanwendungen enthalten sein."},{"$f":"IF(OR('Anforderung Antragsteller'!W7=\"does not need to be resubmitted\",'Anforderung Antragsteller'!W7=\"not required\"),\"-\",$C6)","v":"Ist die Prüfung nach EHPA Regularien oder HP-Keymark-Schema und unter der Akkreditierung des Prüfinsitutes durchgeführt worden (Logo eines nationalen oder Internationalen Akkreditierungs-Institiutes oder schriftlicher Verweis auf die Akkreditierung); ist der Prüfbericht unterschrieben oder gültig digital signiert; stimmen Leistungswerte mit den technischen Unterlagen überein (SCOP +- 0,1 lt. Freimüller); wurden die erforderliche Anzahl an Prüfberichten eingereicht; Wird das Gerät als LT und MT verkauft müssen auch im Prüfbericht SCOP Werte für beide Temperaturanwendungen enthalten sein."},{"$f":"IF(OR('Anforderung Antragsteller'!AB7=\"does not need to be resubmitted\",'Anforderung Antragsteller'!AB7=\"not required\"),\"-\",$C6)","v":"-"},"Prübreicht ist nur dann notwendig, wenn die Gütesiegel-Kommission eine Nachmessung verlangt"]
[null,"- Unterschriebener detaillierter akkreditierter Schall-Prüfbericht  nach EHPA Regularien oder HP-Keymark Regularien UND","Ist die Prüfung nach EHPA Regularien oder HP-Keymark-Schema und unter der Akkreditierung des Prüfinsitutes durchgeführt worden (Logo eines nationalen oder Internationalen Akkreditierungs-Institiutes oder schriftlicher Verweis auf die Akkreditierung); ist der Prüfbericht unterschrieben oder gültig digital signiert; stimmen Leistungswerte mit den technischen Unterlagen überein (SCOP +- 0,1 lt. Freimüller); wurden die erforderliche Anzahl an Prüfberichten eingereicht; Wird das Gerät als LT und MT verkauft müssen auch im Prüfbericht SCOP Werte für beide Temperaturanwendungen enthalten sein.",{"$f":"IF(OR('Anforderung Antragsteller'!H8=\"does not need to be resubmitted\",'Anforderung Antragsteller'!H8=\"not required\"),\"-\",$C7)","v":"Ist die Prüfung nach EHPA Regularien oder HP-Keymark-Schema und unter der Akkreditierung des Prüfinsitutes durchgeführt worden (Logo eines nationalen oder Internationalen Akkreditierungs-Institiutes oder schriftlicher Verweis auf die Akkreditierung); ist der Prüfbericht unterschrieben oder gültig digital signiert; stimmen Leistungswerte mit den technischen Unterlagen überein (SCOP +- 0,1 lt. Freimüller); wurden die erforderliche Anzahl an Prüfberichten eingereicht; Wird das Gerät als LT und MT verkauft müssen auch im Prüfbericht SCOP Werte für beide Temperaturanwendungen enthalten sein."},{"$f":"IF(OR('Anforderung Antragsteller'!M8=\"does not need to be resubmitted\",'Anforderung Antragsteller'!M8=\"not required\"),\"-\",$C7)","v":"-"},{"$f":"IF(OR('Anforderung Antragsteller'!R8=\"does not need to be resubmitted\",'Anforderung Antragsteller'!R8=\"not required\"),\"-\",$C7)","v":"Ist die Prüfung nach EHPA Regularien oder HP-Keymark-Schema und unter der Akkreditierung des Prüfinsitutes durchgeführt worden (Logo eines nationalen oder Internationalen Akkreditierungs-Institiutes oder schriftlicher Verweis auf die Akkreditierung); ist der Prüfbericht unterschrieben oder gültig digital signiert; stimmen Leistungswerte mit den technischen Unterlagen überein (SCOP +- 0,1 lt. Freimüller); wurden die erforderliche Anzahl an Prüfberichten eingereicht; Wird das Gerät als LT und MT verkauft müssen auch im Prüfbericht SCOP Werte für beide Temperaturanwendungen enthalten sein."},{"$f":"IF(OR('Anforderung Antragsteller'!W8=\"does not need to be resubmitted\",'Anforderung Antragsteller'!W8=\"not required\"),\"-\",$C7)","v":"Ist die Prüfung nach EHPA Regularien oder HP-Keymark-Schema und unter der Akkreditierung des Prüfinsitutes durchgeführt worden (Logo eines nationalen oder Internationalen Akkreditierungs-Institiutes oder schriftlicher Verweis auf die Akkreditierung); ist der Prüfbericht unterschrieben oder gültig digital signiert; stimmen Leistungswerte mit den technischen Unterlagen überein (SCOP +- 0,1 lt. Freimüller); wurden die erforderliche Anzahl an Prüfberichten eingereicht; Wird das Gerät als LT und MT verkauft müssen auch im Prüfbericht SCOP Werte für beide Temperaturanwendungen enthalten sein."},{"$f":"IF(OR('Anforderung Antragsteller'!AB8=\"does not need to be resubmitted\",'Anforderung Antragsteller'!AB8=\"not required\"),\"-\",$C7)","v":"-"},"Prübreicht ist nur dann notwendig, wenn die Gütesiegel-Kommission eine Nachmessung verlangt"]
[null,"SCOP Anforderungen für Heizungs-Wärmepumpen","-",{"$f":"IF(OR('Anforderung Antragsteller'!H9=\"does not need to be resubmitted\",'Anforderung Antragsteller'!H9=\"not required\"),\"-\",$C8)","v":"-"},{"$f":"IF(OR('Anforderung Antragsteller'!M9=\"does not need to be resubmitted\",'Anforderung Antragsteller'!M9=\"not required\"),\"-\",$C8)","v":"-"},{"$f":"IF(OR('Anforderung Antragsteller'!R9=\"does not need to be resubmitted\",'Anforderung Antragsteller'!R9=\"not required\"),\"-\",$C8)","v":"-"},{"$f":"IF(OR('Anforderung Antragsteller'!W9=\"does not need to be resubmitted\",'Anforderung Antragsteller'!W9=\"not required\"),\"-\",$C8)","v":"-"},{"$f":"IF(OR('Anforderung Antragsteller'!AB9=\"does not need to be resubmitted\",'Anforderung Antragsteller'!AB9=\"not required\"),\"-\",$C8)","v":"-"},{"$f":"IF(OR('Anforderung Antragsteller'!AG9=\"does not need to be resubmitted\",'Anforderung Antragsteller'!AG9=\"not required\"),\"-\",$C8)","v":"-"}]
[null,"- Niedertemperaturanwendung (35°C) und durchschnittliches Klima:\n       SCOP Min : 3,70 (A/W)         SCOP Min : 4,70 (B/W, W/W)\n       SCOP Min : 4,10 (DX/W)       SCOP Min : 3,40 (A/A)","werden die EHPA Grenzen eingehalten und sind die SCOP Grenzen in allen Unterlagen gleich angegeben, bzw. stimmen diese mit dem Prüfbericht überein",{"$f":"IF(OR('Anforderung Antragsteller'!H10=\"does not need to be resubmitted\",'Anforderung Antragsteller'!H10=\"not required\"),\"-\",$C9)","v":"-"},{"$f":"IF(OR('Anforderung Antragsteller'!M10=\"does not need to be resubmitted\",'Anforderung Antragsteller'!M10=\"not required\"),\"-\",$C9)","v":"-"},{"$f":"IF(OR('Anforderung Antragsteller'!R10=\"does not need to be resubmitted\",'Anforderung Antragsteller'!R10=\"not required\"),\"-\",$C9)","v":"werden die EHPA Grenzen eingehalten und sind die SCOP Grenzen in allen Unterlagen gleich angegeben, bzw. stimmen diese mit dem Prüfbericht überein"},{"$f":"IF(OR('Anforderung Antragsteller'!W10=\"does not need to be resubmitted\",'Anforderung Antragsteller'!W10=\"not required\"),\"-\",$C9)","v":"werden die EHPA Grenzen eingehalten und sind die SCOP Grenzen in allen Unterlagen gleich angegeben, bzw. stimmen diese mit dem Prüfbericht überein"},{"$f":"IF(OR('Anforderung Antragsteller'!AB10=\"does not need to be resubmitted\",'Anforderung Antragsteller'!AB10=\"not required\"),\"-\",$C9)","v":"-"},{"$f":"IF(OR('Anforderung Antragsteller'!AG10=\"does not need to be resubmitted\",'Anforderung Antragsteller'!AG10=\"not required\"),\"-\",$C9)","v":"werden die EHPA Grenzen eingehalten und sind die SCOP Grenzen in allen Unterlagen gleich angegeben, bzw. stimmen diese mit dem Prüfbericht überein"}]
[null,"- Mitteltemperaturanwendung (55°C) und durchschnittliches Klima:\n       SCOP Min : 3,20 (A/W)       SCOP Min : 3,70 (B/W, W/W)\n       SCOP Min : 3,38 (DX/W)","werden die EHPA Grenzen eingehalten und sind die SCOP Grenzen in allen Unterlagen gleich angegeben, bzw. stimmen diese mit dem Prüfbericht überein",{"$f":"IF(OR('Anforderung Antragsteller'!H11=\"does not need to be resubmitted\",'Anforderung Antragsteller'!H11=\"not required\"),\"-\",$C10)","v":"-"},{"$f":"IF(OR('Anforderung Antragsteller'!M11=\"does not need to be resubmitted\",'Anforderung Antragsteller'!M11=\"not required\"),\"-\",$C10)","v":"-"},{"$f":"IF(OR('Anforderung Antragsteller'!R11=\"does not need to be resubmitted\",'Anforderung Antragsteller'!R11=\"not required\"),\"-\",$C10)","v":"werden die EHPA Grenzen eingehalten und sind die SCOP Grenzen in allen Unterlagen gleich angegeben, bzw. stimmen diese mit dem Prüfbericht überein"},{"$f":"IF(OR('Anforderung Antragsteller'!W11=\"does not need to be resubmitted\",'Anforderung Antragsteller'!W11=\"not required\"),\"-\",$C10)","v":"werden die EHPA Grenzen eingehalten und sind die SCOP Grenzen in allen Unterlagen gleich angegeben, bzw. stimmen diese mit dem Prüfbericht überein"},{"$f":"IF(OR('Anforderung Antragsteller'!AB11=\"does not need to be resubmitted\",'Anforderung Antragsteller'!AB11=\"not required\"),\"-\",$C10)","v":"-"},{"$f":"IF(OR('Anforderung Antragsteller'!AG11=\"does not need to be resubmitted\",'Anforderung Antragsteller'!AG11=\"not required\"),\"-\",$C10)","v":"werden die EHPA Grenzen eingehalten und sind die SCOP Grenzen in allen Unterlagen gleich angegeben, bzw. stimmen diese mit dem Prüfbericht überein"}]
[null,"Anforderungen für Brauchwasser-Wärmepumpen","-",{"$f":"IF(OR('Anforderung Antragsteller'!H12=\"does not need to be resubmitted\",'Anforderung Antragsteller'!H12=\"not required\"),\"-\",$C11)","v":"-"},{"$f":"IF(OR('Anforderung Antragsteller'!M12=\"does not need to be resubmitted\",'Anforderung Antragsteller'!M12=\"not required\"),\"-\",$C11)","v":"-"},{"$f":"IF(OR('Anforderung Antragsteller'!R12=\"does not need to be resubmitted\",'Anforderung Antragsteller'!R12=\"not required\"),\"-\",$C11)","v":"-"},{"$f":"IF(OR('Anforderung Antragsteller'!W12=\"does not need to be resubmitted\",'Anforderung Antragsteller'!W12=\"not required\"),\"-\",$C11)","v":"-"},{"$f":"IF(OR('Anforderung Antragsteller'!AB12=\"does not need to be resubmitted\",'Anforderung Antragsteller'!AB12=\"not required\"),\"-\",$C11)","v":"-"},{"$f":"IF(OR('Anforderung Antragsteller'!AG12=\"does not need to be resubmitted\",'Anforderung Antragsteller'!AG12=\"not required\"),\"-\",$C11)","v":"-"}]
[null,"- Die Wärmpumpe muss mindestens 52°C Warmwasser erzeugen können","werden die EHPA Grenzen eingehalten",{"$f":"IF(OR('Anforderung Antragsteller'!H13=\"does not need to be resubmitted\",'Anforderung Antragsteller'!H13=\"not required\"),\"-\",$C12)","v":"-"},{"$f":"IF(OR('Anforderung Antragsteller'!M13=\"does not need to be resubmitted\",'Anforderung Antragsteller'!M13=\"not required\"),\"-\",$C12)","v":"-"},{"$f":"IF(OR('Anforderung Antragsteller'!R13=\"does not need to be resubmitted\",'Anforderung Antragsteller'!R13=\"not required\"),\"-\",$C12)","v":"-"},{"$f":"IF(OR('Anforderung Antragsteller'!W13=\"does not need to be resubmitted\",'Anforderung Antragsteller'!W13=\"not required\"),\"-\",$C12)","v":"-"},{"$f":"IF(OR('Anforderung Antragsteller'!AB13=\"does not need to be resubmitted\",'Anforderung Antragsteller'!AB13=\"not required\"),\"-\",$C12)","v":"-"},{"$f":"IF(OR('Anforderung Antragsteller'!AG13=\"does not need to be resubmitted\",'Anforderung Antragsteller'!AG13=\"not required\"),\"-\",$C12)","v":"werden die EHPA Grenzen eingehalten"}]
[null,"- Minmaler \"SCOP_domestic hot water\", bzw. \"COP_domestic hot water\" wird eingehalten\nA7 ≥ 2,8 / A15 ≥ 2,9 / A20 ≥ 3,2 / B0 ≥ 2,8 / W10 ≥ 3,0","werden die EHPA Grenzen eingehalten und sind die SCOP Grenzen in allen Unterlagen gleich angegeben, bzw. stimmen diese mit dem Prüfbericht überein",{"$f":"IF(OR('Anforderung Antragsteller'!H14=\"does not need to be resubmitted\",'Anforderung Antragsteller'!H14=\"not required\"),\"-\",$C13)","v":"-"},{"$f":"IF(OR('Anforderung Antragsteller'!M14=\"does not need to be resubmitted\",'Anforderung Antragsteller'!M14=\"not required\"),\"-\",$C13)","v":"-"},{"$f":"IF(OR('Anforderung Antragsteller'!R14=\"does not need to be resubmitted\",'Anforderung Antragsteller'!R14=\"not required\"),\"-\",$C13)","v":"-"},{"$f":"IF(OR('Anforderung Antragsteller'!W14=\"does not need to be resubmitted\",'Anforderung Antragsteller'!W14=\"not required\"),\"-\",$C13)","v":"-"},{"$f":"IF(OR('Anforderung Antragsteller'!AB14=\"does not need to be resubmitted\",'Anforderung Antragsteller'!AB14=\"not required\"),\"-\",$C13)","v":"-"},{"$f":"IF(OR('Anforderung Antragsteller'!AG14=\"does not need to be resubmitted\",'Anforderung Antragsteller'!AG14=\"not required\"),\"-\",$C13)","v":"werden die EHPA Grenzen eingehalten und sind die SCOP Grenzen in allen Unterlagen gleich angegeben, bzw. stimmen diese mit dem Prüfbericht überein"}]
[null,"Unterfertigte Baugleicheitsbescheinigung des Herstellers, falls die Produktbezeichnungen am Prüfbericht/HP Keymark und am EHPA Label nicht gleich sind (siehe Vorlage unter www.waermepumpe-austria.at/dienste/guetesiegel/dokumente-und-links)","Ist der Produktname am Prüfbericht nicht ident mit dem Produktnamen am Gütesiegel, muss bestätigt werden, dass nur der Name unterschiedlich ist. Die Hardware und somit auch die Leistungsdaten sind gleich.",{"$f":"IF(OR('Anforderung Antragsteller'!H15=\"does not need to be resubmitted\",'Anforderung Antragsteller'!H15=\"not required\"),\"-\",$C14)","v":"Ist der Produktname am Prüfbericht nicht ident mit dem Produktnamen am Gütesiegel, muss bestätigt werden, dass nur der Name unterschiedlich ist. Die Hardware und somit auch die Leistungsdaten sind gleich."},{"$f":"IF(OR('Anforderung Antragsteller'!M15=\"does not need to be resubmitted\",'Anforderung Antragsteller'!M15=\"not required\"),\"-\",$C14)","v":"-"},{"$f":"IF(OR('Anforderung Antragsteller'!R15=\"does not need to be resubmitted\",'Anforderung Antragsteller'!R15=\"not required\"),\"-\",$C14)","v":"Ist der Produktname am Prüfbericht nicht ident mit dem Produktnamen am Gütesiegel, muss bestätigt werden, dass nur der Name unterschiedlich ist. Die Hardware und somit auch die Leistungsdaten sind gleich."},{"$f":"IF(OR('Anforderung Antragsteller'!W15=\"does not need to be resubmitted\",'Anforderung Antragsteller'!W15=\"not required\"),\"-\",$C14)","v":"Ist der Produktname am Prüfbericht nicht ident mit dem Produktnamen am Gütesiegel, muss bestätigt werden, dass nur der Name unterschiedlich ist. Die Hardware und somit auch die Leistungsdaten sind gleich."},{"$f":"IF(OR('Anforderung Antragsteller'!AB15=\"does not need to be resubmitted\",'Anforderung Antragsteller'!AB15=\"not required\"),\"-\",$C14)","v":"Ist der Produktname am Prüfbericht nicht ident mit dem Produktnamen am Gütesiegel, muss bestätigt werden, dass nur der Name unterschiedlich ist. Die Hardware und somit auch die Leistungsdaten sind gleich."},{"$f":"IF(OR('Anforderung Antragsteller'!AG15=\"does not need to be resubmitted\",'Anforderung Antragsteller'!AG15=\"not required\"),\"-\",$C14)","v":"Ist der Produktname am Prüfbericht nicht ident mit dem Produktnamen am Gütesiegel, muss bestätigt werden, dass nur der Name unterschiedlich ist. Die Hardware und somit auch die Leistungsdaten sind gleich."}]
[null,"Unterfertigte CE-Konformitäts-Erklärung","Der Produktname muss gefunden werden, sie muss unterfertigt sein und die gängigen EU Normen und Vorschriften enthalten.",{"$f":"IF(OR('Anforderung Antragsteller'!H16=\"does not need to be resubmitted\",'Anforderung Antragsteller'!H16=\"not required\"),\"-\",$C15)","v":"Der Produktname muss gefunden werden, sie muss unterfertigt sein und die gängigen EU Normen und Vorschriften enthalten."},{"$f":"IF(OR('Anforderung Antragsteller'!M16=\"does not need to be resubmitted\",'Anforderung Antragsteller'!M16=\"not required\"),\"-\",$C15)","v":"-"},{"$f":"IF(OR('Anforderung Antragsteller'!R16=\"does not need to be resubmitted\",'Anforderung Antragsteller'!R16=\"not required\"),\"-\",$C15)","v":"Der Produktname muss gefunden werden, sie muss unterfertigt sein und die gängigen EU Normen und Vorschriften enthalten."},{"$f":"IF(OR('Anforderung Antragsteller'!W16=\"does not need to be resubmitted\",'Anforderung Antragsteller'!W16=\"not required\"),\"-\",$C15)","v":"Der Produktname muss gefunden werden, sie muss unterfertigt sein und die gängigen EU Normen und Vorschriften enthalten."},{"$f":"IF(OR('Anforderung Antragsteller'!AB16=\"does not need to be resubmitted\",'Anforderung Antragsteller'!AB16=\"not required\"),\"-\",$C15)","v":"Der Produktname muss gefunden werden, sie muss unterfertigt sein und die gängigen EU Normen und Vorschriften enthalten."},{"$f":"IF(OR('Anforderung Antragsteller'!AG16=\"does not need to be resubmitted\",'Anforderung Antragsteller'!AG16=\"not required\"),\"-\",$C15)","v":"Der Produktname muss gefunden werden, sie muss unterfertigt sein und die gängigen EU Normen und Vorschriften enthalten."}]
[null,"Formelle Zustimmung vom Elterngütesiegel-Halter (siehe Vorlage unter www.waermepumpe-austria.at/dienste/guetesiegel/dokumente-und-links)","-","ausgefüllte und unterzeichnete Vorlage",{"$f":"IF(OR('Anforderung Antragsteller'!M17=\"does not need to be resubmitted\",'Anforderung Antragsteller'!M17=\"not required\"),\"-\",$C16)","v":"-"},{"$f":"IF(OR('Anforderung Antragsteller'!R17=\"does not need to be resubmitted\",'Anforderung Antragsteller'!R17=\"not required\"),\"-\",$C16)","v":"-"},{"$f":"IF(OR('Anforderung Antragsteller'!W17=\"does not need to be resubmitted\",'Anforderung Antragsteller'!W17=\"not required\"),\"-\",$C16)","v":"-"},{"$f":"IF(OR('Anforderung Antragsteller'!AB17=\"does not need to be resubmitted\",'Anforderung Antragsteller'!AB17=\"not required\"),\"-\",$C16)","v":"-"},{"$f":"IF(OR('Anforderung Antragsteller'!AG17=\"does not need to be resubmitted\",'Anforderung Antragsteller'!AG17=\"not required\"),\"-\",$C16)","v":"-"}]
[2,"Antrag","-",{"$f":"IF(OR('Anforderung Antragsteller'!H18=\"does not need to be resubmitted\",'Anforderung Antragsteller'!H18=\"not required\"),\"-\",$C17)","v":"-"},{"$f":"IF(OR('Anforderung Antragsteller'!M18=\"does not need to be resubmitted\",'Anforderung Antragsteller'!M18=\"not required\"),\"-\",$C17)","v":"-"},{"$f":"IF(OR('Anforderung Antragsteller'!R18=\"does not need to be resubmitted\",'Anforderung Antragsteller'!R18=\"not required\"),\"-\",$C17)","v":"-"},{"$f":"IF(OR('Anforderung Antragsteller'!W18=\"does not need to be resubmitted\",'Anforderung Antragsteller'!W18=\"not required\"),\"-\",$C17)","v":"-"},{"$f":"IF(OR('Anforderung Antragsteller'!AB18=\"does not need to be resubmitted\",'Anforderung Antragsteller'!AB18=\"not required\"),\"-\",$C17)","v":"-"},{"$f":"IF(OR('Anforderung Antragsteller'!AG18=\"does not need to be resubmitted\",'Anforderung Antragsteller'!AG18=\"not required\"),\"-\",$C17)","v":"-"}]
[null,"Hauptkomponenten Liste hochladen (Hersteller, Typenbezeichnung) und in der Online-Maske im Model inkl. SCOP Werte ausfüllen.","Die eingetragenen Werte müssen mit den Datenblättern, bzw. dem Prüfbericht übereinstimmen. Die Hauptkomponenten müssen mit dem Prüfbericht übereinstimmen. Bei den Hauptkomponenten muss ein Herstellername und genaue Typenbezeichnung angegeben sein. Softwareversion muss die derzeit aktuelle eingetragen sein.",{"$f":"IF(OR('Anforderung Antragsteller'!H19=\"does not need to be resubmitted\",'Anforderung Antragsteller'!H19=\"not required\"),\"-\",$C18)","v":"-"},{"$f":"IF(OR('Anforderung Antragsteller'!M19=\"does not need to be resubmitted\",'Anforderung Antragsteller'!M19=\"not required\"),\"-\",$C18)","v":"-"},{"$f":"IF(OR('Anforderung Antragsteller'!R19=\"does not need to be resubmitted\",'Anforderung Antragsteller'!R19=\"not required\"),\"-\",$C18)","v":"Die eingetragenen Werte müssen mit den Datenblättern, bzw. dem Prüfbericht übereinstimmen. Die Hauptkomponenten müssen mit dem Prüfbericht übereinstimmen. Bei den Hauptkomponenten muss ein Herstellername und genaue Typenbezeichnung angegeben sein. Softwareversion muss die derzeit aktuelle eingetragen sein."},{"$f":"IF(OR('Anforderung Antragsteller'!W19=\"does not need to be resubmitted\",'Anforderung Antragsteller'!W19=\"not required\"),\"-\",$C18)","v":"Die eingetragenen Werte müssen mit den Datenblättern, bzw. dem Prüfbericht übereinstimmen. Die Hauptkomponenten müssen mit dem Prüfbericht übereinstimmen. Bei den Hauptkomponenten muss ein Herstellername und genaue Typenbezeichnung angegeben sein. Softwareversion muss die derzeit aktuelle eingetragen sein."},{"$f":"IF(OR('Anforderung Antragsteller'!AB19=\"does not need to be resubmitted\",'Anforderung Antragsteller'!AB19=\"not required\"),\"-\",$C18)","v":"-"},{"$f":"IF(OR('Anforderung Antragsteller'!AG19=\"does not need to be resubmitted\",'Anforderung Antragsteller'!AG19=\"not required\"),\"-\",$C18)","v":"Die eingetragenen Werte müssen mit den Datenblättern, bzw. dem Prüfbericht übereinstimmen. Die Hauptkomponenten müssen mit dem Prüfbericht übereinstimmen. Bei den Hauptkomponenten muss ein Herstellername und genaue Typenbezeichnung angegeben sein. Softwareversion muss die derzeit aktuelle eingetragen sein."}]
[null,"Eintragen der Daten nach EN 14511, EN 14825 und EN 12102-1 in der Online-Maske bei den einzelnen Modellen ausfüllen."]
[3,"Kundenservice  (deutschsprachig)","-",{"$f":"IF(OR('Anforderung Antragsteller'!H21=\"does not need to be resubmitted\",'Anforderung Antragsteller'!H21=\"not required\"),\"-\",$C20)","v":"-"},{"$f":"IF(OR('Anforderung Antragsteller'!M21=\"does not need to be resubmitted\",'Anforderung Antragsteller'!M21=\"not required\"),\"-\",$C20)","v":"-"},{"$f":"IF(OR('Anforderung Antragsteller'!R21=\"does not need to be resubmitted\",'Anforderung Antragsteller'!R21=\"not required\"),\"-\",$C20)","v":"-"},{"$f":"IF(OR('Anforderung Antragsteller'!W21=\"does not need to be resubmitted\",'Anforderung Antragsteller'!W21=\"not required\"),\"-\",$C20)","v":"-"},{"$f":"IF(OR('Anforderung Antragsteller'!AB21=\"does not need to be resubmitted\",'Anforderung Antragsteller'!AB21=\"not required\"),\"-\",$C20)","v":"-"},{"$f":"IF(OR('Anforderung Antragsteller'!AG21=\"does not need to be resubmitted\",'Anforderung Antragsteller'!AG21=\"not required\"),\"-\",$C20)","v":"-"}]
[null,"Formular-Vorlage für den Inbetriebnahme- und Wartungs-Techniker","muss vorhanden sein",{"$f":"IF(OR('Anforderung Antragsteller'!H22=\"does not need to be resubmitted\",'Anforderung Antragsteller'!H22=\"not required\"),\"-\",$C21)","v":"muss vorhanden sein"},{"$f":"IF(OR('Anforderung Antragsteller'!M22=\"does not need to be resubmitted\",'Anforderung Antragsteller'!M22=\"not required\"),\"-\",$C21)","v":"-"},{"$f":"IF(OR('Anforderung Antragsteller'!R22=\"does not need to be resubmitted\",'Anforderung Antragsteller'!R22=\"not required\"),\"-\",$C21)","v":"muss vorhanden sein"},{"$f":"IF(OR('Anforderung Antragsteller'!W22=\"does not need to be resubmitted\",'Anforderung Antragsteller'!W22=\"not required\"),\"-\",$C21)","v":"muss vorhanden sein"},{"$f":"IF(OR('Anforderung Antragsteller'!AB22=\"does not need to be resubmitted\",'Anforderung Antragsteller'!AB22=\"not required\"),\"-\",$C21)","v":"-"},{"$f":"IF(OR('Anforderung Antragsteller'!AG22=\"does not need to be resubmitted\",'Anforderung Antragsteller'!AG22=\"not required\"),\"-\",$C21)","v":"-"}]
[null,"Garantie für mindestens 2 Jahre","Teilweise wird dies in den AGBs angeführt, teilweise durch eine separates Schriftstück bestätigt. Wichtig ist, dass es nicht die gesetzliche Gewährleistung ist, sondern eine Garantie. Diese Garantie muss unabhängig von Service/Wartungsverträgen sein.",{"$f":"IF(OR('Anforderung Antragsteller'!H23=\"does not need to be resubmitted\",'Anforderung Antragsteller'!H23=\"not required\"),\"-\",$C22)","v":"Teilweise wird dies in den AGBs angeführt, teilweise durch eine separates Schriftstück bestätigt. Wichtig ist, dass es nicht die gesetzliche Gewährleistung ist, sondern eine Garantie. Diese Garantie muss unabhängig von Service/Wartungsverträgen sein."},{"$f":"IF(OR('Anforderung Antragsteller'!M23=\"does not need to be resubmitted\",'Anforderung Antragsteller'!M23=\"not required\"),\"-\",$C22)","v":"-"},{"$f":"IF(OR('Anforderung Antragsteller'!R23=\"does not need to be resubmitted\",'Anforderung Antragsteller'!R23=\"not required\"),\"-\",$C22)","v":"Teilweise wird dies in den AGBs angeführt, teilweise durch eine separates Schriftstück bestätigt. Wichtig ist, dass es nicht die gesetzliche Gewährleistung ist, sondern eine Garantie. Diese Garantie muss unabhängig von Service/Wartungsverträgen sein."},{"$f":"IF(OR('Anforderung Antragsteller'!W23=\"does not need to be resubmitted\",'Anforderung Antragsteller'!W23=\"not required\"),\"-\",$C22)","v":"Teilweise wird dies in den AGBs angeführt, teilweise durch eine separates Schriftstück bestätigt. Wichtig ist, dass es nicht die gesetzliche Gewährleistung ist, sondern eine Garantie. Diese Garantie muss unabhängig von Service/Wartungsverträgen sein."},{"$f":"IF(OR('Anforderung Antragsteller'!AB23=\"does not need to be resubmitted\",'Anforderung Antragsteller'!AB23=\"not required\"),\"-\",$C22)","v":"-"},{"$f":"IF(OR('Anforderung Antragsteller'!AG23=\"does not need to be resubmitted\",'Anforderung Antragsteller'!AG23=\"not required\"),\"-\",$C22)","v":"-"}]
[null,"Ersatzteilgarantie für mindestens 10 Jahre","Teilweise wird dies in den AGBs angeführt, teilweise durch eine separates Schriftstück bestätigt. Diese Garantie muss unabhängig von Service/Wartungsverträgen sein.",{"$f":"IF(OR('Anforderung Antragsteller'!H24=\"does not need to be resubmitted\",'Anforderung Antragsteller'!H24=\"not required\"),\"-\",$C23)","v":"Teilweise wird dies in den AGBs angeführt, teilweise durch eine separates Schriftstück bestätigt. Diese Garantie muss unabhängig von Service/Wartungsverträgen sein."},{"$f":"IF(OR('Anforderung Antragsteller'!M24=\"does not need to be resubmitted\",'Anforderung Antragsteller'!M24=\"not required\"),\"-\",$C23)","v":"-"},{"$f":"IF(OR('Anforderung Antragsteller'!R24=\"does not need to be resubmitted\",'Anforderung Antragsteller'!R24=\"not required\"),\"-\",$C23)","v":"Teilweise wird dies in den AGBs angeführt, teilweise durch eine separates Schriftstück bestätigt. Diese Garantie muss unabhängig von Service/Wartungsverträgen sein."},{"$f":"IF(OR('Anforderung Antragsteller'!W24=\"does not need to be resubmitted\",'Anforderung Antragsteller'!W24=\"not required\"),\"-\",$C23)","v":"Teilweise wird dies in den AGBs angeführt, teilweise durch eine separates Schriftstück bestätigt. Diese Garantie muss unabhängig von Service/Wartungsverträgen sein."},{"$f":"IF(OR('Anforderung Antragsteller'!AB24=\"does not need to be resubmitted\",'Anforderung Antragsteller'!AB24=\"not required\"),\"-\",$C23)","v":"-"},{"$f":"IF(OR('Anforderung Antragsteller'!AG24=\"does not need to be resubmitted\",'Anforderung Antragsteller'!AG24=\"not required\"),\"-\",$C23)","v":"-"}]
[null,"Reaktionszeit des Kundendienstes im Vertriebsgebiet innerhalb von 24\nStunden und Kontaktdaten zum Kundendienst im Vertriebsgebiet   (siehe Vorlage unter www.waermepumpe-austria.at/dienste/guetesiegel/dokumente-und-links)","Ausgefüllte Vorlage",{"$f":"IF(OR('Anforderung Antragsteller'!H25=\"does not need to be resubmitted\",'Anforderung Antragsteller'!H25=\"not required\"),\"-\",$C24)","v":"Ausgefüllte Vorlage"},{"$f":"IF(OR('Anforderung Antragsteller'!M25=\"does not need to be resubmitted\",'Anforderung Antragsteller'!M25=\"not required\"),\"-\",$C24)","v":"-"},{"$f":"IF(OR('Anforderung Antragsteller'!R25=\"does not need to be resubmitted\",'Anforderung Antragsteller'!R25=\"not required\"),\"-\",$C24)","v":"Ausgefüllte Vorlage"},{"$f":"IF(OR('Anforderung Antragsteller'!W25=\"does not need to be resubmitted\",'Anforderung Antragsteller'!W25=\"not required\"),\"-\",$C24)","v":"Ausgefüllte Vorlage"},{"$f":"IF(OR('Anforderung Antragsteller'!AB25=\"does not need to be resubmitted\",'Anforderung Antragsteller'!AB25=\"not required\"),\"-\",$C24)","v":"-"},{"$f":"IF(OR('Anforderung Antragsteller'!AG25=\"does not need to be resubmitted\",'Anforderung Antragsteller'!AG25=\"not required\"),\"-\",$C24)","v":"-"}]
[4,"Bedienungsanleitungen  (deutschsprachig)","-",{"$f":"IF(OR('Anforderung Antragsteller'!H26=\"does not need to be resubmitted\",'Anforderung Antragsteller'!H26=\"not required\"),\"-\",$C25)","v":"-"},{"$f":"IF(OR('Anforderung Antragsteller'!M26=\"does not need to be resubmitted\",'Anforderung Antragsteller'!M26=\"not required\"),\"-\",$C25)","v":"-"},{"$f":"IF(OR('Anforderung Antragsteller'!R26=\"does not need to be resubmitted\",'Anforderung Antragsteller'!R26=\"not required\"),\"-\",$C25)","v":"-"},{"$f":"IF(OR('Anforderung Antragsteller'!W26=\"does not need to be resubmitted\",'Anforderung Antragsteller'!W26=\"not required\"),\"-\",$C25)","v":"-"},{"$f":"IF(OR('Anforderung Antragsteller'!AB26=\"does not need to be resubmitted\",'Anforderung Antragsteller'!AB26=\"not required\"),\"-\",$C25)","v":"-"},{"$f":"IF(OR('Anforderung Antragsteller'!AG26=\"does not need to be resubmitted\",'Anforderung Antragsteller'!AG26=\"not required\"),\"-\",$C25)","v":"-"}]
[null,"Informationen und Sicherheitshinweise für eine ordnungsgemäße\nNutzung","Meist ein paar Seiten in der Montageanleitung oder Installationsanleitung. Inhalt wird hier nur grob überflogen",{"$f":"IF(OR('Anforderung Antragsteller'!H27=\"does not need to be resubmitted\",'Anforderung Antragsteller'!H27=\"not required\"),\"-\",$C26)","v":"Meist ein paar Seiten in der Montageanleitung oder Installationsanleitung. Inhalt wird hier nur grob überflogen"},{"$f":"IF(OR('Anforderung Antragsteller'!M27=\"does not need to be resubmitted\",'Anforderung Antragsteller'!M27=\"not required\"),\"-\",$C26)","v":"-"},{"$f":"IF(OR('Anforderung Antragsteller'!R27=\"does not need to be resubmitted\",'Anforderung Antragsteller'!R27=\"not required\"),\"-\",$C26)","v":"Meist ein paar Seiten in der Montageanleitung oder Installationsanleitung. Inhalt wird hier nur grob überflogen"},{"$f":"IF(OR('Anforderung Antragsteller'!W27=\"does not need to be resubmitted\",'Anforderung Antragsteller'!W27=\"not required\"),\"-\",$C26)","v":"Meist ein paar Seiten in der Montageanleitung oder Installationsanleitung. Inhalt wird hier nur grob überflogen"},{"$f":"IF(OR('Anforderung Antragsteller'!AB27=\"does not need to be resubmitted\",'Anforderung Antragsteller'!AB27=\"not required\"),\"-\",$C26)","v":"Meist ein paar Seiten in der Montageanleitung oder Installationsanleitung. Inhalt wird hier nur grob überflogen"},{"$f":"IF(OR('Anforderung Antragsteller'!AG27=\"does not need to be resubmitted\",'Anforderung Antragsteller'!AG27=\"not required\"),\"-\",$C26)","v":"Meist ein paar Seiten in der Montageanleitung oder Installationsanleitung. Inhalt wird hier nur grob überflogen"}]
[null,"Anleitung zur Bedienung der Wärmepumpe","Bedienungsanleitung + Regleranleitung für Endkunden",{"$f":"IF(OR('Anforderung Antragsteller'!H28=\"does not need to be resubmitted\",'Anforderung Antragsteller'!H28=\"not required\"),\"-\",$C27)","v":"Bedienungsanleitung + Regleranleitung für Endkunden"},{"$f":"IF(OR('Anforderung Antragsteller'!M28=\"does not need to be resubmitted\",'Anforderung Antragsteller'!M28=\"not required\"),\"-\",$C27)","v":"-"},{"$f":"IF(OR('Anforderung Antragsteller'!R28=\"does not need to be resubmitted\",'Anforderung Antragsteller'!R28=\"not required\"),\"-\",$C27)","v":"Bedienungsanleitung + Regleranleitung für Endkunden"},{"$f":"IF(OR('Anforderung Antragsteller'!W28=\"does not need to be resubmitted\",'Anforderung Antragsteller'!W28=\"not required\"),\"-\",$C27)","v":"Bedienungsanleitung + Regleranleitung für Endkunden"},{"$f":"IF(OR('Anforderung Antragsteller'!AB28=\"does not need to be resubmitted\",'Anforderung Antragsteller'!AB28=\"not required\"),\"-\",$C27)","v":"Bedienungsanleitung + Regleranleitung für Endkunden"},{"$f":"IF(OR('Anforderung Antragsteller'!AG28=\"does not need to be resubmitted\",'Anforderung Antragsteller'!AG28=\"not required\"),\"-\",$C27)","v":"Bedienungsanleitung + Regleranleitung für Endkunden"}]
[null,"Ersatzteilliste","Es müssen für alle Produkte Ersatzteile angeführt werde. Stichprobenartig prüfen ob Hauptkomponenten enthalten sind.",{"$f":"IF(OR('Anforderung Antragsteller'!H29=\"does not need to be resubmitted\",'Anforderung Antragsteller'!H29=\"not required\"),\"-\",$C28)","v":"Es müssen für alle Produkte Ersatzteile angeführt werde. Stichprobenartig prüfen ob Hauptkomponenten enthalten sind."},{"$f":"IF(OR('Anforderung Antragsteller'!M29=\"does not need to be resubmitted\",'Anforderung Antragsteller'!M29=\"not required\"),\"-\",$C28)","v":"-"},{"$f":"IF(OR('Anforderung Antragsteller'!R29=\"does not need to be resubmitted\",'Anforderung Antragsteller'!R29=\"not required\"),\"-\",$C28)","v":"Es müssen für alle Produkte Ersatzteile angeführt werde. Stichprobenartig prüfen ob Hauptkomponenten enthalten sind."},{"$f":"IF(OR('Anforderung Antragsteller'!W29=\"does not need to be resubmitted\",'Anforderung Antragsteller'!W29=\"not required\"),\"-\",$C28)","v":"Es müssen für alle Produkte Ersatzteile angeführt werde. Stichprobenartig prüfen ob Hauptkomponenten enthalten sind."},{"$f":"IF(OR('Anforderung Antragsteller'!AB29=\"does not need to be resubmitted\",'Anforderung Antragsteller'!AB29=\"not required\"),\"-\",$C28)","v":"Es müssen für alle Produkte Ersatzteile angeführt werde. Stichprobenartig prüfen ob Hauptkomponenten enthalten sind."},{"$f":"IF(OR('Anforderung Antragsteller'!AG29=\"does not need to be resubmitted\",'Anforderung Antragsteller'!AG29=\"not required\"),\"-\",$C28)","v":"Es müssen für alle Produkte Ersatzteile angeführt werde. Stichprobenartig prüfen ob Hauptkomponenten enthalten sind."}]
[5,"Installationsanleitungen  (deutschsprachig)","-",{"$f":"IF(OR('Anforderung Antragsteller'!H30=\"does not need to be resubmitted\",'Anforderung Antragsteller'!H30=\"not required\"),\"-\",$C29)","v":"-"},{"$f":"IF(OR('Anforderung Antragsteller'!M30=\"does not need to be resubmitted\",'Anforderung Antragsteller'!M30=\"not required\"),\"-\",$C29)","v":"-"},{"$f":"IF(OR('Anforderung Antragsteller'!R30=\"does not need to be resubmitted\",'Anforderung Antragsteller'!R30=\"not required\"),\"-\",$C29)","v":"-"},{"$f":"IF(OR('Anforderung Antragsteller'!W30=\"does not need to be resubmitted\",'Anforderung Antragsteller'!W30=\"not required\"),\"-\",$C29)","v":"-"},{"$f":"IF(OR('Anforderung Antragsteller'!AB30=\"does not need to be resubmitted\",'Anforderung Antragsteller'!AB30=\"not required\"),\"-\",$C29)","v":"-"},{"$f":"IF(OR('Anforderung Antragsteller'!AG30=\"does not need to be resubmitted\",'Anforderung Antragsteller'!AG30=\"not required\"),\"-\",$C29)","v":"-"}]
[null,"Installationsanleitung","Installationsanleitung muss vorhanden sein",{"$f":"IF(OR('Anforderung Antragsteller'!H31=\"does not need to be resubmitted\",'Anforderung Antragsteller'!H31=\"not required\"),\"-\",$C30)","v":"Installationsanleitung muss vorhanden sein"},{"$f":"IF(OR('Anforderung Antragsteller'!M31=\"does not need to be resubmitted\",'Anforderung Antragsteller'!M31=\"not required\"),\"-\",$C30)","v":"-"},{"$f":"IF(OR('Anforderung Antragsteller'!R31=\"does not need to be resubmitted\",'Anforderung Antragsteller'!R31=\"not required\"),\"-\",$C30)","v":"Installationsanleitung muss vorhanden sein"},{"$f":"IF(OR('Anforderung Antragsteller'!W31=\"does not need to be resubmitted\",'Anforderung Antragsteller'!W31=\"not required\"),\"-\",$C30)","v":"Installationsanleitung muss vorhanden sein"},{"$f":"IF(OR('Anforderung Antragsteller'!AB31=\"does not need to be resubmitted\",'Anforderung Antragsteller'!AB31=\"not required\"),\"-\",$C30)","v":"Installationsanleitung muss vorhanden sein"},{"$f":"IF(OR('Anforderung Antragsteller'!AG31=\"does not need to be resubmitted\",'Anforderung Antragsteller'!AG31=\"not required\"),\"-\",$C30)","v":"Installationsanleitung muss vorhanden sein"}]
[null,"Sicherheitshinweise","Sicherheitshinweise müssen enthalten sein",{"$f":"IF(OR('Anforderung Antragsteller'!H32=\"does not need to be resubmitted\",'Anforderung Antragsteller'!H32=\"not required\"),\"-\",$C31)","v":"Sicherheitshinweise müssen enthalten sein"},{"$f":"IF(OR('Anforderung Antragsteller'!M32=\"does not need to be resubmitted\",'Anforderung Antragsteller'!M32=\"not required\"),\"-\",$C31)","v":"-"},{"$f":"IF(OR('Anforderung Antragsteller'!R32=\"does not need to be resubmitted\",'Anforderung Antragsteller'!R32=\"not required\"),\"-\",$C31)","v":"Sicherheitshinweise müssen enthalten sein"},{"$f":"IF(OR('Anforderung Antragsteller'!W32=\"does not need to be resubmitted\",'Anforderung Antragsteller'!W32=\"not required\"),\"-\",$C31)","v":"Sicherheitshinweise müssen enthalten sein"},{"$f":"IF(OR('Anforderung Antragsteller'!AB32=\"does not need to be resubmitted\",'Anforderung Antragsteller'!AB32=\"not required\"),\"-\",$C31)","v":"Sicherheitshinweise müssen enthalten sein"},{"$f":"IF(OR('Anforderung Antragsteller'!AG32=\"does not need to be resubmitted\",'Anforderung Antragsteller'!AG32=\"not required\"),\"-\",$C31)","v":"Sicherheitshinweise müssen enthalten sein"}]
[null,"Inbetriebnahmehinweise","Inbetriebnahmehinweise müssen enthalten sein (zum Beispiel: Transport, Aufstellung, Anschluss Wasser/Kälte, Anschluss Strom, Inbetriebnahme am Regler, Fehlerbeschreibung,…)",{"$f":"IF(OR('Anforderung Antragsteller'!H33=\"does not need to be resubmitted\",'Anforderung Antragsteller'!H33=\"not required\"),\"-\",$C32)","v":"Inbetriebnahmehinweise müssen enthalten sein (zum Beispiel: Transport, Aufstellung, Anschluss Wasser/Kälte, Anschluss Strom, Inbetriebnahme am Regler, Fehlerbeschreibung,…)"},{"$f":"IF(OR('Anforderung Antragsteller'!M33=\"does not need to be resubmitted\",'Anforderung Antragsteller'!M33=\"not required\"),\"-\",$C32)","v":"-"},{"$f":"IF(OR('Anforderung Antragsteller'!R33=\"does not need to be resubmitted\",'Anforderung Antragsteller'!R33=\"not required\"),\"-\",$C32)","v":"Inbetriebnahmehinweise müssen enthalten sein (zum Beispiel: Transport, Aufstellung, Anschluss Wasser/Kälte, Anschluss Strom, Inbetriebnahme am Regler, Fehlerbeschreibung,…)"},{"$f":"IF(OR('Anforderung Antragsteller'!W33=\"does not need to be resubmitted\",'Anforderung Antragsteller'!W33=\"not required\"),\"-\",$C32)","v":"Inbetriebnahmehinweise müssen enthalten sein (zum Beispiel: Transport, Aufstellung, Anschluss Wasser/Kälte, Anschluss Strom, Inbetriebnahme am Regler, Fehlerbeschreibung,…)"},{"$f":"IF(OR('Anforderung Antragsteller'!AB33=\"does not need to be resubmitted\",'Anforderung Antragsteller'!AB33=\"not required\"),\"-\",$C32)","v":"Inbetriebnahmehinweise müssen enthalten sein (zum Beispiel: Transport, Aufstellung, Anschluss Wasser/Kälte, Anschluss Strom, Inbetriebnahme am Regler, Fehlerbeschreibung,…)"},{"$f":"IF(OR('Anforderung Antragsteller'!AG33=\"does not need to be resubmitted\",'Anforderung Antragsteller'!AG33=\"not required\"),\"-\",$C32)","v":"Inbetriebnahmehinweise müssen enthalten sein (zum Beispiel: Transport, Aufstellung, Anschluss Wasser/Kälte, Anschluss Strom, Inbetriebnahme am Regler, Fehlerbeschreibung,…)"}]
[null,"Fluidschemata Kältekreis und Wasserkreis","Es muss ein Schema mit Beschriftung der Komponenten des Kältekreises vorhanden sein und eine schematische Empfehlung für die Wasserinstallation (Heizung, Warmwasser). Das Kältekreisschema der beantragten Modelle muss der Definition der Modelreihe entsprechen -> gleiche Kompressortechnologie",{"$f":"IF(OR('Anforderung Antragsteller'!H34=\"does not need to be resubmitted\",'Anforderung Antragsteller'!H34=\"not required\"),\"-\",$C33)","v":"Es muss ein Schema mit Beschriftung der Komponenten des Kältekreises vorhanden sein und eine schematische Empfehlung für die Wasserinstallation (Heizung, Warmwasser). Das Kältekreisschema der beantragten Modelle muss der Definition der Modelreihe entsprechen -> gleiche Kompressortechnologie"},{"$f":"IF(OR('Anforderung Antragsteller'!M34=\"does not need to be resubmitted\",'Anforderung Antragsteller'!M34=\"not required\"),\"-\",$C33)","v":"-"},{"$f":"IF(OR('Anforderung Antragsteller'!R34=\"does not need to be resubmitted\",'Anforderung Antragsteller'!R34=\"not required\"),\"-\",$C33)","v":"Es muss ein Schema mit Beschriftung der Komponenten des Kältekreises vorhanden sein und eine schematische Empfehlung für die Wasserinstallation (Heizung, Warmwasser). Das Kältekreisschema der beantragten Modelle muss der Definition der Modelreihe entsprechen -> gleiche Kompressortechnologie"},{"$f":"IF(OR('Anforderung Antragsteller'!W34=\"does not need to be resubmitted\",'Anforderung Antragsteller'!W34=\"not required\"),\"-\",$C33)","v":"Es muss ein Schema mit Beschriftung der Komponenten des Kältekreises vorhanden sein und eine schematische Empfehlung für die Wasserinstallation (Heizung, Warmwasser). Das Kältekreisschema der beantragten Modelle muss der Definition der Modelreihe entsprechen -> gleiche Kompressortechnologie"},{"$f":"IF(OR('Anforderung Antragsteller'!AB34=\"does not need to be resubmitted\",'Anforderung Antragsteller'!AB34=\"not required\"),\"-\",$C33)","v":"Es muss ein Schema mit Beschriftung der Komponenten des Kältekreises vorhanden sein und eine schematische Empfehlung für die Wasserinstallation (Heizung, Warmwasser). Das Kältekreisschema der beantragten Modelle muss der Definition der Modelreihe entsprechen -> gleiche Kompressortechnologie"},{"$f":"IF(OR('Anforderung Antragsteller'!AG34=\"does not need to be resubmitted\",'Anforderung Antragsteller'!AG34=\"not required\"),\"-\",$C33)","v":"Es muss ein Schema mit Beschriftung der Komponenten des Kältekreises vorhanden sein und eine schematische Empfehlung für die Wasserinstallation (Heizung, Warmwasser). Das Kältekreisschema der beantragten Modelle muss der Definition der Modelreihe entsprechen -> gleiche Kompressortechnologie"}]
[null,"Elektroschema zum Anschluss der Wärmepumpe","Es müssen mindestens die Ein- und Ausgangsklemmen beschrieben sein (Funktion und Elektrische Angaben)",{"$f":"IF(OR('Anforderung Antragsteller'!H35=\"does not need to be resubmitted\",'Anforderung Antragsteller'!H35=\"not required\"),\"-\",$C34)","v":"Es müssen mindestens die Ein- und Ausgangsklemmen beschrieben sein (Funktion und Elektrische Angaben)"},{"$f":"IF(OR('Anforderung Antragsteller'!M35=\"does not need to be resubmitted\",'Anforderung Antragsteller'!M35=\"not required\"),\"-\",$C34)","v":"-"},{"$f":"IF(OR('Anforderung Antragsteller'!R35=\"does not need to be resubmitted\",'Anforderung Antragsteller'!R35=\"not required\"),\"-\",$C34)","v":"Es müssen mindestens die Ein- und Ausgangsklemmen beschrieben sein (Funktion und Elektrische Angaben)"},{"$f":"IF(OR('Anforderung Antragsteller'!W35=\"does not need to be resubmitted\",'Anforderung Antragsteller'!W35=\"not required\"),\"-\",$C34)","v":"Es müssen mindestens die Ein- und Ausgangsklemmen beschrieben sein (Funktion und Elektrische Angaben)"},{"$f":"IF(OR('Anforderung Antragsteller'!AB35=\"does not need to be resubmitted\",'Anforderung Antragsteller'!AB35=\"not required\"),\"-\",$C34)","v":"Es müssen mindestens die Ein- und Ausgangsklemmen beschrieben sein (Funktion und Elektrische Angaben)"},{"$f":"IF(OR('Anforderung Antragsteller'!AG35=\"does not need to be resubmitted\",'Anforderung Antragsteller'!AG35=\"not required\"),\"-\",$C34)","v":"Es müssen mindestens die Ein- und Ausgangsklemmen beschrieben sein (Funktion und Elektrische Angaben)"}]
[null,"Energy-Label und Energy-Label-Datenblatt nach 811/2013 (Heizungs- und Kombiwärmepumpen), bzw 812/2013 (Warmwasserwärmepumpe)\n(nur bei Geräten mit höchstens 70kW Nennleistung)","Produktname muss mit dem Namen am Gütesiegel übereinstimmen und Effizienzwerte und Schallwerte müssen mit den anderen Unterlagen übereinstimmen.",{"$f":"IF(OR('Anforderung Antragsteller'!H36=\"does not need to be resubmitted\",'Anforderung Antragsteller'!H36=\"not required\"),\"-\",$C35)","v":"Produktname muss mit dem Namen am Gütesiegel übereinstimmen und Effizienzwerte und Schallwerte müssen mit den anderen Unterlagen übereinstimmen."},{"$f":"IF(OR('Anforderung Antragsteller'!M36=\"does not need to be resubmitted\",'Anforderung Antragsteller'!M36=\"not required\"),\"-\",$C35)","v":"-"},{"$f":"IF(OR('Anforderung Antragsteller'!R36=\"does not need to be resubmitted\",'Anforderung Antragsteller'!R36=\"not required\"),\"-\",$C35)","v":"Produktname muss mit dem Namen am Gütesiegel übereinstimmen und Effizienzwerte und Schallwerte müssen mit den anderen Unterlagen übereinstimmen."},{"$f":"IF(OR('Anforderung Antragsteller'!W36=\"does not need to be resubmitted\",'Anforderung Antragsteller'!W36=\"not required\"),\"-\",$C35)","v":"Produktname muss mit dem Namen am Gütesiegel übereinstimmen und Effizienzwerte und Schallwerte müssen mit den anderen Unterlagen übereinstimmen."},{"$f":"IF(OR('Anforderung Antragsteller'!AB36=\"does not need to be resubmitted\",'Anforderung Antragsteller'!AB36=\"not required\"),\"-\",$C35)","v":"Produktname muss mit dem Namen am Gütesiegel übereinstimmen und Effizienzwerte und Schallwerte müssen mit den anderen Unterlagen übereinstimmen."},{"$f":"IF(OR('Anforderung Antragsteller'!AG36=\"does not need to be resubmitted\",'Anforderung Antragsteller'!AG36=\"not required\"),\"-\",$C35)","v":"Produktname muss mit dem Namen am Gütesiegel übereinstimmen und Effizienzwerte und Schallwerte müssen mit den anderen Unterlagen übereinstimmen."}]
[6,"Technische Daten  (deutschsprachig)","-",{"$f":"IF(OR('Anforderung Antragsteller'!H37=\"does not need to be resubmitted\",'Anforderung Antragsteller'!H37=\"not required\"),\"-\",$C36)","v":"-"},{"$f":"IF(OR('Anforderung Antragsteller'!M37=\"does not need to be resubmitted\",'Anforderung Antragsteller'!M37=\"not required\"),\"-\",$C36)","v":"-"},{"$f":"IF(OR('Anforderung Antragsteller'!R37=\"does not need to be resubmitted\",'Anforderung Antragsteller'!R37=\"not required\"),\"-\",$C36)","v":"-"},{"$f":"IF(OR('Anforderung Antragsteller'!W37=\"does not need to be resubmitted\",'Anforderung Antragsteller'!W37=\"not required\"),\"-\",$C36)","v":"-"},{"$f":"IF(OR('Anforderung Antragsteller'!AB37=\"does not need to be resubmitted\",'Anforderung Antragsteller'!AB37=\"not required\"),\"-\",$C36)","v":"-"},{"$f":"IF(OR('Anforderung Antragsteller'!AG37=\"does not need to be resubmitted\",'Anforderung Antragsteller'!AG37=\"not required\"),\"-\",$C36)","v":"-"}]
[null,"Leistungsdaten (Wärmeleistung, elektrische Leistungsaufnahme und COP über den gesamten Leistungsbereich)","zB: Werte am Energy-Label Datenblatt",{"$f":"IF(OR('Anforderung Antragsteller'!H38=\"does not need to be resubmitted\",'Anforderung Antragsteller'!H38=\"not required\"),\"-\",$C37)","v":"zB: Werte am Energy-Label Datenblatt"},{"$f":"IF(OR('Anforderung Antragsteller'!M38=\"does not need to be resubmitted\",'Anforderung Antragsteller'!M38=\"not required\"),\"-\",$C37)","v":"-"},{"$f":"IF(OR('Anforderung Antragsteller'!R38=\"does not need to be resubmitted\",'Anforderung Antragsteller'!R38=\"not required\"),\"-\",$C37)","v":"zB: Werte am Energy-Label Datenblatt"},{"$f":"IF(OR('Anforderung Antragsteller'!W38=\"does not need to be resubmitted\",'Anforderung Antragsteller'!W38=\"not required\"),\"-\",$C37)","v":"zB: Werte am Energy-Label Datenblatt"},{"$f":"IF(OR('Anforderung Antragsteller'!AB38=\"does not need to be resubmitted\",'Anforderung Antragsteller'!AB38=\"not required\"),\"-\",$C37)","v":"zB: Werte am Energy-Label Datenblatt"},{"$f":"IF(OR('Anforderung Antragsteller'!AG38=\"does not need to be resubmitted\",'Anforderung Antragsteller'!AG38=\"not required\"),\"-\",$C37)","v":"zB: Werte am Energy-Label Datenblatt"}]
[null,"Leistungsdaten nach EN 14511 bei A7/W35 (Wärmeleistung, elektrische Leistungsaufnahme und COP)","muss lt. EHPA Regularien nicht enthalten sein, wird jedoch verlangt, da diese Daten in der GET-Datenbank notwendig sind","muss lt. EHPA Regularien nicht enthalten sein, wird jedoch verlangt, da diese Daten in der GET-Datenbank notwendig sind","-","muss lt. EHPA Regularien nicht enthalten sein, wird jedoch verlangt, da diese Daten in der GET-Datenbank notwendig sind","muss lt. EHPA Regularien nicht enthalten sein, wird jedoch verlangt, da diese Daten in der GET-Datenbank notwendig sind","muss lt. EHPA Regularien nicht enthalten sein, wird jedoch verlangt, da diese Daten in der GET-Datenbank notwendig sind","-"]
[null,"Maßzeichnung","muss enthalten sein",{"$f":"IF(OR('Anforderung Antragsteller'!H40=\"does not need to be resubmitted\",'Anforderung Antragsteller'!H40=\"not required\"),\"-\",$C39)","v":"muss enthalten sein"},{"$f":"IF(OR('Anforderung Antragsteller'!M40=\"does not need to be resubmitted\",'Anforderung Antragsteller'!M40=\"not required\"),\"-\",$C39)","v":"-"},{"$f":"IF(OR('Anforderung Antragsteller'!R40=\"does not need to be resubmitted\",'Anforderung Antragsteller'!R40=\"not required\"),\"-\",$C39)","v":"muss enthalten sein"},{"$f":"IF(OR('Anforderung Antragsteller'!W40=\"does not need to be resubmitted\",'Anforderung Antragsteller'!W40=\"not required\"),\"-\",$C39)","v":"muss enthalten sein"},{"$f":"IF(OR('Anforderung Antragsteller'!AB40=\"does not need to be resubmitted\",'Anforderung Antragsteller'!AB40=\"not required\"),\"-\",$C39)","v":"muss enthalten sein"},{"$f":"IF(OR('Anforderung Antragsteller'!AG40=\"does not need to be resubmitted\",'Anforderung Antragsteller'!AG40=\"not required\"),\"-\",$C39)","v":"muss enthalten sein"}]
[null,"Mindestabstände","muss enthalten sein",{"$f":"IF(OR('Anforderung Antragsteller'!H41=\"does not need to be resubmitted\",'Anforderung Antragsteller'!H41=\"not required\"),\"-\",$C40)","v":"muss enthalten sein"},{"$f":"IF(OR('Anforderung Antragsteller'!M41=\"does not need to be resubmitted\",'Anforderung Antragsteller'!M41=\"not required\"),\"-\",$C40)","v":"-"},{"$f":"IF(OR('Anforderung Antragsteller'!R41=\"does not need to be resubmitted\",'Anforderung Antragsteller'!R41=\"not required\"),\"-\",$C40)","v":"muss enthalten sein"},{"$f":"IF(OR('Anforderung Antragsteller'!W41=\"does not need to be resubmitted\",'Anforderung Antragsteller'!W41=\"not required\"),\"-\",$C40)","v":"muss enthalten sein"},{"$f":"IF(OR('Anforderung Antragsteller'!AB41=\"does not need to be resubmitted\",'Anforderung Antragsteller'!AB41=\"not required\"),\"-\",$C40)","v":"muss enthalten sein"},{"$f":"IF(OR('Anforderung Antragsteller'!AG41=\"does not need to be resubmitted\",'Anforderung Antragsteller'!AG41=\"not required\"),\"-\",$C40)","v":"muss enthalten sein"}]
[null,"Kältemittel: Art und Füllmenge","muss enthalten sein",{"$f":"IF(OR('Anforderung Antragsteller'!H42=\"does not need to be resubmitted\",'Anforderung Antragsteller'!H42=\"not required\"),\"-\",$C41)","v":"muss enthalten sein"},{"$f":"IF(OR('Anforderung Antragsteller'!M42=\"does not need to be resubmitted\",'Anforderung Antragsteller'!M42=\"not required\"),\"-\",$C41)","v":"-"},{"$f":"IF(OR('Anforderung Antragsteller'!R42=\"does not need to be resubmitted\",'Anforderung Antragsteller'!R42=\"not required\"),\"-\",$C41)","v":"muss enthalten sein"},{"$f":"IF(OR('Anforderung Antragsteller'!W42=\"does not need to be resubmitted\",'Anforderung Antragsteller'!W42=\"not required\"),\"-\",$C41)","v":"muss enthalten sein"},{"$f":"IF(OR('Anforderung Antragsteller'!AB42=\"does not need to be resubmitted\",'Anforderung Antragsteller'!AB42=\"not required\"),\"-\",$C41)","v":"muss enthalten sein"},{"$f":"IF(OR('Anforderung Antragsteller'!AG42=\"does not need to be resubmitted\",'Anforderung Antragsteller'!AG42=\"not required\"),\"-\",$C41)","v":"muss enthalten sein"}]
[null,"Anlaufstrom / maximaler Betriebsstrom in A","Anlaufstrom oder maximaler Betriebsstrom",{"$f":"IF(OR('Anforderung Antragsteller'!H43=\"does not need to be resubmitted\",'Anforderung Antragsteller'!H43=\"not required\"),\"-\",$C42)","v":"Anlaufstrom oder maximaler Betriebsstrom"},{"$f":"IF(OR('Anforderung Antragsteller'!M43=\"does not need to be resubmitted\",'Anforderung Antragsteller'!M43=\"not required\"),\"-\",$C42)","v":"-"},{"$f":"IF(OR('Anforderung Antragsteller'!R43=\"does not need to be resubmitted\",'Anforderung Antragsteller'!R43=\"not required\"),\"-\",$C42)","v":"Anlaufstrom oder maximaler Betriebsstrom"},{"$f":"IF(OR('Anforderung Antragsteller'!W43=\"does not need to be resubmitted\",'Anforderung Antragsteller'!W43=\"not required\"),\"-\",$C42)","v":"Anlaufstrom oder maximaler Betriebsstrom"},{"$f":"IF(OR('Anforderung Antragsteller'!AB43=\"does not need to be resubmitted\",'Anforderung Antragsteller'!AB43=\"not required\"),\"-\",$C42)","v":"Anlaufstrom oder maximaler Betriebsstrom"},{"$f":"IF(OR('Anforderung Antragsteller'!AG43=\"does not need to be resubmitted\",'Anforderung Antragsteller'!AG43=\"not required\"),\"-\",$C42)","v":"Anlaufstrom oder maximaler Betriebsstrom"}]
[null,"Einsatzbereich / Einsatzgrenzen","muss enthalten sein",{"$f":"IF(OR('Anforderung Antragsteller'!H44=\"does not need to be resubmitted\",'Anforderung Antragsteller'!H44=\"not required\"),\"-\",$C43)","v":"muss enthalten sein"},{"$f":"IF(OR('Anforderung Antragsteller'!M44=\"does not need to be resubmitted\",'Anforderung Antragsteller'!M44=\"not required\"),\"-\",$C43)","v":"-"},{"$f":"IF(OR('Anforderung Antragsteller'!R44=\"does not need to be resubmitted\",'Anforderung Antragsteller'!R44=\"not required\"),\"-\",$C43)","v":"muss enthalten sein"},{"$f":"IF(OR('Anforderung Antragsteller'!W44=\"does not need to be resubmitted\",'Anforderung Antragsteller'!W44=\"not required\"),\"-\",$C43)","v":"muss enthalten sein"},{"$f":"IF(OR('Anforderung Antragsteller'!AB44=\"does not need to be resubmitted\",'Anforderung Antragsteller'!AB44=\"not required\"),\"-\",$C43)","v":"muss enthalten sein"},{"$f":"IF(OR('Anforderung Antragsteller'!AG44=\"does not need to be resubmitted\",'Anforderung Antragsteller'!AG44=\"not required\"),\"-\",$C43)","v":"muss enthalten sein"}]
[null,"Volumenstrom Quelle- und Senkenseite in m³/h, l/min","muss enthalten sein",{"$f":"IF(OR('Anforderung Antragsteller'!H45=\"does not need to be resubmitted\",'Anforderung Antragsteller'!H45=\"not required\"),\"-\",$C44)","v":"muss enthalten sein"},{"$f":"IF(OR('Anforderung Antragsteller'!M45=\"does not need to be resubmitted\",'Anforderung Antragsteller'!M45=\"not required\"),\"-\",$C44)","v":"-"},{"$f":"IF(OR('Anforderung Antragsteller'!R45=\"does not need to be resubmitted\",'Anforderung Antragsteller'!R45=\"not required\"),\"-\",$C44)","v":"muss enthalten sein"},{"$f":"IF(OR('Anforderung Antragsteller'!W45=\"does not need to be resubmitted\",'Anforderung Antragsteller'!W45=\"not required\"),\"-\",$C44)","v":"muss enthalten sein"},{"$f":"IF(OR('Anforderung Antragsteller'!AB45=\"does not need to be resubmitted\",'Anforderung Antragsteller'!AB45=\"not required\"),\"-\",$C44)","v":"muss enthalten sein"},{"$f":"IF(OR('Anforderung Antragsteller'!AG45=\"does not need to be resubmitted\",'Anforderung Antragsteller'!AG45=\"not required\"),\"-\",$C44)","v":"muss enthalten sein"}]
[null,"Volumen des WW-Speichers in Liter","muss enthalten sein",{"$f":"IF(OR('Anforderung Antragsteller'!H46=\"does not need to be resubmitted\",'Anforderung Antragsteller'!H46=\"not required\"),\"-\",$C45)","v":"-"},{"$f":"IF(OR('Anforderung Antragsteller'!M46=\"does not need to be resubmitted\",'Anforderung Antragsteller'!M46=\"not required\"),\"-\",$C45)","v":"-"},{"$f":"IF(OR('Anforderung Antragsteller'!R46=\"does not need to be resubmitted\",'Anforderung Antragsteller'!R46=\"not required\"),\"-\",$C45)","v":"-"},{"$f":"IF(OR('Anforderung Antragsteller'!W46=\"does not need to be resubmitted\",'Anforderung Antragsteller'!W46=\"not required\"),\"-\",$C45)","v":"-"},{"$f":"IF(OR('Anforderung Antragsteller'!AB46=\"does not need to be resubmitted\",'Anforderung Antragsteller'!AB46=\"not required\"),\"-\",$C45)","v":"-"},{"$f":"IF(OR('Anforderung Antragsteller'!AG46=\"does not need to be resubmitted\",'Anforderung Antragsteller'!AG46=\"not required\"),\"-\",$C45)","v":"muss enthalten sein"}]
[null,"Gewicht in kg","muss enthalten sein",{"$f":"IF(OR('Anforderung Antragsteller'!H47=\"does not need to be resubmitted\",'Anforderung Antragsteller'!H47=\"not required\"),\"-\",$C46)","v":"muss enthalten sein"},{"$f":"IF(OR('Anforderung Antragsteller'!M47=\"does not need to be resubmitted\",'Anforderung Antragsteller'!M47=\"not required\"),\"-\",$C46)","v":"-"},{"$f":"IF(OR('Anforderung Antragsteller'!R47=\"does not need to be resubmitted\",'Anforderung Antragsteller'!R47=\"not required\"),\"-\",$C46)","v":"muss enthalten sein"},{"$f":"IF(OR('Anforderung Antragsteller'!W47=\"does not need to be resubmitted\",'Anforderung Antragsteller'!W47=\"not required\"),\"-\",$C46)","v":"muss enthalten sein"},{"$f":"IF(OR('Anforderung Antragsteller'!AB47=\"does not need to be resubmitted\",'Anforderung Antragsteller'!AB47=\"not required\"),\"-\",$C46)","v":"muss enthalten sein"},{"$f":"IF(OR('Anforderung Antragsteller'!AG47=\"does not need to be resubmitted\",'Anforderung Antragsteller'!AG47=\"not required\"),\"-\",$C46)","v":"muss enthalten sein"}]
[null,"Schallleistung nach EN 12102 / Energy-Label in dB(A)","muss enthalten sein",{"$f":"IF(OR('Anforderung Antragsteller'!H48=\"does not need to be resubmitted\",'Anforderung Antragsteller'!H48=\"not required\"),\"-\",$C47)","v":"muss enthalten sein"},{"$f":"IF(OR('Anforderung Antragsteller'!M48=\"does not need to be resubmitted\",'Anforderung Antragsteller'!M48=\"not required\"),\"-\",$C47)","v":"-"},{"$f":"IF(OR('Anforderung Antragsteller'!R48=\"does not need to be resubmitted\",'Anforderung Antragsteller'!R48=\"not required\"),\"-\",$C47)","v":"muss enthalten sein"},{"$f":"IF(OR('Anforderung Antragsteller'!W48=\"does not need to be resubmitted\",'Anforderung Antragsteller'!W48=\"not required\"),\"-\",$C47)","v":"muss enthalten sein"},{"$f":"IF(OR('Anforderung Antragsteller'!AB48=\"does not need to be resubmitted\",'Anforderung Antragsteller'!AB48=\"not required\"),\"-\",$C47)","v":"muss enthalten sein"},{"$f":"IF(OR('Anforderung Antragsteller'!AG48=\"does not need to be resubmitted\",'Anforderung Antragsteller'!AG48=\"not required\"),\"-\",$C47)","v":"muss enthalten sein"}]
[null,"Schallleistung im EN 14825 Prüfpunkt B (A2) in dB(A)","muss enthalten sein",{"$f":"IF(OR('Anforderung Antragsteller'!H49=\"does not need to be resubmitted\",'Anforderung Antragsteller'!H49=\"not required\"),\"-\",$C48)","v":"muss enthalten sein"},{"$f":"IF(OR('Anforderung Antragsteller'!M49=\"does not need to be resubmitted\",'Anforderung Antragsteller'!M49=\"not required\"),\"-\",$C48)","v":"-"},{"$f":"IF(OR('Anforderung Antragsteller'!R49=\"does not need to be resubmitted\",'Anforderung Antragsteller'!R49=\"not required\"),\"-\",$C48)","v":"muss enthalten sein"},{"$f":"IF(OR('Anforderung Antragsteller'!W49=\"does not need to be resubmitted\",'Anforderung Antragsteller'!W49=\"not required\"),\"-\",$C48)","v":"muss enthalten sein"},{"$f":"IF(OR('Anforderung Antragsteller'!AB49=\"does not need to be resubmitted\",'Anforderung Antragsteller'!AB49=\"not required\"),\"-\",$C48)","v":"muss enthalten sein"},{"$f":"IF(OR('Anforderung Antragsteller'!AG49=\"does not need to be resubmitted\",'Anforderung Antragsteller'!AG49=\"not required\"),\"-\",$C48)","v":"muss enthalten sein"}]
[null,"maximaler Schallleistungspegel in dB(A) und dazugehörige Heizleistung in kW","muss enthalten sein",{"$f":"IF(OR('Anforderung Antragsteller'!H50=\"does not need to be resubmitted\",'Anforderung Antragsteller'!H50=\"not required\"),\"-\",$C49)","v":"muss enthalten sein"},{"$f":"IF(OR('Anforderung Antragsteller'!M50=\"does not need to be resubmitted\",'Anforderung Antragsteller'!M50=\"not required\"),\"-\",$C49)","v":"-"},{"$f":"IF(OR('Anforderung Antragsteller'!R50=\"does not need to be resubmitted\",'Anforderung Antragsteller'!R50=\"not required\"),\"-\",$C49)","v":"muss enthalten sein"},{"$f":"IF(OR('Anforderung Antragsteller'!W50=\"does not need to be resubmitted\",'Anforderung Antragsteller'!W50=\"not required\"),\"-\",$C49)","v":"muss enthalten sein"},{"$f":"IF(OR('Anforderung Antragsteller'!AB50=\"does not need to be resubmitted\",'Anforderung Antragsteller'!AB50=\"not required\"),\"-\",$C49)","v":"muss enthalten sein"},{"$f":"IF(OR('Anforderung Antragsteller'!AG50=\"does not need to be resubmitted\",'Anforderung Antragsteller'!AG50=\"not required\"),\"-\",$C49)","v":"muss enthalten sein"}]
[null,"maximaler Schallleistungspegel \"Silent-Mode\" in dB(A) und dazugehörige Heizleistung in kW","muss enthalten sein",{"$f":"IF(OR('Anforderung Antragsteller'!H51=\"does not need to be resubmitted\",'Anforderung Antragsteller'!H51=\"not required\"),\"-\",$C50)","v":"muss enthalten sein"},{"$f":"IF(OR('Anforderung Antragsteller'!M51=\"does not need to be resubmitted\",'Anforderung Antragsteller'!M51=\"not required\"),\"-\",$C50)","v":"-"},{"$f":"IF(OR('Anforderung Antragsteller'!R51=\"does not need to be resubmitted\",'Anforderung Antragsteller'!R51=\"not required\"),\"-\",$C50)","v":"muss enthalten sein"},{"$f":"IF(OR('Anforderung Antragsteller'!W51=\"does not need to be resubmitted\",'Anforderung Antragsteller'!W51=\"not required\"),\"-\",$C50)","v":"muss enthalten sein"},{"$f":"IF(OR('Anforderung Antragsteller'!AB51=\"does not need to be resubmitted\",'Anforderung Antragsteller'!AB51=\"not required\"),\"-\",$C50)","v":"muss enthalten sein"},{"$f":"IF(OR('Anforderung Antragsteller'!AG51=\"does not need to be resubmitted\",'Anforderung Antragsteller'!AG51=\"not required\"),\"-\",$C50)","v":"muss enthalten sein"}]

{"sheet":"ALT Prüfer","index":5,"n_rows":51,"n_cols":7,"rows_kept":51,"hidden":true,"merged":[[3,0,3,1],[3,5,3,6],[4,5,4,6]]}
[null,"Anforderungsliste  für die EHPA-Gütesiegel-Beantragung"]
[null,"Antragsform:",null,{"$f":"Antr","v":"*Please select from list*"}]
[null,"Wärmepumpen-Typ:",null,{"$f":"'Anforderungsliste EN'!D3","v":"*Please select from list*"}]
[{"$nulls":5},{"$f":"'Anforderungsliste EN'!F4","v":"*Company name*"}]
[{"$nulls":3},"Anforderung für die gewählte Antragsform",null,{"$f":"'Anforderungsliste EN'!F5","v":"*model-range name*"}]
[1,"Grundlegendes",{"$nulls":3},"Hinweise zur Prüfung","ist verpflichtend zum Ausstellen"]
[null,"akkreditierte Prüfberichte nach EN 14511-2 bis 4 und EN 14825, bzw. EN 16147 und EN 12102-1 und -2\nAnzahl hängt vom Umfang der Modelreihe ab",null,{"$f":"IF(OR(Antragsform=\"\",$D$3=\"\"),\"Bitte Antragsform und Wärmepumpen-Typ auswählen\",HLOOKUP($D$2&\" \"&$D$3,'Anforderung Antragsteller'!$C$5:$AG$51,ROW()-5,))","v":{"$error":"#N/A"}},null,"EHPA_","-"]
[null,"- Unterschriebener detaillierter akkreditierter Leistungs-Prüfbericht nach EHPA Regularien oder HP-Keymark Regularien     UND",null,{"$f":"IF(OR(Antragsform=\"\",$D$3=\"\"),\"Bitte Antragsform und Wärmepumpen-Typ auswählen\",HLOOKUP($D$2&\" \"&$D$3,'Anforderung Antragsteller'!$C$5:$AK$51,ROW()-5,))","v":{"$error":"#N/A"}},null,{"$f":"IF($D$2=\"\",\"Bitte Antragsform auswählen\",HLOOKUP($D$2,'ALT Prüfer-Hinweis'!$C$3:$I$50,ROW()-4,))","v":{"$error":"#N/A"}},{"$f":"IF($D$2=\"\",\"Bitte Antragsform auswählen\",HLOOKUP($D$2,'ALT Prüfung Priorität'!$C$3:$I$49,ROW()-4,))","v":{"$error":"#N/A"}}]
[null,"- Unterschriebener detaillierter akkreditierter Schall-Prüfbericht  nach EHPA Regularien oder HP-Keymark Regularien UND",null,{"$f":"IF(OR(Antragsform=\"\",$D$3=\"\"),\"Bitte Antragsform und Wärmepumpen-Typ auswählen\",HLOOKUP($D$2&\" \"&$D$3,'Anforderung Antragsteller'!$C$5:$AK$51,ROW()-5,))","v":{"$error":"#N/A"}},null,{"$f":"IF($D$2=\"\",\"Bitte Antragsform auswählen\",HLOOKUP($D$2,'ALT Prüfer-Hinweis'!$C$3:$I$50,ROW()-4,))","v":{"$error":"#N/A"}},{"$f":"IF($D$2=\"\",\"Bitte Antragsform auswählen\",HLOOKUP($D$2,'ALT Prüfung Priorität'!$C$3:$I$49,ROW()-4,))","v":{"$error":"#N/A"}}]
[null,"- Wenn auf Basis einer HP-Keymark Zertifizierung eingereicht wurde:   gültige HP-Keymarkzertifizierung jedes einzelnes Produktes",null,{"$f":"IF(OR(Antragsform=\"\",$D$3=\"\"),\"Bitte Antragsform und Wärmepumpen-Typ auswählen\",HLOOKUP($D$2&\" \"&$D$3,'Anforderung Antragsteller'!$C$5:$AK$51,ROW()-5,))","v":{"$error":"#N/A"}},null,{"$f":"IF($D$2=\"\",\"Bitte Antragsform auswählen\",HLOOKUP($D$2,'ALT Prüfer-Hinweis'!$C$3:$I$50,ROW()-4,))","v":{"$error":"#N/A"}},{"$f":"IF($D$2=\"\",\"Bitte Antragsform auswählen\",HLOOKUP($D$2,'ALT Prüfung Priorität'!$C$3:$I$49,ROW()-4,))","v":{"$error":"#N/A"}}]
[null,"SCOP Anforderungen für Heizungs-Wärmepumpen",null,{"$f":"IF(OR(Antragsform=\"\",$D$3=\"\"),\"Bitte Antragsform und Wärmepumpen-Typ auswählen\",HLOOKUP($D$2&\" \"&$D$3,'Anforderung Antragsteller'!$C$5:$AK$51,ROW()-5,))","v":{"$error":"#N/A"}},null,{"$f":"IF($D$2=\"\",\"Bitte Antragsform auswählen\",HLOOKUP($D$2,'ALT Prüfer-Hinweis'!$C$3:$I$50,ROW()-4,))","v":{"$error":"#N/A"}},{"$f":"IF($D$2=\"\",\"Bitte Antragsform auswählen\",HLOOKUP($D$2,'ALT Prüfung Priorität'!$C$3:$I$49,ROW()-4,))","v":{"$error":"#N/A"}}]
[null,"- Niedertemperaturanwendung (35°C) und durchschnittliches Klima:\n       SCOP Min : 4,3 (B/W, W/W, DX/W);\n       SCOP Min : 3,5 (A/W); SCOP Min : 3,4 (A/A);",null,{"$f":"IF(OR(Antragsform=\"\",$D$3=\"\"),\"Bitte Antragsform und Wärmepumpen-Typ auswählen\",HLOOKUP($D$2&\" \"&$D$3,'Anforderung Antragsteller'!$C$5:$AK$51,ROW()-5,))","v":{"$error":"#N/A"}},null,{"$f":"IF($D$2=\"\",\"Bitte Antragsform auswählen\",HLOOKUP($D$2,'ALT Prüfer-Hinweis'!$C$3:$I$50,ROW()-4,))","v":{"$error":"#N/A"}},{"$f":"IF($D$2=\"\",\"Bitte Antragsform auswählen\",HLOOKUP($D$2,'ALT Prüfung Priorität'!$C$3:$I$49,ROW()-4,))","v":{"$error":"#N/A"}}]
[null,"- Mitteltemperaturanwendung (55°C) und durchschnittliches Klima:\n       SCOP Min : 3,38 (B/W, W/W, DX/W);\n       SCOP Min : 3 (A/W)",null,{"$f":"IF(OR(Antragsform=\"\",$D$3=\"\"),\"Bitte Antragsform und Wärmepumpen-Typ auswählen\",HLOOKUP($D$2&\" \"&$D$3,'Anforderung Antragsteller'!$C$5:$AK$51,ROW()-5,))","v":{"$error":"#N/A"}},null,{"$f":"IF($D$2=\"\",\"Bitte Antragsform auswählen\",HLOOKUP($D$2,'ALT Prüfer-Hinweis'!$C$3:$I$50,ROW()-4,))","v":{"$error":"#N/A"}},{"$f":"IF($D$2=\"\",\"Bitte Antragsform auswählen\",HLOOKUP($D$2,'ALT Prüfung Priorität'!$C$3:$I$49,ROW()-4,))","v":{"$error":"#N/A"}}]
[null,"Anforderungen für Brauchwasser-Wärmepumpen",null,{"$f":"IF(OR(Antragsform=\"\",$D$3=\"\"),\"Bitte Antragsform und Wärmepumpen-Typ auswählen\",HLOOKUP($D$2&\" \"&$D$3,'Anforderung Antragsteller'!$C$5:$AK$51,ROW()-5,))","v":{"$error":"#N/A"}},null,{"$f":"IF($D$2=\"\",\"Bitte Antragsform auswählen\",HLOOKUP($D$2,'ALT Prüfer-Hinweis'!$C$3:$I$50,ROW()-4,))","v":{"$error":"#N/A"}},{"$f":"IF($D$2=\"\",\"Bitte Antragsform auswählen\",HLOOKUP($D$2,'ALT Prüfung Priorität'!$C$3:$I$49,ROW()-4,))","v":{"$error":"#N/A"}}]
[null,"- Die Wärmpumpe muss mindestens 52°C Warmwasser erzeugen können",null,{"$f":"IF(OR(Antragsform=\"\",$D$3=\"\"),\"Bitte Antragsform und Wärmepumpen-Typ auswählen\",HLOOKUP($D$2&\" \"&$D$3,'Anforderung Antragsteller'!$C$5:$AK$51,ROW()-5,))","v":{"$error":"#N/A"}},null,{"$f":"IF($D$2=\"\",\"Bitte Antragsform auswählen\",HLOOKUP($D$2,'ALT Prüfer-Hinweis'!$C$3:$I$50,ROW()-4,))","v":{"$error":"#N/A"}},{"$f":"IF($D$2=\"\",\"Bitte Antragsform auswählen\",HLOOKUP($D$2,'ALT Prüfung Priorität'!$C$3:$I$49,ROW()-4,))","v":{"$error":"#N/A"}}]
[null,"- Minmaler \"SCOP_domestic hot water\", bzw. \"COP_domestic hot water\" wird eingehalten\nA7 ≥ 2,8 / A15 ≥ 2,9 / A20 ≥ 3,2 / B0 ≥ 2,8 / W10 ≥ 3,0",null,{"$f":"IF(OR(Antragsform=\"\",$D$3=\"\"),\"Bitte Antragsform und Wärmepumpen-Typ auswählen\",HLOOKUP($D$2&\" \"&$D$3,'Anforderung Antragsteller'!$C$5:$AK$51,ROW()-5,))","v":{"$error":"#N/A"}},null,{"$f":"IF($D$2=\"\",\"Bitte Antragsform auswählen\",HLOOKUP($D$2,'ALT Prüfer-Hinweis'!$C$3:$I$50,ROW()-4,))","v":{"$error":"#N/A"}},{"$f":"IF($D$2=\"\",\"Bitte Antragsform auswählen\",HLOOKUP($D$2,'ALT Prüfung Priorität'!$C$3:$I$49,ROW()-4,))","v":{"$error":"#N/A"}}]
[null,"Unterfertigte Baugleicheitsbescheinigung des Herstellers, falls die Produktbezeichnungen am Prüfbericht/HP Keymark und am EHPA Label nicht gleich sind (siehe Vorlage unter www.waermepumpe-austria.at/dienste/guetesiegel/dokumente-und-links)",null,{"$f":"IF(OR(Antragsform=\"\",$D$3=\"\"),\"Bitte Antragsform und Wärmepumpen-Typ auswählen\",HLOOKUP($D$2&\" \"&$D$3,'Anforderung Antragsteller'!$C$5:$AK$51,ROW()-5,))","v":{"$error":"#N/A"}},null,{"$f":"IF($D$2=\"\",\"Bitte Antragsform auswählen\",HLOOKUP($D$2,'ALT Prüfer-Hinweis'!$C$3:$I$50,ROW()-4,))","v":{"$error":"#N/A"}},{"$f":"IF($D$2=\"\",\"Bitte Antragsform auswählen\",HLOOKUP($D$2,'ALT Prüfung Priorität'!$C$3:$I$49,ROW()-4,))","v":{"$error":"#N/A"}}]
[null,"Unterfertigte CE-Konformitäts-Erklärung",null,{"$f":"IF(OR(Antragsform=\"\",$D$3=\"\"),\"Bitte Antragsform und Wärmepumpen-Typ auswählen\",HLOOKUP($D$2&\" \"&$D$3,'Anforderung Antragsteller'!$C$5:$AK$51,ROW()-5,))","v":{"$error":"#N/A"}},null,{"$f":"IF($D$2=\"\",\"Bitte Antragsform auswählen\",HLOOKUP($D$2,'ALT Prüfer-Hinweis'!$C$3:$I$50,ROW()-4,))","v":{"$error":"#N/A"}},{"$f":"IF($D$2=\"\",\"Bitte Antragsform auswählen\",HLOOKUP($D$2,'ALT Prüfung Priorität'!$C$3:$I$49,ROW()-4,))","v":{"$error":"#N/A"}}]
[null,"Formelle Zustimmung vom Elterngütesiegel-Halter (siehe Vorlage unter www.waermepumpe-austria.at/dienste/guetesiegel/dokumente-und-links)",null,{"$f":"IF(OR(Antragsform=\"\",$D$3=\"\"),\"Bitte Antragsform und Wärmepumpen-Typ auswählen\",HLOOKUP($D$2&\" \"&$D$3,'Anforderung Antragsteller'!$C$5:$AK$51,ROW()-5,))","v":{"$error":"#N/A"}},null,{"$f":"IF($D$2=\"\",\"Bitte Antragsform auswählen\",HLOOKUP($D$2,'ALT Prüfer-Hinweis'!$C$3:$I$50,ROW()-4,))","v":{"$error":"#N/A"}},{"$f":"IF($D$2=\"\",\"Bitte Antragsform auswählen\",HLOOKUP($D$2,'ALT Prüfung Priorität'!$C$3:$I$49,ROW()-4,))","v":{"$error":"#N/A"}}]
[2,"Antrag",null,{"$f":"IF(OR(Antragsform=\"\",$D$3=\"\"),\"Bitte Antragsform und Wärmepumpen-Typ auswählen\",HLOOKUP($D$2&\" \"&$D$3,'Anforderung Antragsteller'!$C$5:$AK$51,ROW()-5,))","v":{"$error":"#N/A"}},null,{"$f":"IF($D$2=\"\",\"Bitte Antragsform auswählen\",HLOOKUP($D$2,'ALT Prüfer-Hinweis'!$C$3:$I$50,ROW()-4,))","v":{"$error":"#N/A"}},{"$f":"IF($D$2=\"\",\"Bitte Antragsform auswählen\",HLOOKUP($D$2,'ALT Prüfung Priorität'!$C$3:$I$49,ROW()-4,))","v":{"$error":"#N/A"}}]
[null,"Hauptkomponenten Liste hochladen (Hersteller, Typenbezeichnung) und in der Online-Maske im Model inkl. SCOP Werte ausfüllen.",null,{"$f":"IF(OR(Antragsform=\"\",$D$3=\"\"),\"Bitte Antragsform und Wärmepumpen-Typ auswählen\",HLOOKUP($D$2&\" \"&$D$3,'Anforderung Antragsteller'!$C$5:$AK$51,ROW()-5,))","v":{"$error":"#N/A"}},null,{"$f":"IF($D$2=\"\",\"Bitte Antragsform auswählen\",HLOOKUP($D$2,'ALT Prüfer-Hinweis'!$C$3:$I$50,ROW()-4,))","v":{"$error":"#N/A"}},{"$f":"IF($D$2=\"\",\"Bitte Antragsform auswählen\",HLOOKUP($D$2,'ALT Prüfung Priorität'!$C$3:$I$49,ROW()-4,))","v":{"$error":"#N/A"}}]
[3,"Kundenservice  (deutschsprachig)",null,{"$f":"IF(OR(Antragsform=\"\",$D$3=\"\"),\"Bitte Antragsform und Wärmepumpen-Typ auswählen\",HLOOKUP($D$2&\" \"&$D$3,'Anforderung Antragsteller'!$C$5:$AK$51,ROW()-5,))","v":{"$error":"#N/A"}},null,{"$f":"IF($D$2=\"\",\"Bitte Antragsform auswählen\",HLOOKUP($D$2,'ALT Prüfer-Hinweis'!$C$3:$I$50,ROW()-4,))","v":{"$error":"#N/A"}},{"$f":"IF($D$2=\"\",\"Bitte Antragsform auswählen\",HLOOKUP($D$2,'ALT Prüfung Priorität'!$C$3:$I$49,ROW()-4,))","v":{"$error":"#N/A"}}]
[null,"Formular-Vorlage für den Inbetriebnahme- und Wartungs-Techniker",null,{"$f":"IF(OR(Antragsform=\"\",$D$3=\"\"),\"Bitte Antragsform und Wärmepumpen-Typ auswählen\",HLOOKUP($D$2&\" \"&$D$3,'Anforderung Antragsteller'!$C$5:$AK$51,ROW()-5,))","v":{"$error":"#N/A"}},null,{"$f":"IF($D$2=\"\",\"Bitte Antragsform auswählen\",HLOOKUP($D$2,'ALT Prüfer-Hinweis'!$C$3:$I$50,ROW()-4,))","v":{"$error":"#N/A"}},{"$f":"IF($D$2=\"\",\"Bitte Antragsform auswählen\",HLOOKUP($D$2,'ALT Prüfung Priorität'!$C$3:$I$49,ROW()-4,))","v":{"$error":"#N/A"}}]
[null,"Garantie für mindestens 2 Jahre",null,{"$f":"IF(OR(Antragsform=\"\",$D$3=\"\"),\"Bitte Antragsform und Wärmepumpen-Typ auswählen\",HLOOKUP($D$2&\" \"&$D$3,'Anforderung Antragsteller'!$C$5:$AK$51,ROW()-5,))","v":{"$error":"#N/A"}},null,{"$f":"IF($D$2=\"\",\"Bitte Antragsform auswählen\",HLOOKUP($D$2,'ALT Prüfer-Hinweis'!$C$3:$I$50,ROW()-4,))","v":{"$error":"#N/A"}},{"$f":"IF($D$2=\"\",\"Bitte Antragsform auswählen\",HLOOKUP($D$2,'ALT Prüfung Priorität'!$C$3:$I$49,ROW()-4,))","v":{"$error":"#N/A"}}]
[null,"Ersatzteilgarantie für mindestens 10 Jahre",null,{"$f":"IF(OR(Antragsform=\"\",$D$3=\"\"),\"Bitte Antragsform und Wärmepumpen-Typ auswählen\",HLOOKUP($D$2&\" \"&$D$3,'Anforderung Antragsteller'!$C$5:$AK$51,ROW()-5,))","v":{"$error":"#N/A"}},null,{"$f":"IF($D$2=\"\",\"Bitte Antragsform auswählen\",HLOOKUP($D$2,'ALT Prüfer-Hinweis'!$C$3:$I$50,ROW()-4,))","v":{"$error":"#N/A"}},{"$f":"IF($D$2=\"\",\"Bitte Antragsform auswählen\",HLOOKUP($D$2,'ALT Prüfung Priorität'!$C$3:$I$49,ROW()-4,))","v":{"$error":"#N/A"}}]
[null,"Reaktionszeit des Kundendienstes im Vertriebsgebiet innerhalb von 24\nStunden und Kontaktdaten zum Kundendienst im Vertriebsgebiet   (siehe Vorlage unter www.waermepumpe-austria.at/dienste/guetesiegel/dokumente-und-links)",null,{"$f":"IF(OR(Antragsform=\"\",$D$3=\"\"),\"Bitte Antragsform und Wärmepumpen-Typ auswählen\",HLOOKUP($D$2&\" \"&$D$3,'Anforderung Antragsteller'!$C$5:$AK$51,ROW()-5,))","v":{"$error":"#N/A"}},null,{"$f":"IF($D$2=\"\",\"Bitte Antragsform auswählen\",HLOOKUP($D$2,'ALT Prüfer-Hinweis'!$C$3:$I$50,ROW()-4,))","v":{"$error":"#N/A"}},{"$f":"IF($D$2=\"\",\"Bitte Antragsform auswählen\",HLOOKUP($D$2,'ALT Prüfung Priorität'!$C$3:$I$49,ROW()-4,))","v":{"$error":"#N/A"}}]
[4,"Bedienungsanleitungen  (deutschsprachig)",null,{"$f":"IF(OR(Antragsform=\"\",$D$3=\"\"),\"Bitte Antragsform und Wärmepumpen-Typ auswählen\",HLOOKUP($D$2&\" \"&$D$3,'Anforderung Antragsteller'!$C$5:$AK$51,ROW()-5,))","v":{"$error":"#N/A"}},null,{"$f":"IF($D$2=\"\",\"Bitte Antragsform auswählen\",HLOOKUP($D$2,'ALT Prüfer-Hinweis'!$C$3:$I$50,ROW()-4,))","v":{"$error":"#N/A"}},{"$f":"IF($D$2=\"\",\"Bitte Antragsform auswählen\",HLOOKUP($D$2,'ALT Prüfung Priorität'!$C$3:$I$49,ROW()-4,))","v":{"$error":"#N/A"}}]
[null,"Informationen und Sicherheitshinweise für eine ordnungsgemäße\nNutzung",null,{"$f":"IF(OR(Antragsform=\"\",$D$3=\"\"),\"Bitte Antragsform und Wärmepumpen-Typ auswählen\",HLOOKUP($D$2&\" \"&$D$3,'Anforderung Antragsteller'!$C$5:$AK$51,ROW()-5,))","v":{"$error":"#N/A"}},null,{"$f":"IF($D$2=\"\",\"Bitte Antragsform auswählen\",HLOOKUP($D$2,'ALT Prüfer-Hinweis'!$C$3:$I$50,ROW()-4,))","v":{"$error":"#N/A"}},{"$f":"IF($D$2=\"\",\"Bitte Antragsform auswählen\",HLOOKUP($D$2,'ALT Prüfung Priorität'!$C$3:$I$49,ROW()-4,))","v":{"$error":"#N/A"}}]
[null,"Anleitung zur Bedienung der Wärmepumpe",null,{"$f":"IF(OR(Antragsform=\"\",$D$3=\"\"),\"Bitte Antragsform und Wärmepumpen-Typ auswählen\",HLOOKUP($D$2&\" \"&$D$3,'Anforderung Antragsteller'!$C$5:$AK$51,ROW()-5,))","v":{"$error":"#N/A"}},null,{"$f":"IF($D$2=\"\",\"Bitte Antragsform auswählen\",HLOOKUP($D$2,'ALT Prüfer-Hinweis'!$C$3:$I$50,ROW()-4,))","v":{"$error":"#N/A"}},{"$f":"IF($D$2=\"\",\"Bitte Antragsform auswählen\",HLOOKUP($D$2,'ALT Prüfung Priorität'!$C$3:$I$49,ROW()-4,))","v":{"$error":"#N/A"}}]
[null,"Ersatzteilliste",null,{"$f":"IF(OR(Antragsform=\"\",$D$3=\"\"),\"Bitte Antragsform und Wärmepumpen-Typ auswählen\",HLOOKUP($D$2&\" \"&$D$3,'Anforderung Antragsteller'!$C$5:$AK$51,ROW()-5,))","v":{"$error":"#N/A"}},null,{"$f":"IF($D$2=\"\",\"Bitte Antragsform auswählen\",HLOOKUP($D$2,'ALT Prüfer-Hinweis'!$C$3:$I$50,ROW()-4,))","v":{"$error":"#N/A"}},{"$f":"IF($D$2=\"\",\"Bitte Antragsform auswählen\",HLOOKUP($D$2,'ALT Prüfung Priorität'!$C$3:$I$49,ROW()-4,))","v":{"$error":"#N/A"}}]
[5,"Installationsanleitungen  (deutschsprachig)",null,{"$f":"IF(OR(Antragsform=\"\",$D$3=\"\"),\"Bitte Antragsform und Wärmepumpen-Typ auswählen\",HLOOKUP($D$2&\" \"&$D$3,'Anforderung Antragsteller'!$C$5:$AK$51,ROW()-5,))","v":{"$error":"#N/A"}},null,{"$f":"IF($D$2=\"\",\"Bitte Antragsform auswählen\",HLOOKUP($D$2,'ALT Prüfer-Hinweis'!$C$3:$I$50,ROW()-4,))","v":{"$error":"#N/A"}},{"$f":"IF($D$2=\"\",\"Bitte Antragsform auswählen\",HLOOKUP($D$2,'ALT Prüfung Priorität'!$C$3:$I$49,ROW()-4,))","v":{"$error":"#N/A"}}]
[null,"Installationsanleitung",null,{"$f":"IF(OR(Antragsform=\"\",$D$3=\"\"),\"Bitte Antragsform und Wärmepumpen-Typ auswählen\",HLOOKUP($D$2&\" \"&$D$3,'Anforderung Antragsteller'!$C$5:$AK$51,ROW()-5,))","v":{"$error":"#N/A"}},null,{"$f":"IF($D$2=\"\",\"Bitte Antragsform auswählen\",HLOOKUP($D$2,'ALT Prüfer-Hinweis'!$C$3:$I$50,ROW()-4,))","v":{"$error":"#N/A"}},{"$f":"IF($D$2=\"\",\"Bitte Antragsform auswählen\",HLOOKUP($D$2,'ALT Prüfung Priorität'!$C$3:$I$49,ROW()-4,))","v":{"$error":"#N/A"}}]
[null,"Sicherheitshinweise",null,{"$f":"IF(OR(Antragsform=\"\",$D$3=\"\"),\"Bitte Antragsform und Wärmepumpen-Typ auswählen\",HLOOKUP($D$2&\" \"&$D$3,'Anforderung Antragsteller'!$C$5:$AK$51,ROW()-5,))","v":{"$error":"#N/A"}},null,{"$f":"IF($D$2=\"\",\"Bitte Antragsform auswählen\",HLOOKUP($D$2,'ALT Prüfer-Hinweis'!$C$3:$I$50,ROW()-4,))","v":{"$error":"#N/A"}},{"$f":"IF($D$2=\"\",\"Bitte Antragsform auswählen\",HLOOKUP($D$2,'ALT Prüfung Priorität'!$C$3:$I$49,ROW()-4,))","v":{"$error":"#N/A"}}]
[null,"Inbetriebnahmehinweise",null,{"$f":"IF(OR(Antragsform=\"\",$D$3=\"\"),\"Bitte Antragsform und Wärmepumpen-Typ auswählen\",HLOOKUP($D$2&\" \"&$D$3,'Anforderung Antragsteller'!$C$5:$AK$51,ROW()-5,))","v":{"$error":"#N/A"}},null,{"$f":"IF($D$2=\"\",\"Bitte Antragsform auswählen\",HLOOKUP($D$2,'ALT Prüfer-Hinweis'!$C$3:$I$50,ROW()-4,))","v":{"$error":"#N/A"}},{"$f":"IF($D$2=\"\",\"Bitte Antragsform auswählen\",HLOOKUP($D$2,'ALT Prüfung Priorität'!$C$3:$I$49,ROW()-4,))","v":{"$error":"#N/A"}}]
[null,"Fluidschemata Kältekreis und Wasserkreis",null,{"$f":"IF(OR(Antragsform=\"\",$D$3=\"\"),\"Bitte Antragsform und Wärmepumpen-Typ auswählen\",HLOOKUP($D$2&\" \"&$D$3,'Anforderung Antragsteller'!$C$5:$AK$51,ROW()-5,))","v":{"$error":"#N/A"}},null,{"$f":"IF($D$2=\"\",\"Bitte Antragsform auswählen\",HLOOKUP($D$2,'ALT Prüfer-Hinweis'!$C$3:$I$50,ROW()-4,))","v":{"$error":"#N/A"}},{"$f":"IF($D$2=\"\",\"Bitte Antragsform auswählen\",HLOOKUP($D$2,'ALT Prüfung Priorität'!$C$3:$I$49,ROW()-4,))","v":{"$error":"#N/A"}}]
[null,"Elektroschema zum Anschluss der Wärmepumpe",null,{"$f":"IF(OR(Antragsform=\"\",$D$3=\"\"),\"Bitte Antragsform und Wärmepumpen-Typ auswählen\",HLOOKUP($D$2&\" \"&$D$3,'Anforderung Antragsteller'!$C$5:$AK$51,ROW()-5,))","v":{"$error":"#N/A"}},null,{"$f":"IF($D$2=\"\",\"Bitte Antragsform auswählen\",HLOOKUP($D$2,'ALT Prüfer-Hinweis'!$C$3:$I$50,ROW()-4,))","v":{"$error":"#N/A"}},{"$f":"IF($D$2=\"\",\"Bitte Antragsform auswählen\",HLOOKUP($D$2,'ALT Prüfung Priorität'!$C$3:$I$49,ROW()-4,))","v":{"$error":"#N/A"}}]
[null,"Energy-Label und Energy-Label-Datenblatt nach 811/2013 (Heizungs- und Kombiwärmepumpen), bzw 812/2013 (Warmwasserwärmepumpe)\n(nur bei Geräten mit höchstens 70kW Nennleistung)",null,{"$f":"IF(OR(Antragsform=\"\",$D$3=\"\"),\"Bitte Antragsform und Wärmepumpen-Typ auswählen\",HLOOKUP($D$2&\" \"&$D$3,'Anforderung Antragsteller'!$C$5:$AK$51,ROW()-5,))","v":{"$error":"#N/A"}},null,{"$f":"IF($D$2=\"\",\"Bitte Antragsform auswählen\",HLOOKUP($D$2,'ALT Prüfer-Hinweis'!$C$3:$I$50,ROW()-4,))","v":{"$error":"#N/A"}},{"$f":"IF($D$2=\"\",\"Bitte Antragsform auswählen\",HLOOKUP($D$2,'ALT Prüfung Priorität'!$C$3:$I$49,ROW()-4,))","v":{"$error":"#N/A"}}]
[6,"Technische Daten  (deutschsprachig)",null,{"$f":"IF(OR(Antragsform=\"\",$D$3=\"\"),\"Bitte Antragsform und Wärmepumpen-Typ auswählen\",HLOOKUP($D$2&\" \"&$D$3,'Anforderung Antragsteller'!$C$5:$AK$51,ROW()-5,))","v":{"$error":"#N/A"}},null,{"$f":"IF($D$2=\"\",\"Bitte Antragsform auswählen\",HLOOKUP($D$2,'ALT Prüfer-Hinweis'!$C$3:$I$50,ROW()-4,))","v":{"$error":"#N/A"}},{"$f":"IF($D$2=\"\",\"Bitte Antragsform auswählen\",HLOOKUP($D$2,'ALT Prüfung Priorität'!$C$3:$I$49,ROW()-4,))","v":{"$error":"#N/A"}}]
[null,"Leistungsdaten (Wärmeleistung, elektrische Leistungsaufnahme und COP über den gesamten Leistungsbereich)",null,{"$f":"IF(OR(Antragsform=\"\",$D$3=\"\"),\"Bitte Antragsform und Wärmepumpen-Typ auswählen\",HLOOKUP($D$2&\" \"&$D$3,'Anforderung Antragsteller'!$C$5:$AK$51,ROW()-5,))","v":{"$error":"#N/A"}},null,{"$f":"IF($D$2=\"\",\"Bitte Antragsform auswählen\",HLOOKUP($D$2,'ALT Prüfer-Hinweis'!$C$3:$I$50,ROW()-4,))","v":{"$error":"#N/A"}},{"$f":"IF($D$2=\"\",\"Bitte Antragsform auswählen\",HLOOKUP($D$2,'ALT Prüfung Priorität'!$C$3:$I$49,ROW()-4,))","v":{"$error":"#N/A"}}]
[null,"Leistungsdaten nach EN 14511 bei A7/W35 (Wärmeleistung, elektrische Leistungsaufnahme und COP)",null,{"$f":"IF(OR(Antragsform=\"\",$D$3=\"\"),\"Bitte Antragsform und Wärmepumpen-Typ auswählen\",HLOOKUP($D$2&\" \"&$D$3,'Anforderung Antragsteller'!$C$5:$AK$51,ROW()-5,))","v":{"$error":"#N/A"}},null,{"$f":"IF($D$2=\"\",\"Bitte Antragsform auswählen\",HLOOKUP($D$2,'ALT Prüfer-Hinweis'!$C$3:$I$50,ROW()-4,))","v":{"$error":"#N/A"}},{"$f":"IF($D$2=\"\",\"Bitte Antragsform auswählen\",HLOOKUP($D$2,'ALT Prüfung Priorität'!$C$3:$I$49,ROW()-4,))","v":{"$error":"#N/A"}}]
[null,"Maßzeichnung",null,{"$f":"IF(OR(Antragsform=\"\",$D$3=\"\"),\"Bitte Antragsform und Wärmepumpen-Typ auswählen\",HLOOKUP($D$2&\" \"&$D$3,'Anforderung Antragsteller'!$C$5:$AK$51,ROW()-5,))","v":{"$error":"#N/A"}},null,{"$f":"IF($D$2=\"\",\"Bitte Antragsform auswählen\",HLOOKUP($D$2,'ALT Prüfer-Hinweis'!$C$3:$I$50,ROW()-4,))","v":{"$error":"#N/A"}},{"$f":"IF($D$2=\"\",\"Bitte Antragsform auswählen\",HLOOKUP($D$2,'ALT Prüfung Priorität'!$C$3:$I$49,ROW()-4,))","v":{"$error":"#N/A"}}]
[null,"Mindestabstände",null,{"$f":"IF(OR(Antragsform=\"\",$D$3=\"\"),\"Bitte Antragsform und Wärmepumpen-Typ auswählen\",HLOOKUP($D$2&\" \"&$D$3,'Anforderung Antragsteller'!$C$5:$AK$51,ROW()-5,))","v":{"$error":"#N/A"}},null,{"$f":"IF($D$2=\"\",\"Bitte Antragsform auswählen\",HLOOKUP($D$2,'ALT Prüfer-Hinweis'!$C$3:$I$50,ROW()-4,))","v":{"$error":"#N/A"}},{"$f":"IF($D$2=\"\",\"Bitte Antragsform auswählen\",HLOOKUP($D$2,'ALT Prüfung Priorität'!$C$3:$I$49,ROW()-4,))","v":{"$error":"#N/A"}}]
[null,"Kältemittel: Art und Füllmenge",null,{"$f":"IF(OR(Antragsform=\"\",$D$3=\"\"),\"Bitte Antragsform und Wärmepumpen-Typ auswählen\",HLOOKUP($D$2&\" \"&$D$3,'Anforderung Antragsteller'!$C$5:$AK$51,ROW()-5,))","v":{"$error":"#N/A"}},null,{"$f":"IF($D$2=\"\",\"Bitte Antragsform auswählen\",HLOOKUP($D$2,'ALT Prüfer-Hinweis'!$C$3:$I$50,ROW()-4,))","v":{"$error":"#N/A"}},{"$f":"IF($D$2=\"\",\"Bitte Antragsform auswählen\",HLOOKUP($D$2,'ALT Prüfung Priorität'!$C$3:$I$49,ROW()-4,))","v":{"$error":"#N/A"}}]
[null,"Anlaufstrom / maximaler Betriebsstrom in A",null,{"$f":"IF(OR(Antragsform=\"\",$D$3=\"\"),\"Bitte Antragsform und Wärmepumpen-Typ auswählen\",HLOOKUP($D$2&\" \"&$D$3,'Anforderung Antragsteller'!$C$5:$AK$51,ROW()-5,))","v":{"$error":"#N/A"}},null,{"$f":"IF($D$2=\"\",\"Bitte Antragsform auswählen\",HLOOKUP($D$2,'ALT Prüfer-Hinweis'!$C$3:$I$50,ROW()-4,))","v":{"$error":"#N/A"}},{"$f":"IF($D$2=\"\",\"Bitte Antragsform auswählen\",HLOOKUP($D$2,'ALT Prüfung Priorität'!$C$3:$I$49,ROW()-4,))","v":{"$error":"#N/A"}}]
[null,"Einsatzbereich / Einsatzgrenzen",null,{"$f":"IF(OR(Antragsform=\"\",$D$3=\"\"),\"Bitte Antragsform und Wärmepumpen-Typ auswählen\",HLOOKUP($D$2&\" \"&$D$3,'Anforderung Antragsteller'!$C$5:$AK$51,ROW()-5,))","v":{"$error":"#N/A"}},null,{"$f":"IF($D$2=\"\",\"Bitte Antragsform auswählen\",HLOOKUP($D$2,'ALT Prüfer-Hinweis'!$C$3:$I$50,ROW()-4,))","v":{"$error":"#N/A"}},{"$f":"IF($D$2=\"\",\"Bitte Antragsform auswählen\",HLOOKUP($D$2,'ALT Prüfung Priorität'!$C$3:$I$49,ROW()-4,))","v":{"$error":"#N/A"}}]
[null,"Volumenstrom Quelle- und Senkenseite in m³/h, l/min",null,{"$f":"IF(OR(Antragsform=\"\",$D$3=\"\"),\"Bitte Antragsform und Wärmepumpen-Typ auswählen\",HLOOKUP($D$2&\" \"&$D$3,'Anforderung Antragsteller'!$C$5:$AK$51,ROW()-5,))","v":{"$error":"#N/A"}},null,{"$f":"IF($D$2=\"\",\"Bitte Antragsform auswählen\",HLOOKUP($D$2,'ALT Prüfer-Hinweis'!$C$3:$I$50,ROW()-4,))","v":{"$error":"#N/A"}},{"$f":"IF($D$2=\"\",\"Bitte Antragsform auswählen\",HLOOKUP($D$2,'ALT Prüfung Priorität'!$C$3:$I$49,ROW()-4,))","v":{"$error":"#N/A"}}]
[null,"Volumen des WW-Speichers in Liter",null,{"$f":"IF(OR(Antragsform=\"\",$D$3=\"\"),\"Bitte Antragsform und Wärmepumpen-Typ auswählen\",HLOOKUP($D$2&\" \"&$D$3,'Anforderung Antragsteller'!$C$5:$AK$51,ROW()-5,))","v":{"$error":"#N/A"}},null,{"$f":"IF($D$2=\"\",\"Bitte Antragsform auswählen\",HLOOKUP($D$2,'ALT Prüfer-Hinweis'!$C$3:$I$50,ROW()-4,))","v":{"$error":"#N/A"}},{"$f":"IF($D$2=\"\",\"Bitte Antragsform auswählen\",HLOOKUP($D$2,'ALT Prüfung Priorität'!$C$3:$I$49,ROW()-4,))","v":{"$error":"#N/A"}}]
[null,"Gewicht in kg",null,{"$f":"IF(OR(Antragsform=\"\",$D$3=\"\"),\"Bitte Antragsform und Wärmepumpen-Typ auswählen\",HLOOKUP($D$2&\" \"&$D$3,'Anforderung Antragsteller'!$C$5:$AK$51,ROW()-5,))","v":{"$error":"#N/A"}},null,{"$f":"IF($D$2=\"\",\"Bitte Antragsform auswählen\",HLOOKUP($D$2,'ALT Prüfer-Hinweis'!$C$3:$I$50,ROW()-4,))","v":{"$error":"#N/A"}},{"$f":"IF($D$2=\"\",\"Bitte Antragsform auswählen\",HLOOKUP($D$2,'ALT Prüfung Priorität'!$C$3:$I$49,ROW()-4,))","v":{"$error":"#N/A"}}]
[null,"Schallleistung nach EN 12102 / Energy-Label in[dB(A)",null,{"$f":"IF(OR(Antragsform=\"\",$D$3=\"\"),\"Bitte Antragsform und Wärmepumpen-Typ auswählen\",HLOOKUP($D$2&\" \"&$D$3,'Anforderung Antragsteller'!$C$5:$AK$51,ROW()-5,))","v":{"$error":"#N/A"}},null,{"$f":"IF($D$2=\"\",\"Bitte Antragsform auswählen\",HLOOKUP($D$2,'ALT Prüfer-Hinweis'!$C$3:$I$50,ROW()-4,))","v":{"$error":"#N/A"}},{"$f":"IF($D$2=\"\",\"Bitte Antragsform auswählen\",HLOOKUP($D$2,'ALT Prüfung Priorität'!$C$3:$I$49,ROW()-4,))","v":{"$error":"#N/A"}}]
[null,"maximaler Schallleistungspegel in dB(A) und dazugehörige Heizleistung in kW",null,{"$f":"IF(OR(Antragsform=\"\",$D$3=\"\"),\"Bitte Antragsform und Wärmepumpen-Typ auswählen\",HLOOKUP($D$2&\" \"&$D$3,'Anforderung Antragsteller'!$C$5:$AK$51,ROW()-5,))","v":{"$error":"#N/A"}},null,{"$f":"IF($D$2=\"\",\"Bitte Antragsform auswählen\",HLOOKUP($D$2,'ALT Prüfer-Hinweis'!$C$3:$I$50,ROW()-4,))","v":{"$error":"#N/A"}},{"$f":"IF($D$2=\"\",\"Bitte Antragsform auswählen\",HLOOKUP($D$2,'ALT Prüfung Priorität'!$C$3:$I$49,ROW()-4,))","v":{"$error":"#N/A"}}]
[null,"maximaler Schallleistungspegel \"Silent-Mode\" in dB(A) und dazugehörige Heizleistung in kW",null,{"$f":"IF(OR(Antragsform=\"\",$D$3=\"\"),\"Bitte Antragsform und Wärmepumpen-Typ auswählen\",HLOOKUP($D$2&\" \"&$D$3,'Anforderung Antragsteller'!$C$5:$AK$51,ROW()-5,))","v":{"$error":"#N/A"}},null,{"$f":"IF($D$2=\"\",\"Bitte Antragsform auswählen\",HLOOKUP($D$2,'ALT Prüfer-Hinweis'!$C$3:$I$50,ROW()-4,))","v":{"$error":"#N/A"}},{"$f":"IF($D$2=\"\",\"Bitte Antragsform auswählen\",HLOOKUP($D$2,'ALT Prüfung Priorität'!$C$3:$I$49,ROW()-4,))","v":{"$error":"#N/A"}}]

{"sheet":"ALT 1.Prüfung","index":6,"n_rows":49,"n_cols":9,"rows_kept":49,"hidden":true}
["Liste für 1.Prüfung"]
[]
[null,null,{"$f":"'Anforderung Antragsteller'!C3","v":"Initial application"},{"$f":"'Anforderung Antragsteller'!H3","v":"Transfer from another country or another company"},{"$f":"'Anforderung Antragsteller'!M3","v":"1st and 2nd renewal (valid for max. 9 years)"},{"$f":"'Anforderung Antragsteller'!R3","v":"from 3rd renewal (validity over 9 years)"},{"$f":"'Anforderung Antragsteller'!W3","v":"Extension of an existing quality label"},{"$f":"'Anforderung Antragsteller'!AB3","v":"Change of product names"},{"$f":"'Anforderung Antragsteller'!AG3","v":"Technical changes to the product"}]
[1,"Grundlegendes"]
[null,"akkreditierte Prüfberichte nach EN 14511-1 bis 4 und EN 14825, bzw. EN 16147 und EN 12102-1 \nAnzahl hängt vom Umfang der Modelreihe ab","-",{"$f":"IF(OR('Anforderung Antragsteller'!H6=\"muss nicht erneut eingereicht werden\",'Anforderung Antragsteller'!H6=\"nicht erforderlich\"),\"-\",$C5)","v":"-"},{"$f":"IF(OR('Anforderung Antragsteller'!M6=\"muss nicht erneut eingereicht werden\",'Anforderung Antragsteller'!M6=\"nicht erforderlich\"),\"-\",$C5)","v":"-"},{"$f":"IF(OR('Anforderung Antragsteller'!R6=\"muss nicht erneut eingereicht werden\",'Anforderung Antragsteller'!R6=\"nicht erforderlich\"),\"-\",$C5)","v":"-"},{"$f":"IF(OR('Anforderung Antragsteller'!W6=\"muss nicht erneut eingereicht werden\",'Anforderung Antragsteller'!W6=\"nicht erforderlich\"),\"-\",$C5)","v":"-"},{"$f":"IF(OR('Anforderung Antragsteller'!AB6=\"muss nicht erneut eingereicht werden\",'Anforderung Antragsteller'!AB6=\"nicht erforderlich\"),\"-\",$C5)","v":"-"},{"$f":"IF(OR('Anforderung Antragsteller'!AG6=\"muss nicht erneut eingereicht werden\",'Anforderung Antragsteller'!AG6=\"nicht erforderlich\"),\"-\",$C5)","v":"-"}]
[null,"- Unterschriebener akkreditierter Leistungs-Prüfbericht UND","ja",{"$f":"IF(OR('Anforderung Antragsteller'!H7=\"muss nicht erneut eingereicht werden\",'Anforderung Antragsteller'!H7=\"nicht erforderlich\"),\"-\",$C6)","v":"ja"},{"$f":"IF(OR('Anforderung Antragsteller'!M7=\"muss nicht erneut eingereicht werden\",'Anforderung Antragsteller'!M7=\"nicht erforderlich\"),\"nein\",$C6)","v":"ja"},{"$f":"IF(OR('Anforderung Antragsteller'!R7=\"muss nicht erneut eingereicht werden\",'Anforderung Antragsteller'!R7=\"nicht erforderlich\"),\"-\",$C6)","v":"ja"},"nein",{"$f":"IF(OR('Anforderung Antragsteller'!AB7=\"muss nicht erneut eingereicht werden\",'Anforderung Antragsteller'!AB7=\"nicht erforderlich\"),\"nein\",$C6)","v":"ja"},"Prüfung KAI"]
[null,"- Unterschriebener akkreditierter Schall-Prüfbericht UND","ja",{"$f":"IF(OR('Anforderung Antragsteller'!H8=\"muss nicht erneut eingereicht werden\",'Anforderung Antragsteller'!H8=\"nicht erforderlich\"),\"-\",$C7)","v":"ja"},{"$f":"IF(OR('Anforderung Antragsteller'!M8=\"muss nicht erneut eingereicht werden\",'Anforderung Antragsteller'!M8=\"nicht erforderlich\"),\"nein\",$C7)","v":"ja"},{"$f":"IF(OR('Anforderung Antragsteller'!R8=\"muss nicht erneut eingereicht werden\",'Anforderung Antragsteller'!R8=\"nicht erforderlich\"),\"-\",$C7)","v":"ja"},"nein",{"$f":"IF(OR('Anforderung Antragsteller'!AB8=\"muss nicht erneut eingereicht werden\",'Anforderung Antragsteller'!AB8=\"nicht erforderlich\"),\"nein\",$C7)","v":"ja"},{"$f":"$I$6","v":"Prüfung KAI"}]
[null,"- Wenn auf Basis einer HP-Keymark Zertifizierung eingereicht wurde:   gültige HP-Keymarkzertifizierung jedes einzelnes Produktes","nein",{"$f":"IF(OR('Anforderung Antragsteller'!#REF!=\"muss nicht erneut eingereicht werden\",'Anforderung Antragsteller'!#REF!=\"nicht erforderlich\"),\"-\",$C8)","v":{"$error":"#REF!"}},{"$f":"IF(OR('Anforderung Antragsteller'!#REF!=\"muss nicht erneut eingereicht werden\",'Anforderung Antragsteller'!#REF!=\"nicht erforderlich\"),\"nein\",$C8)","v":{"$error":"#REF!"}},{"$f":"IF(OR('Anforderung Antragsteller'!#REF!=\"muss nicht erneut eingereicht werden\",'Anforderung Antragsteller'!#REF!=\"nicht erforderlich\"),\"nein\",$C8)","v":{"$error":"#REF!"}},{"$f":"IF(OR('Anforderung Antragsteller'!#REF!=\"muss nicht erneut eingereicht werden\",'Anforderung Antragsteller'!#REF!=\"nicht erforderlich\"),\"-\",$C8)","v":{"$error":"#REF!"}},{"$f":"IF(OR('Anforderung Antragsteller'!#REF!=\"muss nicht erneut eingereicht werden\",'Anforderung Antragsteller'!#REF!=\"nicht erforderlich\"),\"-\",$C8)","v":{"$error":"#REF!"}},{"$f":"$I$6","v":"Prüfung KAI"}]
[null,"SCOP Anforderungen für Heizungs-Wärmepumpen\n(nicht notwendig bei reinen Brauchwasser-Wärmepumpen)","-",{"$f":"IF(OR('Anforderung Antragsteller'!H9=\"muss nicht erneut eingereicht werden\",'Anforderung Antragsteller'!H9=\"nicht erforderlich\"),\"-\",$C9)","v":"-"},{"$f":"IF(OR('Anforderung Antragsteller'!M9=\"muss nicht erneut eingereicht werden\",'Anforderung Antragsteller'!M9=\"nicht erforderlich\"),\"-\",$C9)","v":"-"},{"$f":"IF(OR('Anforderung Antragsteller'!R9=\"muss nicht erneut eingereicht werden\",'Anforderung Antragsteller'!R9=\"nicht erforderlich\"),\"-\",$C9)","v":"-"},{"$f":"IF(OR('Anforderung Antragsteller'!W9=\"muss nicht erneut eingereicht werden\",'Anforderung Antragsteller'!W9=\"nicht erforderlich\"),\"-\",$C9)","v":"-"},{"$f":"IF(OR('Anforderung Antragsteller'!AB9=\"muss nicht erneut eingereicht werden\",'Anforderung Antragsteller'!AB9=\"nicht erforderlich\"),\"-\",$C9)","v":"-"},{"$f":"IF(OR('Anforderung Antragsteller'!AG9=\"muss nicht erneut eingereicht werden\",'Anforderung Antragsteller'!AG9=\"nicht erforderlich\"),\"-\",$C9)","v":"-"}]
[null,"- Niedertemperaturanwendung (35°C) und durchschnittliches Klima:\n       SCOP Min : 4,3 (B/W, W/W, DX/W);\n       SCOP Min : 3,5 (A/W); SCOP Min : 3,4 (A/A);","ja, bei Heizungs-WP","nein","nein",{"$f":"IF(OR('Anforderung Antragsteller'!R10=\"muss nicht erneut eingereicht werden\",'Anforderung Antragsteller'!R10=\"nicht erforderlich\"),\"-\",$C10)","v":"ja, bei Heizungs-WP"},{"$f":"IF(OR('Anforderung Antragsteller'!W10=\"muss nicht erneut eingereicht werden\",'Anforderung Antragsteller'!W10=\"nicht erforderlich\"),\"-\",$C10)","v":"ja, bei Heizungs-WP"},"nein",{"$f":"$I$6","v":"Prüfung KAI"}]
[null,"- Mitteltemperaturanwendung (55°C) und durchschnittliches Klima:\n       SCOP Min : 3,38 (B/W, W/W, DX/W);\n       SCOP Min : 3 (A/W)","ja, bei Heizungs-WP","nein","nein",{"$f":"IF(OR('Anforderung Antragsteller'!R11=\"muss nicht erneut eingereicht werden\",'Anforderung Antragsteller'!R11=\"nicht erforderlich\"),\"-\",$C11)","v":"ja, bei Heizungs-WP"},{"$f":"IF(OR('Anforderung Antragsteller'!W11=\"muss nicht erneut eingereicht werden\",'Anforderung Antragsteller'!W11=\"nicht erforderlich\"),\"-\",$C11)","v":"ja, bei Heizungs-WP"},"nein",{"$f":"$I$6","v":"Prüfung KAI"}]
[null,"Anforderungen für Brauchwasser-Wärmepumpen\n(nur bei Brauchwasser-Wärmepumpen)","-",{"$f":"IF(OR('Anforderung Antragsteller'!H12=\"muss nicht erneut eingereicht werden\",'Anforderung Antragsteller'!H12=\"nicht erforderlich\"),\"-\",$C12)","v":"-"},{"$f":"IF(OR('Anforderung Antragsteller'!M12=\"muss nicht erneut eingereicht werden\",'Anforderung Antragsteller'!M12=\"nicht erforderlich\"),\"-\",$C12)","v":"-"},{"$f":"IF(OR('Anforderung Antragsteller'!R12=\"muss nicht erneut eingereicht werden\",'Anforderung Antragsteller'!R12=\"nicht erforderlich\"),\"-\",$C12)","v":"-"},{"$f":"IF(OR('Anforderung Antragsteller'!W12=\"muss nicht erneut eingereicht werden\",'Anforderung Antragsteller'!W12=\"nicht erforderlich\"),\"-\",$C12)","v":"-"},{"$f":"IF(OR('Anforderung Antragsteller'!AB12=\"muss nicht erneut eingereicht werden\",'Anforderung Antragsteller'!AB12=\"nicht erforderlich\"),\"-\",$C12)","v":"-"},{"$f":"IF(OR('Anforderung Antragsteller'!AG12=\"muss nicht erneut eingereicht werden\",'Anforderung Antragsteller'!AG12=\"nicht erforderlich\"),\"-\",$C12)","v":"-"}]
[null,"- Die Wärmpumpe muss mindestens 52°C Warmwasser erzeugen können","ja, bei Brauchwasser-WP","nein","nein",{"$f":"IF(OR('Anforderung Antragsteller'!R13=\"muss nicht erneut eingereicht werden\",'Anforderung Antragsteller'!R13=\"nicht erforderlich\"),\"-\",$C13)","v":"ja, bei Brauchwasser-WP"},{"$f":"IF(OR('Anforderung Antragsteller'!W13=\"muss nicht erneut eingereicht werden\",'Anforderung Antragsteller'!W13=\"nicht erforderlich\"),\"-\",$C13)","v":"ja, bei Brauchwasser-WP"},"nein",{"$f":"$I$6","v":"Prüfung KAI"}]
[null,"- Minmaler \"SCOP_domestic hot water\", bzw. \"COP_domestic hot water\" wird eingehalten\nA7 ≥ 2,8 / A15 ≥ 2,9 / A20 ≥ 3,2 / B0 ≥ 2,8 / W10 ≥ 3,0","ja, bei Brauchwasser-WP","nein","nein",{"$f":"IF(OR('Anforderung Antragsteller'!R14=\"muss nicht erneut eingereicht werden\",'Anforderung Antragsteller'!R14=\"nicht erforderlich\"),\"-\",$C14)","v":"ja, bei Brauchwasser-WP"},{"$f":"IF(OR('Anforderung Antragsteller'!W14=\"muss nicht erneut eingereicht werden\",'Anforderung Antragsteller'!W14=\"nicht erforderlich\"),\"-\",$C14)","v":"ja, bei Brauchwasser-WP"},"nein",{"$f":"$I$6","v":"Prüfung KAI"}]
[null,"Unterfertigte Baugleicheitsbescheinigung des Herstellers, falls die Produktbezeichnungen am Prüfbericht/HP Keymark und am EHPA Label nicht gleich sind (siehe Vorlage unter www.waermepumpe-austria.at/dienste/guetesiegel/dokumente-und-links)","nein","ja, wenn sich Produktnamen ändern","nein",{"$f":"IF(OR('Anforderung Antragsteller'!R15=\"muss nicht erneut eingereicht werden\",'Anforderung Antragsteller'!R15=\"nicht erforderlich\"),\"-\",$C15)","v":"nein"},{"$f":"IF(OR('Anforderung Antragsteller'!W15=\"muss nicht erneut eingereicht werden\",'Anforderung Antragsteller'!W15=\"nicht erforderlich\"),\"-\",$C15)","v":"nein"},"ja",{"$f":"$I$6","v":"Prüfung KAI"}]
[null,"Unterfertigte CE-Konformitäts-Erklärung","ja",{"$f":"IF(OR('Anforderung Antragsteller'!H16=\"muss nicht erneut eingereicht werden\",'Anforderung Antragsteller'!H16=\"nicht erforderlich\"),\"-\",\"nein\")","v":"nein"},"nein","nein",{"$f":"IF(OR('Anforderung Antragsteller'!W16=\"muss nicht erneut eingereicht werden\",'Anforderung Antragsteller'!W16=\"nicht erforderlich\"),\"-\",$C16)","v":"ja"},{"$f":"IF(OR('Anforderung Antragsteller'!AB16=\"muss nicht erneut eingereicht werden\",'Anforderung Antragsteller'!AB16=\"nicht erforderlich\"),\"-\",$C16)","v":"ja"},{"$f":"$I$6","v":"Prüfung KAI"}]
[null,"Formelle Zustimmung vom Elterngütesiegel-Halter (siehe Vorlage unter www.waermepumpe-austria.at/dienste/guetesiegel/dokumente-und-links)","nein",{"$f":"IF(OR('Anforderung Antragsteller'!H17=\"muss nicht erneut eingereicht werden\",'Anforderung Antragsteller'!H17=\"nicht erforderlich\"),\"-\",\"ja\")","v":"ja"},"nein","nein","nein","nein",{"$f":"$I$6","v":"Prüfung KAI"}]
[2,"Antrag","-",{"$f":"IF(OR('Anforderung Antragsteller'!H18=\"muss nicht erneut eingereicht werden\",'Anforderung Antragsteller'!H18=\"nicht erforderlich\"),\"-\",$C18)","v":"-"},{"$f":"IF(OR('Anforderung Antragsteller'!M18=\"muss nicht erneut eingereicht werden\",'Anforderung Antragsteller'!M18=\"nicht erforderlich\"),\"-\",$C18)","v":"-"},{"$f":"IF(OR('Anforderung Antragsteller'!R18=\"muss nicht erneut eingereicht werden\",'Anforderung Antragsteller'!R18=\"nicht erforderlich\"),\"-\",$C18)","v":"-"},{"$f":"IF(OR('Anforderung Antragsteller'!W18=\"muss nicht erneut eingereicht werden\",'Anforderung Antragsteller'!W18=\"nicht erforderlich\"),\"-\",$C18)","v":"-"},{"$f":"IF(OR('Anforderung Antragsteller'!AB18=\"muss nicht erneut eingereicht werden\",'Anforderung Antragsteller'!AB18=\"nicht erforderlich\"),\"-\",$C18)","v":"-"},{"$f":"IF(OR('Anforderung Antragsteller'!AG18=\"muss nicht erneut eingereicht werden\",'Anforderung Antragsteller'!AG18=\"nicht erforderlich\"),\"-\",$C18)","v":"-"}]
[null,"Hauptkomponenten (Hersteller, Typenbezeichnung) und technische Werte in der Online-Maske ausfüllen","ja","nein","nein",{"$f":"IF(OR('Anforderung Antragsteller'!R19=\"muss nicht erneut eingereicht werden\",'Anforderung Antragsteller'!R19=\"nicht erforderlich\"),\"-\",$C19)","v":"ja"},{"$f":"IF(OR('Anforderung Antragsteller'!W19=\"muss nicht erneut eingereicht werden\",'Anforderung Antragsteller'!W19=\"nicht erforderlich\"),\"-\",$C19)","v":"ja"},"nein",{"$f":"$I$6","v":"Prüfung KAI"}]
[3,"Kundenservice  (deutschsprachig)","-","-",{"$f":"IF(OR('Anforderung Antragsteller'!M21=\"muss nicht erneut eingereicht werden\",'Anforderung Antragsteller'!M21=\"nicht erforderlich\"),\"-\",$C20)","v":"-"},{"$f":"IF(OR('Anforderung Antragsteller'!R21=\"muss nicht erneut eingereicht werden\",'Anforderung Antragsteller'!R21=\"nicht erforderlich\"),\"-\",$C20)","v":"-"},{"$f":"IF(OR('Anforderung Antragsteller'!W21=\"muss nicht erneut eingereicht werden\",'Anforderung Antragsteller'!W21=\"nicht erforderlich\"),\"-\",$C20)","v":"-"},{"$f":"IF(OR('Anforderung Antragsteller'!AB21=\"muss nicht erneut eingereicht werden\",'Anforderung Antragsteller'!AB21=\"nicht erforderlich\"),\"-\",$C20)","v":"-"},"-"]
[null,"Formular-Vorlage für den Inbetriebnahme- und Wartungs-Techniker","ja","ja","nein","nein","nein","nein",{"$f":"$I$6","v":"Prüfung KAI"}]
[null,"Garantie für mindestens 2 Jahre","ja",{"$f":"IF(OR('Anforderung Antragsteller'!H23=\"muss nicht erneut eingereicht werden\",'Anforderung Antragsteller'!H23=\"nicht erforderlich\"),\"-\",$C22)","v":"ja"},"nein","nein","nein","nein",{"$f":"$I$6","v":"Prüfung KAI"}]
[null,"Ersatzteilgarantie für mindestens 10 Jahre","ja",{"$f":"IF(OR('Anforderung Antragsteller'!H24=\"muss nicht erneut eingereicht werden\",'Anforderung Antragsteller'!H24=\"nicht erforderlich\"),\"-\",$C23)","v":"ja"},"nein","nein","nein","nein",{"$f":"$I$6","v":"Prüfung KAI"}]
[null,"Reaktionszeit des Kundendienstes im Vertriebsgebiet innerhalb von 24\nStunden und Kontaktdaten zum Kundendienst im Vertriebsgebiet   (siehe Vorlage unter www.waermepumpe-austria.at/dienste/guetesiegel/dokumente-und-links)","ja",{"$f":"IF(OR('Anforderung Antragsteller'!H25=\"muss nicht erneut eingereicht werden\",'Anforderung Antragsteller'!H25=\"nicht erforderlich\"),\"-\",$C24)","v":"ja"},"nein","nein","nein","nein",{"$f":"$I$6","v":"Prüfung KAI"}]
[4,"Bedienungsanleitungen  (deutschsprachig)","-",{"$f":"IF(OR('Anforderung Antragsteller'!H26=\"muss nicht erneut eingereicht werden\",'Anforderung Antragsteller'!H26=\"nicht erforderlich\"),\"-\",$C25)","v":"-"},{"$f":"IF(OR('Anforderung Antragsteller'!M26=\"muss nicht erneut eingereicht werden\",'Anforderung Antragsteller'!M26=\"nicht erforderlich\"),\"-\",$C25)","v":"-"},{"$f":"IF(OR('Anforderung Antragsteller'!R26=\"muss nicht erneut eingereicht werden\",'Anforderung Antragsteller'!R26=\"nicht erforderlich\"),\"-\",$C25)","v":"-"},{"$f":"IF(OR('Anforderung Antragsteller'!W26=\"muss nicht erneut eingereicht werden\",'Anforderung Antragsteller'!W26=\"nicht erforderlich\"),\"-\",$C25)","v":"-"},{"$f":"IF(OR('Anforderung Antragsteller'!AB26=\"muss nicht erneut eingereicht werden\",'Anforderung Antragsteller'!AB26=\"nicht erforderlich\"),\"-\",$C25)","v":"-"},"-"]
[null,"Informationen und Sicherheitshinweise für eine ordnungsgemäße\nNutzung","ja","ja, wenn sich Produktnamen ändern","nein","nein",{"$f":"IF(OR('Anforderung Antragsteller'!W27=\"muss nicht erneut eingereicht werden\",'Anforderung Antragsteller'!W27=\"nicht erforderlich\"),\"-\",$C26)","v":"ja"},{"$f":"IF(OR('Anforderung Antragsteller'!AB27=\"muss nicht erneut eingereicht werden\",'Anforderung Antragsteller'!AB27=\"nicht erforderlich\"),\"-\",$C26)","v":"ja"},{"$f":"$I$6","v":"Prüfung KAI"}]
[null,"Anleitung zur Bedienung der Wärmepumpe","ja","ja, wenn sich Produktnamen ändern","nein","nein",{"$f":"IF(OR('Anforderung Antragsteller'!W28=\"muss nicht erneut eingereicht werden\",'Anforderung Antragsteller'!W28=\"nicht erforderlich\"),\"-\",$C27)","v":"ja"},{"$f":"IF(OR('Anforderung Antragsteller'!AB28=\"muss nicht erneut eingereicht werden\",'Anforderung Antragsteller'!AB28=\"nicht erforderlich\"),\"-\",$C27)","v":"ja"},{"$f":"$I$6","v":"Prüfung KAI"}]
[null,"Ersatzteilliste","ja","ja, wenn sich Produktnamen ändern","nein","nein",{"$f":"IF(OR('Anforderung Antragsteller'!W29=\"muss nicht erneut eingereicht werden\",'Anforderung Antragsteller'!W29=\"nicht erforderlich\"),\"-\",$C28)","v":"ja"},{"$f":"IF(OR('Anforderung Antragsteller'!AB29=\"muss nicht erneut eingereicht werden\",'Anforderung Antragsteller'!AB29=\"nicht erforderlich\"),\"-\",$C28)","v":"ja"},{"$f":"$I$6","v":"Prüfung KAI"}]
[5,"Installationsanleitungen  (deutschsprachig)","-",{"$f":"IF(OR('Anforderung Antragsteller'!H30=\"muss nicht erneut eingereicht werden\",'Anforderung Antragsteller'!H30=\"nicht erforderlich\"),\"-\",$C29)","v":"-"},{"$f":"IF(OR('Anforderung Antragsteller'!M30=\"muss nicht erneut eingereicht werden\",'Anforderung Antragsteller'!M30=\"nicht erforderlich\"),\"-\",$C29)","v":"-"},{"$f":"IF(OR('Anforderung Antragsteller'!R30=\"muss nicht erneut eingereicht werden\",'Anforderung Antragsteller'!R30=\"nicht erforderlich\"),\"-\",$C29)","v":"-"},{"$f":"IF(OR('Anforderung Antragsteller'!W30=\"muss nicht erneut eingereicht werden\",'Anforderung Antragsteller'!W30=\"nicht erforderlich\"),\"-\",$C29)","v":"-"},{"$f":"IF(OR('Anforderung Antragsteller'!AB30=\"muss nicht erneut eingereicht werden\",'Anforderung Antragsteller'!AB30=\"nicht erforderlich\"),\"-\",$C29)","v":"-"},"-"]
[null,"Installationsanleitung","ja","ja, wenn sich Produktnamen ändern","nein","nein",{"$f":"IF(OR('Anforderung Antragsteller'!W31=\"muss nicht erneut eingereicht werden\",'Anforderung Antragsteller'!W31=\"nicht erforderlich\"),\"-\",$C30)","v":"ja"},{"$f":"IF(OR('Anforderung Antragsteller'!AB31=\"muss nicht erneut eingereicht werden\",'Anforderung Antragsteller'!AB31=\"nicht erforderlich\"),\"-\",$C30)","v":"ja"},{"$f":"$I$6","v":"Prüfung KAI"}]
[null,"Sicherheitshinweise","ja","ja, wenn sich Produktnamen ändern","nein","nein",{"$f":"IF(OR('Anforderung Antragsteller'!W32=\"muss nicht erneut eingereicht werden\",'Anforderung Antragsteller'!W32=\"nicht erforderlich\"),\"-\",$C31)","v":"ja"},{"$f":"IF(OR('Anforderung Antragsteller'!AB32=\"muss nicht erneut eingereicht werden\",'Anforderung Antragsteller'!AB32=\"nicht erforderlich\"),\"-\",$C31)","v":"ja"},"Prüfung KAI"]
[null,"Inbetriebnahmehinweise","ja","ja, wenn sich Produktnamen ändern","nein","nein",{"$f":"IF(OR('Anforderung Antragsteller'!W33=\"muss nicht erneut eingereicht werden\",'Anforderung Antragsteller'!W33=\"nicht erforderlich\"),\"-\",$C32)","v":"ja"},{"$f":"IF(OR('Anforderung Antragsteller'!AB33=\"muss nicht erneut eingereicht werden\",'Anforderung Antragsteller'!AB33=\"nicht erforderlich\"),\"-\",$C32)","v":"ja"},"Prüfung KAI"]
[null,"Fluidschemata Kältekreis und Wasserkreis","ja","ja, wenn sich Produktnamen ändern","nein","nein",{"$f":"IF(OR('Anforderung Antragsteller'!W34=\"muss nicht erneut eingereicht werden\",'Anforderung Antragsteller'!W34=\"nicht erforderlich\"),\"-\",$C33)","v":"ja"},{"$f":"IF(OR('Anforderung Antragsteller'!AB34=\"muss nicht erneut eingereicht werden\",'Anforderung Antragsteller'!AB34=\"nicht erforderlich\"),\"-\",$C33)","v":"ja"},"Prüfung KAI"]
[null,"Elektroschema zum Anschluss der Wärmepumpe","ja","ja, wenn sich Produktnamen ändern","nein","nein",{"$f":"IF(OR('Anforderung Antragsteller'!W35=\"muss nicht erneut eingereicht werden\",'Anforderung Antragsteller'!W35=\"nicht erforderlich\"),\"-\",$C34)","v":"ja"},{"$f":"IF(OR('Anforderung Antragsteller'!AB35=\"muss nicht erneut eingereicht werden\",'Anforderung Antragsteller'!AB35=\"nicht erforderlich\"),\"-\",$C34)","v":"ja"},"Prüfung KAI"]
[null,"Energy-Label und Energy-Label-Datenblatt nach 811/2013 (Heizungs- und Kombiwärmepumpen), bzw 812/2013 (Warmwasserwärmepumpe)\n(nur bei Geräten mit höchstens 70kW Nennleistung)","ja","ja, wenn sich Produktnamen ändern","nein","nein",{"$f":"IF(OR('Anforderung Antragsteller'!W36=\"muss nicht erneut eingereicht werden\",'Anforderung Antragsteller'!W36=\"nicht erforderlich\"),\"-\",$C35)","v":"ja"},{"$f":"IF(OR('Anforderung Antragsteller'!AB36=\"muss nicht erneut eingereicht werden\",'Anforderung Antragsteller'!AB36=\"nicht erforderlich\"),\"-\",$C35)","v":"ja"},"Prüfung KAI"]
[6,"Technische Daten  (deutschsprachig)","-",{"$f":"IF(OR('Anforderung Antragsteller'!H37=\"muss nicht erneut eingereicht werden\",'Anforderung Antragsteller'!H37=\"nicht erforderlich\"),\"-\",$C36)","v":"-"},{"$f":"IF(OR('Anforderung Antragsteller'!M37=\"muss nicht erneut eingereicht werden\",'Anforderung Antragsteller'!M37=\"nicht erforderlich\"),\"-\",$C36)","v":"-"},{"$f":"IF(OR('Anforderung Antragsteller'!R37=\"muss nicht erneut eingereicht werden\",'Anforderung Antragsteller'!R37=\"nicht erforderlich\"),\"-\",$C36)","v":"-"},{"$f":"IF(OR('Anforderung Antragsteller'!W37=\"muss nicht erneut eingereicht werden\",'Anforderung Antragsteller'!W37=\"nicht erforderlich\"),\"-\",$C36)","v":"-"},{"$f":"IF(OR('Anforderung Antragsteller'!AB37=\"muss nicht erneut eingereicht werden\",'Anforderung Antragsteller'!AB37=\"nicht erforderlich\"),\"-\",$C36)","v":"-"},"-"]
[null,"Leistungsdaten (Wärmeleistung, elektrische Leistungsaufnahme und COP über den gesamten Leistungsbereich)","ja","ja, wenn sich Produktnamen ändern","nein",{"$f":"IF(OR('Anforderung Antragsteller'!R38=\"muss nicht erneut eingereicht werden\",'Anforderung Antragsteller'!R38=\"nicht erforderlich\"),\"-\",\"ja\")","v":"ja"},{"$f":"IF(OR('Anforderung Antragsteller'!W38=\"muss nicht erneut eingereicht werden\",'Anforderung Antragsteller'!W38=\"nicht erforderlich\"),\"-\",$C37)","v":"ja"},{"$f":"IF(OR('Anforderung Antragsteller'!AB38=\"muss nicht erneut eingereicht werden\",'Anforderung Antragsteller'!AB38=\"nicht erforderlich\"),\"-\",$C37)","v":"ja"},{"$f":"$I$6","v":"Prüfung KAI"}]
[null,"Leistungsdaten nach EN 14511 bei A7/W35 (Wärmeleistung, elektrische Leistungsaufnahme und COP)","ja","ja","nein","nein","ja","ja","Prüfung KAI"]
[null,"Maßzeichnung","ja","ja, wenn sich Produktnamen ändern","nein","nein",{"$f":"IF(OR('Anforderung Antragsteller'!W40=\"muss nicht erneut eingereicht werden\",'Anforderung Antragsteller'!W40=\"nicht erforderlich\"),\"-\",$C39)","v":"ja"},{"$f":"IF(OR('Anforderung Antragsteller'!AB40=\"muss nicht erneut eingereicht werden\",'Anforderung Antragsteller'!AB40=\"nicht erforderlich\"),\"-\",$C39)","v":"ja"},"Prüfung KAI"]
[null,"Mindestabstände","ja","ja, wenn sich Produktnamen ändern","nein","nein",{"$f":"IF(OR('Anforderung Antragsteller'!W41=\"muss nicht erneut eingereicht werden\",'Anforderung Antragsteller'!W41=\"nicht erforderlich\"),\"-\",$C40)","v":"ja"},{"$f":"IF(OR('Anforderung Antragsteller'!AB41=\"muss nicht erneut eingereicht werden\",'Anforderung Antragsteller'!AB41=\"nicht erforderlich\"),\"-\",$C40)","v":"ja"},"Prüfung KAI"]
[null,"Kältemittel: Art und Füllmenge","ja","ja, wenn sich Produktnamen ändern","nein","nein",{"$f":"IF(OR('Anforderung Antragsteller'!W42=\"muss nicht erneut eingereicht werden\",'Anforderung Antragsteller'!W42=\"nicht erforderlich\"),\"-\",$C41)","v":"ja"},{"$f":"IF(OR('Anforderung Antragsteller'!AB42=\"muss nicht erneut eingereicht werden\",'Anforderung Antragsteller'!AB42=\"nicht erforderlich\"),\"-\",$C41)","v":"ja"},"Prüfung KAI"]
[null,"Anlaufstrom / maximaler Betriebsstrom in A","ja","ja, wenn sich Produktnamen ändern","nein","nein",{"$f":"IF(OR('Anforderung Antragsteller'!W43=\"muss nicht erneut eingereicht werden\",'Anforderung Antragsteller'!W43=\"nicht erforderlich\"),\"-\",$C42)","v":"ja"},{"$f":"IF(OR('Anforderung Antragsteller'!AB43=\"muss nicht erneut eingereicht werden\",'Anforderung Antragsteller'!AB43=\"nicht erforderlich\"),\"-\",$C42)","v":"ja"},"Prüfung KAI"]
[null,"Einsatzbereich / Einsatzgrenzen","ja","ja, wenn sich Produktnamen ändern","nein","nein",{"$f":"IF(OR('Anforderung Antragsteller'!W44=\"muss nicht erneut eingereicht werden\",'Anforderung Antragsteller'!W44=\"nicht erforderlich\"),\"-\",$C43)","v":"ja"},{"$f":"IF(OR('Anforderung Antragsteller'!AB44=\"muss nicht erneut eingereicht werden\",'Anforderung Antragsteller'!AB44=\"nicht erforderlich\"),\"-\",$C43)","v":"ja"},"Prüfung KAI"]
[null,"Volumenstrom Quelle- und Senkenseite in m³/h, l/min","ja","ja, wenn sich Produktnamen ändern","nein","nein",{"$f":"IF(OR('Anforderung Antragsteller'!W45=\"muss nicht erneut eingereicht werden\",'Anforderung Antragsteller'!W45=\"nicht erforderlich\"),\"-\",$C44)","v":"ja"},{"$f":"IF(OR('Anforderung Antragsteller'!AB45=\"muss nicht erneut eingereicht werden\",'Anforderung Antragsteller'!AB45=\"nicht erforderlich\"),\"-\",$C44)","v":"ja"},"Prüfung KAI"]
[null,"Volumen des WW-Speichers in Liter","nein","ja, wenn sich Produktnamen ändern","nein","nein",{"$f":"IF(OR('Anforderung Antragsteller'!W46=\"muss nicht erneut eingereicht werden\",'Anforderung Antragsteller'!W46=\"nicht erforderlich\"),\"-\",$C45)","v":"nein"},{"$f":"IF(OR('Anforderung Antragsteller'!AB46=\"muss nicht erneut eingereicht werden\",'Anforderung Antragsteller'!AB46=\"nicht erforderlich\"),\"-\",$C45)","v":"nein"},"Prüfung KAI"]
[null,"Gewicht in kg","ja","ja, wenn sich Produktnamen ändern","nein","nein",{"$f":"IF(OR('Anforderung Antragsteller'!W47=\"muss nicht erneut eingereicht werden\",'Anforderung Antragsteller'!W47=\"nicht erforderlich\"),\"-\",$C46)","v":"ja"},{"$f":"IF(OR('Anforderung Antragsteller'!AB47=\"muss nicht erneut eingereicht werden\",'Anforderung Antragsteller'!AB47=\"nicht erforderlich\"),\"-\",$C46)","v":"ja"},"Prüfung KAI"]
[null,"Schallleistung (ErP-Anforderungen) in[dB(A)","ja","ja, wenn sich Produktnamen ändern","nein",{"$f":"IF(OR('Anforderung Antragsteller'!R48=\"muss nicht erneut eingereicht werden\",'Anforderung Antragsteller'!R48=\"nicht erforderlich\"),\"-\",$C47)","v":"ja"},{"$f":"IF(OR('Anforderung Antragsteller'!W48=\"muss nicht erneut eingereicht werden\",'Anforderung Antragsteller'!W48=\"nicht erforderlich\"),\"-\",$C47)","v":"ja"},{"$f":"IF(OR('Anforderung Antragsteller'!AB48=\"muss nicht erneut eingereicht werden\",'Anforderung Antragsteller'!AB48=\"nicht erforderlich\"),\"-\",$C47)","v":"ja"},"Prüfung KAI"]
[null,"maximaler Schallleistungspegel in dB(A) und dazugehörige Heizleistung in kW","ja","ja, wenn sich Produktnamen ändern","nein",{"$f":"IF(OR('Anforderung Antragsteller'!R50=\"muss nicht erneut eingereicht werden\",'Anforderung Antragsteller'!R50=\"nicht erforderlich\"),\"-\",$C48)","v":"ja"},{"$f":"IF(OR('Anforderung Antragsteller'!W50=\"muss nicht erneut eingereicht werden\",'Anforderung Antragsteller'!W50=\"nicht erforderlich\"),\"-\",$C48)","v":"ja"},{"$f":"IF(OR('Anforderung Antragsteller'!AB50=\"muss nicht erneut eingereicht werden\",'Anforderung Antragsteller'!AB50=\"nicht erforderlich\"),\"-\",$C48)","v":"ja"},"Prüfung KAI"]
[null,"maximaler Schallleistungspegel \"Silent-Mode\" in dB(A) und dazugehörige Heizleistung in kW","ja","ja, wenn sich Produktnamen ändern","nein",{"$f":"IF(OR('Anforderung Antragsteller'!R51=\"muss nicht erneut eingereicht werden\",'Anforderung Antragsteller'!R51=\"nicht erforderlich\"),\"-\",$C49)","v":"ja"},{"$f":"IF(OR('Anforderung Antragsteller'!W51=\"muss nicht erneut eingereicht werden\",'Anforderung Antragsteller'!W51=\"nicht erforderlich\"),\"-\",$C49)","v":"ja"},{"$f":"IF(OR('Anforderung Antragsteller'!AB51=\"muss nicht erneut eingereicht werden\",'Anforderung Antragsteller'!AB51=\"nicht erforderlich\"),\"-\",$C49)","v":"ja"},"Prüfung KAI"]